NUMERO_MANDATO;RIGA_MANDATO;QUIET;IMPORTO_RIGA;IMPORTO_MANDATO;BENEFICIARIO;CIG;TITOLO_PAGAMENTO;DATA_MANDATO;CAPITOLO;ARTICOLO;NUMERO_IMPEGNO;TITOLO;DESCR_TITOLO;LIVELLO_II;DESCR_LIVELLO_II;LIVELLO_III;DESCR_LIVELLO_III;LIVELLO_IV;DESCR_LIVELLO_IV;LIVELLO_V;DESCR_LIVELLO_V;DATA_PAG_EFF;
324;1;0;"369,87";"369,87";ENI S.p.A. Divisione Gas & Power; ;ADDEBITO DIRETTO SDD B2B DA EN-ADDEBITO DIRETTO SDD B2B DA ENI S.P.A. PER 003016631311217 1400437389269-1503187629 (COD.P (P.      63 -R.     373);06-04-2018;1270;0;19;1;Spese correnti;3;Acquisto di beni e servizi;1;Acquisto di beni;2;Altri beni di consumo;2;"Carburanti, combustibili e lubrificanti";06-04-2018;
326;1;0;"78,07";"78,07";ENI S.p.A. Divisione Gas & Power; ;SALDO Fatt.n. 30166312  del 31/12/2017 Fornitura buoni carburante . mese di dicembre 2017;06-04-2018;1270;0;19;1;Spese correnti;3;Acquisto di beni e servizi;1;Acquisto di beni;2;Altri beni di consumo;2;"Carburanti, combustibili e lubrificanti";06-04-2018;
327;1;0;"904,18";"7.539,18";COOPERATIVA PRIMAVERA Soc. Coop.;6355628E21;SALDO Fatt.n. 8/2018  del 28/02/2018 Fattura relativa al servizio mensa c/o nido San Vito Paese mese di febbraio 2018;06-04-2018;1422;0;189;1;Spese correnti;3;Acquisto di beni e servizi;2;Acquisto di servizi;15;Contratti di servizio pubblico;6;Contratti di servizio per le mense scolastiche;06-04-2018;
327;2;0;"2.149,06";"7.539,18";COOPERATIVA PRIMAVERA Soc. Coop.;6355628E21;SALDO Fatt.n. 9/2018  del 28/02/2018 Fattura per gestione servizio mensa c/o scuola materna S.Apollinare mese di febbraio 2018;06-04-2018;1422;0;189;1;Spese correnti;3;Acquisto di beni e servizi;2;Acquisto di servizi;15;Contratti di servizio pubblico;6;Contratti di servizio per le mense scolastiche;06-04-2018;
327;3;0;"4.485,94";"7.539,18";COOPERATIVA PRIMAVERA Soc. Coop.;6355628E21;SALDO Fatt.n. 7/2018  del 28/02/2018 Fattura per gestione servizio mensa c/o scuola materna San Vito Paese mese di febbraio 2018;06-04-2018;1422;0;189;1;Spese correnti;3;Acquisto di beni e servizi;2;Acquisto di servizi;15;Contratti di servizio pubblico;6;Contratti di servizio per le mense scolastiche;06-04-2018;
328;1;0;"2.261,36";"2.261,36";CROCE AZZURRA LANCIANO;Z961FD58C5;SALDO Fatt.n. 13/18/PA  del 07/03/2018 Servizio Trasporto Disabili Febbraio 2018;06-04-2018;1362;0;271;1;Spese correnti;3;Acquisto di beni e servizi;2;Acquisto di servizi;11;Prestazioni professionali e specialistiche;2;"Assistenza psicologica, sociale e religiosa";06-04-2018;
329;1;0;"47.315,08";"47.315,08";ABRUZZO ENERGIE S.R.L.; ;Liquidazione spese gestione impianto fotovoltaico;09-04-2018;1057;1;316;1;Spese correnti;3;Acquisto di beni e servizi;2;Acquisto di servizi;5;Utenze e canoni;999;Utenze e canoni per altri servizi n.a.c.;09-04-2018;
330;1;0;"1.520,16";"1.520,16";RISOLO Debora; ;LIQUIDAZIONE DELLE SPESE LEGALI RELATIVE ALLA SENTENZA N. 393/2017 EMESSA DAL G.D.P. DI LANCIANO.;09-04-2018;1058;0;72;1;Spese correnti;3;Acquisto di beni e servizi;2;Acquisto di servizi;99;Altri servizi;2;Altre spese legali;09-04-2018;
337;1;0;"9.691,67";"9.691,67";BUCCO Alberto;ZC91E8E807;SALDO Fatt.n. E5  del 31/12/2017 Prestazioni con mezzi meccanici;09-04-2018;1924;0;42;1;Spese correnti;3;Acquisto di beni e servizi;2;Acquisto di servizi;9;Manutenzione ordinaria e riparazioni;12;Manutenzione ordinaria e riparazioni di terreni e beni materiali non prodotti;09-04-2018;
338;1;0;"6.990,32";"6.990,32";BUCCO Alberto;ZC91E8E807;SALDO Fatt.n. E4  del 31/12/2017 Prestazioni con mezzi meccanici;09-04-2018;2086;0;43;1;Spese correnti;3;Acquisto di beni e servizi;2;Acquisto di servizi;9;Manutenzione ordinaria e riparazioni;11;Manutenzione ordinaria e riparazioni di altri beni materiali;09-04-2018;
339;1;0;"12.892,21";"12.892,21";NUOVA CASSA DI RISPARMIO DI CHIETI S.p.A. BANCA TEATINA; ;INTERESSI DEBITORI ANNO 2017-INTERESSI DEBITORI ANNO 2017 ) (P.      58 -R.     321);10-04-2018;1083;0;99999;1;Spese correnti;7;Interessi passivi;4;Interessi su finanziamenti a breve termine;4;Interessi passivi a Imprese su finanziamenti a breve termine;999;Interessi passivi a altre imprese su finanziamenti a breve termine;10-04-2018;
341;1;0;"145,00";"4.560,00";ANGELUCCI ERICA; ;Spese per componenti seggi elettorali 4 marzo 2018;11-04-2018;1128;0;77;1;Spese correnti;3;Acquisto di beni e servizi;2;Acquisto di servizi;99;Altri servizi;999;Altri servizi diversi n.a.c.;11-04-2018;
341;2;474;"145,00";"4.560,00";BIANCO MANUELA; ;Spese per componenti seggi elettorali 4 marzo 2018;11-04-2018;1128;0;77;1;Spese correnti;3;Acquisto di beni e servizi;2;Acquisto di servizi;99;Altri servizi;999;Altri servizi diversi n.a.c.;02-05-2018;
341;3;0;"145,00";"4.560,00";CAPPETTI ANASTASIA; ;Spese per componenti seggi elettorali 4 marzo 2018;11-04-2018;1128;0;77;1;Spese correnti;3;Acquisto di beni e servizi;2;Acquisto di servizi;99;Altri servizi;999;Altri servizi diversi n.a.c.;11-04-2018;
341;4;0;"145,00";"4.560,00";CAPRARO Cinzia Rita; ;Spese per componenti seggi elettorali 4 marzo 2018;11-04-2018;1128;0;77;1;Spese correnti;3;Acquisto di beni e servizi;2;Acquisto di servizi;99;Altri servizi;999;Altri servizi diversi n.a.c.;11-04-2018;
341;5;0;"145,00";"4.560,00";CATENARO MARIA GRAZIA; ;Spese per componenti seggi elettorali 4 marzo 2018;11-04-2018;1128;0;77;1;Spese correnti;3;Acquisto di beni e servizi;2;Acquisto di servizi;99;Altri servizi;999;Altri servizi diversi n.a.c.;11-04-2018;
341;6;0;"145,00";"4.560,00";CERICOLA NICOLA; ;Spese per componenti seggi elettorali 4 marzo 2018;11-04-2018;1128;0;77;1;Spese correnti;3;Acquisto di beni e servizi;2;Acquisto di servizi;99;Altri servizi;999;Altri servizi diversi n.a.c.;11-04-2018;
341;7;0;"145,00";"4.560,00";CICCOCIOPPO DANIELA; ;Spese per componenti seggi elettorali 4 marzo 2018;11-04-2018;1128;0;77;1;Spese correnti;3;Acquisto di beni e servizi;2;Acquisto di servizi;99;Altri servizi;999;Altri servizi diversi n.a.c.;11-04-2018;
341;8;0;"187,00";"4.560,00";CUPIDO Francesco; ;Spese per componenti seggi elettorali 4 marzo 2018;11-04-2018;1128;0;77;1;Spese correnti;3;Acquisto di beni e servizi;2;Acquisto di servizi;99;Altri servizi;999;Altri servizi diversi n.a.c.;11-04-2018;
341;9;0;"145,00";"4.560,00";D'ALESSANDRO ROBERTA; ;Spese per componenti seggi elettorali 4 marzo 2018;11-04-2018;1128;0;77;1;Spese correnti;3;Acquisto di beni e servizi;2;Acquisto di servizi;99;Altri servizi;999;Altri servizi diversi n.a.c.;11-04-2018;
341;10;0;"145,00";"4.560,00";d'ALESSANDRO SABIA; ;Spese per componenti seggi elettorali 4 marzo 2018;11-04-2018;1128;0;77;1;Spese correnti;3;Acquisto di beni e servizi;2;Acquisto di servizi;99;Altri servizi;999;Altri servizi diversi n.a.c.;11-04-2018;
341;11;421;"145,00";"4.560,00";D'AQUINO BIAGIO; ;Spese per componenti seggi elettorali 4 marzo 2018;11-04-2018;1128;0;77;1;Spese correnti;3;Acquisto di beni e servizi;2;Acquisto di servizi;99;Altri servizi;999;Altri servizi diversi n.a.c.;20-04-2018;
341;12;419;"145,00";"4.560,00";DE LUCA CHIARA; ;Spese per componenti seggi elettorali 4 marzo 2018;11-04-2018;1128;0;77;1;Spese correnti;3;Acquisto di beni e servizi;2;Acquisto di servizi;99;Altri servizi;999;Altri servizi diversi n.a.c.;20-04-2018;
341;13;0;"187,00";"4.560,00";DE NOBILE Sandro; ;Spese per componenti seggi elettorali 4 marzo 2018;11-04-2018;1128;0;77;1;Spese correnti;3;Acquisto di beni e servizi;2;Acquisto di servizi;99;Altri servizi;999;Altri servizi diversi n.a.c.;11-04-2018;
341;14;420;"145,00";"4.560,00";DI CRECCHIO TITO VALERIO; ;Spese per componenti seggi elettorali 4 marzo 2018;11-04-2018;1128;0;77;1;Spese correnti;3;Acquisto di beni e servizi;2;Acquisto di servizi;99;Altri servizi;999;Altri servizi diversi n.a.c.;20-04-2018;
341;15;0;"145,00";"4.560,00";FONTANA Giuseppe; ;Spese per componenti seggi elettorali 4 marzo 2018;11-04-2018;1128;0;77;1;Spese correnti;3;Acquisto di beni e servizi;2;Acquisto di servizi;99;Altri servizi;999;Altri servizi diversi n.a.c.;11-04-2018;
341;16;0;"145,00";"4.560,00";GIANCRISTOFARO FABIO; ;Spese per componenti seggi elettorali 4 marzo 2018;11-04-2018;1128;0;77;1;Spese correnti;3;Acquisto di beni e servizi;2;Acquisto di servizi;99;Altri servizi;999;Altri servizi diversi n.a.c.;11-04-2018;
341;17;0;"187,00";"4.560,00";IAVICOLI Sveva; ;Spese per componenti seggi elettorali 4 marzo 2018;11-04-2018;1128;0;77;1;Spese correnti;3;Acquisto di beni e servizi;2;Acquisto di servizi;99;Altri servizi;999;Altri servizi diversi n.a.c.;11-04-2018;
341;18;0;"145,00";"4.560,00";IEZZI DEBORAH; ;Spese per componenti seggi elettorali 4 marzo 2018;11-04-2018;1128;0;77;1;Spese correnti;3;Acquisto di beni e servizi;2;Acquisto di servizi;99;Altri servizi;999;Altri servizi diversi n.a.c.;11-04-2018;
341;19;0;"145,00";"4.560,00";LUSI Luca; ;Spese per componenti seggi elettorali 4 marzo 2018;11-04-2018;1128;0;77;1;Spese correnti;3;Acquisto di beni e servizi;2;Acquisto di servizi;99;Altri servizi;999;Altri servizi diversi n.a.c.;11-04-2018;
341;20;0;"145,00";"4.560,00";OLIVASTRI Anna; ;Spese per componenti seggi elettorali 4 marzo 2018;11-04-2018;1128;0;77;1;Spese correnti;3;Acquisto di beni e servizi;2;Acquisto di servizi;99;Altri servizi;999;Altri servizi diversi n.a.c.;11-04-2018;
341;21;422;"145,00";"4.560,00";OLIVASTRI ARIANNA; ;Spese per componenti seggi elettorali 4 marzo 2018;11-04-2018;1128;0;77;1;Spese correnti;3;Acquisto di beni e servizi;2;Acquisto di servizi;99;Altri servizi;999;Altri servizi diversi n.a.c.;20-04-2018;
341;22;0;"145,00";"4.560,00";OLIVIERI GUGLIELMO; ;Spese per componenti seggi elettorali 4 marzo 2018;11-04-2018;1128;0;77;1;Spese correnti;3;Acquisto di beni e servizi;2;Acquisto di servizi;99;Altri servizi;999;Altri servizi diversi n.a.c.;11-04-2018;
341;23;398;"145,00";"4.560,00";PICCIRILLI GIADA; ;Spese per componenti seggi elettorali 4 marzo 2018;11-04-2018;1128;0;77;1;Spese correnti;3;Acquisto di beni e servizi;2;Acquisto di servizi;99;Altri servizi;999;Altri servizi diversi n.a.c.;18-04-2018;
341;24;0;"145,00";"4.560,00";RICCI Leonardo Maria; ;Spese per componenti seggi elettorali 4 marzo 2018;11-04-2018;1128;0;77;1;Spese correnti;3;Acquisto di beni e servizi;2;Acquisto di servizi;99;Altri servizi;999;Altri servizi diversi n.a.c.;11-04-2018;
341;25;0;"187,00";"4.560,00";SCIULLI Dario; ;Spese per componenti seggi elettorali 4 marzo 2018;11-04-2018;1128;0;77;1;Spese correnti;3;Acquisto di beni e servizi;2;Acquisto di servizi;99;Altri servizi;999;Altri servizi diversi n.a.c.;11-04-2018;
341;26;417;"145,00";"4.560,00";SEVERO MATTIA; ;Spese per componenti seggi elettorali 4 marzo 2018;11-04-2018;1128;0;77;1;Spese correnti;3;Acquisto di beni e servizi;2;Acquisto di servizi;99;Altri servizi;999;Altri servizi diversi n.a.c.;20-04-2018;
341;27;418;"145,00";"4.560,00";SEVERO NICOLO'; ;Spese per componenti seggi elettorali 4 marzo 2018;11-04-2018;1128;0;77;1;Spese correnti;3;Acquisto di beni e servizi;2;Acquisto di servizi;99;Altri servizi;999;Altri servizi diversi n.a.c.;20-04-2018;
341;28;0;"145,00";"4.560,00";TAVANI Anna; ;Spese per componenti seggi elettorali 4 marzo 2018;11-04-2018;1128;0;77;1;Spese correnti;3;Acquisto di beni e servizi;2;Acquisto di servizi;99;Altri servizi;999;Altri servizi diversi n.a.c.;11-04-2018;
341;29;0;"187,00";"4.560,00";VERI' Paola; ;Spese per componenti seggi elettorali 4 marzo 2018;11-04-2018;1128;0;77;1;Spese correnti;3;Acquisto di beni e servizi;2;Acquisto di servizi;99;Altri servizi;999;Altri servizi diversi n.a.c.;11-04-2018;
341;30;0;"145,00";"4.560,00";VERI' VALENTINA; ;Spese per componenti seggi elettorali 4 marzo 2018;11-04-2018;1128;0;77;1;Spese correnti;3;Acquisto di beni e servizi;2;Acquisto di servizi;99;Altri servizi;999;Altri servizi diversi n.a.c.;11-04-2018;
343;1;0;"2.500,00";"2.500,00";CASALANGUIDA Carlo; ;LIQUIDAZIONE ATTO DI TRANSAZIONE - 1^ ACCONTO;12-04-2018;1488;0;78;1;Spese correnti;3;Acquisto di beni e servizi;2;Acquisto di servizi;11;Prestazioni professionali e specialistiche;999;Altre prestazioni professionali e specialistiche n.a.c.;12-04-2018;
345;1;0;"95,94";"95,94";ENI S.p.A. Divisione Gas & Power; ;ADDEBITO DIRETTO SDD B2B DA EN-ADDEBITO DIRETTO SDD B2B DA ENI S.P.A. PER 002916025280218 1400481895269-2903187651 (COD.P (P.      70 -R.     391);19-04-2018;1009;0;23;1;Spese correnti;3;Acquisto di beni e servizi;1;Acquisto di beni;2;Altri beni di consumo;2;"Carburanti, combustibili e lubrificanti";19-04-2018;
346;1;0;"756,32";"756,32";AGENZIA DELLE ENTRATE - IVA; ;PAGAMENTO F24 TRAMITE ENTRATEL-PAGAMENTO F24 TRAMITE ENTRATEL - C.F.00094240694 - DISPOSIZIONE N.2023616603) (P.      71 -R.     392);19-04-2018;2154;0;88;1;Spese correnti;10;Altre spese correnti;3;Versamenti IVA a debito;1;Versamenti IVA a debito per le gestioni commerciali;1;Versamenti IVA a debito per le gestioni commerciali;19-04-2018;
348;1;415;"21,11";"21,11";ENI S.p.A. Divisione Gas & Power; ;SALDO Fatt.n. 29160257  del 28/02/2018 Fornitrua buoni carburante - dal 1^ al 9 febbraio 2018.;19-04-2018;1009;0;23;1;Spese correnti;3;Acquisto di beni e servizi;1;Acquisto di beni;2;Altri beni di consumo;2;"Carburanti, combustibili e lubrificanti";19-04-2018;
349;1;400;"524,21";"524,21";DUGHERA ASSOCIAZIONI GROUP S.r.l. - Agente CATTOLICA; ;POLIZZE FIDEJUSSORIE PER ATRAVERSAMENTO E FIANCHEGGIAMENTO STRADE -;19-04-2018;2103;0;317;1;Spese correnti;10;Altre spese correnti;4;Premi di assicurazione;99;Altri premi di assicurazione n.a.c.;999;Altri premi di assicurazione n.a.c.;19-04-2018;
350;1;0;"6.023,95";"6.023,95";DIPENDENTI COMUNALI; ;STIPENDI MESE DI: APRILE 18;19-04-2018;1001;0;0;1;Spese correnti;3;Acquisto di beni e servizi;2;Acquisto di servizi;1;Organi e incarichi istituzionali dell'amministrazione;1;Organi istituzionali dell'amministrazione - Indennit�;19-04-2018;
394;1;0;"3.492,36";"10.293,53";ISTITUTI RIUNITI DI ASSISTENZA S.G. BATTISTA; ;SALDO Fatt.n. 112  del 21/03/2017 RETTA DEGENZA ANNO 2016 C.R.;24-04-2018;1653;0;93;1;Spese correnti;3;Acquisto di beni e servizi;2;Acquisto di servizi;15;Contratti di servizio pubblico;8;Contratti di servizio di assistenza sociale residenziale e semiresidenziale;24-04-2018;
394;2;0;"6.801,17";"10.293,53";RESIDENZA ASSISTENZIALE CASA RELIGIOSA ANTONIANO O.F.M.; ;SALDO Fatt.n. 32  del 23/08/2017 Compartecipazione spesa socio-sanitaria anno 2016 a favore della Sig.ra G.U.;24-04-2018;1653;0;93;1;Spese correnti;3;Acquisto di beni e servizi;2;Acquisto di servizi;15;Contratti di servizio pubblico;8;Contratti di servizio di assistenza sociale residenziale e semiresidenziale;24-04-2018;
397;1;0;"450,00";"750,00";A.F.I.A. Associazione Famiglie Ipoacusici Abruzzesi;Z352108C30;SALDO Fatt.n. 105  del 15/03/2018 Servizio assistenza educativa didattica - Mse di Febbraio 2018;30-04-2018;1654;0;343;1;Spese correnti;3;Acquisto di beni e servizi;2;Acquisto di servizi;11;Prestazioni professionali e specialistiche;2;"Assistenza psicologica, sociale e religiosa";30-04-2018;
397;2;473;"750,00";"750,00";A.F.I.A. Associazione Famiglie Ipoacusici Abruzzesi;Z352108C30;SALDO Fatt.n. 069  del 05/02/2018 Servizio assistenza educativa didattica - MEse di Gennaio 2018;30-04-2018;1654;0;343;1;Spese correnti;3;Acquisto di beni e servizi;2;Acquisto di servizi;11;Prestazioni professionali e specialistiche;2;"Assistenza psicologica, sociale e religiosa";02-05-2018;
404;1;0;"326,81";"2.015,75";ENEL ENERGIA S.p.A.; ;SALDO Fatt.n. 004810598930  del 10/04/2018 Fornitura energia elettrica - Marzo 2018;07-05-2018;1057;1;103;1;Spese correnti;3;Acquisto di beni e servizi;2;Acquisto di servizi;5;Utenze e canoni;999;Utenze e canoni per altri servizi n.a.c.;07-05-2018;
404;2;0;"329,92";"2.015,75";ENEL ENERGIA S.p.A.; ;SALDO Fatt.n. 004810451325  del 09/03/2018 Fornitura energia elettrica impianto fotovoltaico - Febbraio 2018.;07-05-2018;1057;1;103;1;Spese correnti;3;Acquisto di beni e servizi;2;Acquisto di servizi;5;Utenze e canoni;999;Utenze e canoni per altri servizi n.a.c.;07-05-2018;
404;3;0;"331,16";"2.015,75";ENEL ENERGIA S.p.A.; ;SALDO Fatt.n. 004810598931  del 10/04/2018 Fornitrua energia elettrica - marzo 2018;07-05-2018;1057;1;103;1;Spese correnti;3;Acquisto di beni e servizi;2;Acquisto di servizi;5;Utenze e canoni;999;Utenze e canoni per altri servizi n.a.c.;07-05-2018;
404;4;0;"335,61";"2.015,75";ENEL ENERGIA S.p.A.; ;SALDO Fatt.n. 004810257853  del 07/02/2018 Fornitura energia elettrica - Gennaio 2018;07-05-2018;1057;1;103;1;Spese correnti;3;Acquisto di beni e servizi;2;Acquisto di servizi;5;Utenze e canoni;999;Utenze e canoni per altri servizi n.a.c.;07-05-2018;
404;5;0;"345,97";"2.015,75";ENEL ENERGIA S.p.A.; ;SALDO Fatt.n. 004810257854  del 07/02/2018 Fornitura energia elettrica - Gennaio 2018;07-05-2018;1057;1;103;1;Spese correnti;3;Acquisto di beni e servizi;2;Acquisto di servizi;5;Utenze e canoni;999;Utenze e canoni per altri servizi n.a.c.;07-05-2018;
404;6;0;"346,28";"2.015,75";ENEL ENERGIA S.p.A.; ;SALDO Fatt.n. 004810451326  del 09/03/2018 Fornitura energia elettrica impianto fotovoltaico - Febbraio 2018;07-05-2018;1057;1;103;1;Spese correnti;3;Acquisto di beni e servizi;2;Acquisto di servizi;5;Utenze e canoni;999;Utenze e canoni per altri servizi n.a.c.;07-05-2018;
405;1;0;"8.439,89";"8.439,89";CONSORZIO COOPERATIVE SOCIALI S.G.S.;649009322C;SALDO Fatt.n. 69/10  del 07/02/2018 Gestione asilo nido - Gennaio 2018.;07-05-2018;1421;0;295;1;Spese correnti;3;Acquisto di beni e servizi;2;Acquisto di servizi;15;Contratti di servizio pubblico;10;Contratti di servizio di asilo nido;07-05-2018;
406;1;0;"73,20";"73,20";ART METAL di D'ALESSANDRO Ermanno;Z212139A1D;SALDO Fatt.n. 2/PA  del 07/02/2018 Sostituzione di molla della serranda presso caserma carabinieri;07-05-2018;2171;0;304;1;Spese correnti;3;Acquisto di beni e servizi;2;Acquisto di servizi;9;Manutenzione ordinaria e riparazioni;8;Manutenzione ordinaria e riparazioni di beni immobili;07-05-2018;
407;1;0;"427,00";"427,00";ART METAL di D'ALESSANDRO Ermanno;ZCB1F2FA38;SALDO Fatt.n. 1/PA  del 12/01/2018 Riparazione accessi carrabili fabbricato adibito cvaserma carabinieri;07-05-2018;2171;0;129;1;Spese correnti;3;Acquisto di beni e servizi;2;Acquisto di servizi;9;Manutenzione ordinaria e riparazioni;8;Manutenzione ordinaria e riparazioni di beni immobili;07-05-2018;
408;1;0;"631,96";"631,96";BUTAN GAS S.p.a.;ZCA216315C;SALDO Fatt.n. 1/265P  del 10/01/2018 Fornitura GPLper camposportivo;07-05-2018;1827;0;325;1;Spese correnti;3;Acquisto di beni e servizi;1;Acquisto di beni;2;Altri beni di consumo;12;Accessori per attivit� sportive e ricreative;07-05-2018;
411;1;0;"597,80";"597,80";EUROSERVIZI S.r.l.;Z191EEB415;SALDO Fatt.n. 11  del 31/01/2018 Servizio di pulizie uffici comunali - Gennaio 2018.;07-05-2018;1483;0;38;1;Spese correnti;3;Acquisto di beni e servizi;2;Acquisto di servizi;13;Servizi ausiliari per il funzionamento dell'ente;2;Servizi di pulizia e lavanderia;07-05-2018;
412;1;0;"1.775,09";"1.775,09";POSTE ITALIANE S.p.A.; ;ACCONTO Fatt.n. 8718032786  del 31/01/2018 Fattura Elettronica relativa all'Identificativo Rendiconto 1000464757;07-05-2018;1036;0;92;1;Spese correnti;3;Acquisto di beni e servizi;2;Acquisto di servizi;5;Utenze e canoni;999;Utenze e canoni per altri servizi n.a.c.;07-05-2018;
414;1;0;"463,60";"463,60";ART METAL di D'ALESSANDRO Ermanno;Z3522894A1;SALDO Fatt.n. 4/PA  del 20/03/2018 Fornitura e posa in opera motore elettrico serranda stabile caserma carabinieri;07-05-2018;2171;0;43;1;Spese correnti;3;Acquisto di beni e servizi;2;Acquisto di servizi;9;Manutenzione ordinaria e riparazioni;8;Manutenzione ordinaria e riparazioni di beni immobili;07-05-2018;
415;1;0;"2.257,00";"2.257,00";ART METAL di D'ALESSANDRO Ermanno;ZCA2289592;SALDO Fatt.n. 3/PA  del 20/03/2018 Sistemazione recinzione e cancelli edificio scuola elementare Sant'Apollinare;07-05-2018;1346;0;44;1;Spese correnti;3;Acquisto di beni e servizi;2;Acquisto di servizi;9;Manutenzione ordinaria e riparazioni;8;Manutenzione ordinaria e riparazioni di beni immobili;07-05-2018;
416;1;0;"2.337,40";"2.337,40";S.I.A.C. S.r.l.;ZC0228D396;SALDO Fatt.n. FATTPA 91_18  del 28/02/2018 Servizio custodia cani randagi - Gennaio 2018;07-05-2018;1622;0;45;1;Spese correnti;3;Acquisto di beni e servizi;2;Acquisto di servizi;15;Contratti di servizio pubblico;11;Contratti di servizio per la lotta al randagismo;07-05-2018;
417;1;0;"2.013,00";"2.013,00";SGUVA RENTING SPA;Z861E8FA3F;SALDO Fatt.n. 6008  del 16/01/2018 CANONE DI NOLEGGIO N. 3;07-05-2018;1573;0;41;1;Spese correnti;3;Acquisto di beni e servizi;2;Acquisto di servizi;15;Contratti di servizio pubblico;999;Altre spese per contratti di servizio pubblico;07-05-2018;
418;1;0;"668,56";"668,56";CONSORZIO AGRARIO CENTRO SUD Soc. Coop. a r.l.;Z282OC2CE9;SALDO Fatt.n. 0000003-PA  del 20/02/2018 Fornitura sale granulare;07-05-2018;1928;0;34;1;Spese correnti;3;Acquisto di beni e servizi;1;Acquisto di beni;2;Altri beni di consumo;999;Altri beni e materiali di consumo n.a.c.;07-05-2018;
419;1;0;"100,53";"100,53";ABRUBA.IT - ARUBA S.p.A.;Z8521D1E14;SALDO Fatt.n. A18PAS0001125  del 31/01/2018 Rinnovo dominio web;07-05-2018;1053;0;4;1;Spese correnti;3;Acquisto di beni e servizi;2;Acquisto di servizi;19;Servizi informatici e di telecomunicazioni;1;Gestione e manutenzione applicazioni;07-05-2018;
420;1;0;"58.712,79";"58.712,79";ECO.LAN. S.p.A.; ;SALDO Fatt.n. 100007  del 31/01/2018 Servizio igiene urbana - Gennaio 2018.;07-05-2018;1745;0;47;1;Spese correnti;3;Acquisto di beni e servizi;2;Acquisto di servizi;15;Contratti di servizio pubblico;4;Contratti di servizio per la raccolta rifiuti;07-05-2018;
421;1;0;"1.248,06";"4.777,52";"F. &amp; C. COSTRUZIONI DI FLAMMINIO MARIO";X3218983F9;SALDO Fatt.n. 08/2018  del 12/03/2018 Tumulazione defunto Berghella Vanio.;07-05-2018;3053;0;37;2;Spese in conto capitale;2;Investimenti fissi lordi e acquisto di terreni;1;Beni materiali;9;Beni immobili;15;Cimiteri;07-05-2018;
421;2;0;"1.726,30";"4.777,52";"F. &amp; C. COSTRUZIONI DI FLAMMINIO MARIO";X3218983F9;SALDO Fatt.n. 09/2018  del 12/03/2018 Tumulazione defunto Bucco Vittorio;07-05-2018;3053;0;37;2;Spese in conto capitale;2;Investimenti fissi lordi e acquisto di terreni;1;Beni materiali;9;Beni immobili;15;Cimiteri;07-05-2018;
421;3;0;"1.803,16";"4.777,52";"F. &amp; C. COSTRUZIONI DI FLAMMINIO MARIO";X3218983F9;SALDO Fatt.n. 10/2018  del 12/03/2018 Tumulazione defunto Zezza Andrea;07-05-2018;3053;0;37;2;Spese in conto capitale;2;Investimenti fissi lordi e acquisto di terreni;1;Beni materiali;9;Beni immobili;15;Cimiteri;07-05-2018;
422;1;0;"750,00";"750,00";IT CREATIVE di D'ANGELO FRANCESCO;Z221E2C663;SALDO Fatt.n. 6/A  del 28/02/2018 GESTIONE DEI SERVIZI RELATIVI ALLA TRASPARENZA DELL'AZIONE AMMINISTRATIVA DELL'ENTE - BIMESTRE GENNAIO/FEBBRAIO 2018;07-05-2018;1062;0;17;1;Spese correnti;3;Acquisto di beni e servizi;2;Acquisto di servizi;19;Servizi informatici e di telecomunicazioni;1;Gestione e manutenzione applicazioni;07-05-2018;
423;1;0;"1.283,40";"1.909,00";LEGA ITALIANA DEI DIRITTI DELL'AMINALE;ZD221F1539;SALDO Fatt.n. 11/2018  del 31/03/2018 Ricovero e matenimento dei cani - Marzo 2018.;07-05-2018;1622;0;36;1;Spese correnti;3;Acquisto di beni e servizi;2;Acquisto di servizi;15;Contratti di servizio pubblico;11;Contratti di servizio per la lotta al randagismo;07-05-2018;
423;2;0;"625,60";"1.909,00";LEGA ITALIANA DEI DIRITTI DELL'AMINALE;ZD221F1539;SALDO Fatt.n. 7/2018  del 28/02/2018 RICOVERO E MANTENIMENTO DEI CANI  - MESE DI FEBBRAIO 2018;07-05-2018;1622;0;36;1;Spese correnti;3;Acquisto di beni e servizi;2;Acquisto di servizi;15;Contratti di servizio pubblico;11;Contratti di servizio per la lotta al randagismo;07-05-2018;
424;1;0;"-0,01";"2.000,00";RECCHIA S.a.s. di RECCHIA Pierluigi & C.;Z3320B72A5;SALDO Fatt.n. 22E  del 23/03/2018 FORNITURA VESTIARIO POLIZIA LOCALE;07-05-2018;1263;0;263;1;Spese correnti;3;Acquisto di beni e servizi;1;Acquisto di beni;2;Altri beni di consumo;4;Vestiario;07-05-2018;
424;2;0;"2.000,01";"2.000,00";RECCHIA S.a.s. di RECCHIA Pierluigi & C.;Z3320B72A5;SALDO Fatt.n. 22E  del 23/03/2018 FORNITURA VESTIARIO POLIZIA LOCALE;07-05-2018;1263;0;263;1;Spese correnti;3;Acquisto di beni e servizi;1;Acquisto di beni;2;Altri beni di consumo;4;Vestiario;07-05-2018;
425;1;0;"1.750,94";"1.750,94";S.I.A.C. S.r.l.;ZCD1F261CE;SALDO Fatt.n. FATTPA 26_18  del 08/01/2018 Servizio custodia cani randagi dicembre 2017;07-05-2018;1622;0;125;1;Spese correnti;3;Acquisto di beni e servizi;2;Acquisto di servizi;15;Contratti di servizio pubblico;11;Contratti di servizio per la lotta al randagismo;07-05-2018;
426;1;0;"1.137,28";"1.137,28";LA FERRAMENTA di Pierangelo DI BATTISTA;ZA82185615;SALDO Fatt.n. 2/PA  del 18/01/2018 Fornitrua materiali vari per manutenzione patrimonio.;07-05-2018;2173;0;321;1;Spese correnti;3;Acquisto di beni e servizi;1;Acquisto di beni;2;Altri beni di consumo;999;Altri beni e materiali di consumo n.a.c.;07-05-2018;
427;1;0;"167,16";"167,16";SOLUZIONE UFFICIO S.R.L.;Z052028C62;SALDO Fatt.n. 8378/PA/2017  del 14/12/2017 fornitura conta/divide/somma monete;07-05-2018;1087;0;234;1;Spese correnti;3;Acquisto di beni e servizi;1;Acquisto di beni;2;Altri beni di consumo;5;Accessori per uffici e alloggi;07-05-2018;
428;1;0;"329,40";"329,40";BELLISARIO GUIDO S.R.L.;Z7E2139AB;SALDO Fatt.n. 3/FE  del 10/01/2018 Riparazione caldaia ex municipio;07-05-2018;2171;0;294;1;Spese correnti;3;Acquisto di beni e servizi;2;Acquisto di servizi;9;Manutenzione ordinaria e riparazioni;4;Manutenzione ordinaria e riparazioni di impianti e macchinari;07-05-2018;
429;1;0;"341,60";"341,60";BELLISARIO GUIDO S.R.L.;ZF82139B32;SALDO Fatt.n. 4/FE  del 10/01/2018 Riparazione impianto idruico-sanitaio scuole elementari.;07-05-2018;2171;0;298;1;Spese correnti;3;Acquisto di beni e servizi;2;Acquisto di servizi;9;Manutenzione ordinaria e riparazioni;4;Manutenzione ordinaria e riparazioni di impianti e macchinari;07-05-2018;
430;1;0;"1.280,00";"1.280,00";BELLISARIO GUIDO S.R.L.;Z17213F588;SALDO Fatt.n. 5/FE  del 10/01/2018 Manutenzione e certificazione caldaie edifici comunali.;07-05-2018;2171;0;322;1;Spese correnti;3;Acquisto di beni e servizi;2;Acquisto di servizi;9;Manutenzione ordinaria e riparazioni;4;Manutenzione ordinaria e riparazioni di impianti e macchinari;07-05-2018;
431;1;0;"1.159,00";"1.159,00";BELLISARIO GUIDO S.R.L.;Z712188216;SALDO Fatt.n. 6/FE  del 10/01/2018 Manutenzione edifici comunali;07-05-2018;2171;0;319;1;Spese correnti;3;Acquisto di beni e servizi;2;Acquisto di servizi;9;Manutenzione ordinaria e riparazioni;4;Manutenzione ordinaria e riparazioni di impianti e macchinari;07-05-2018;
432;1;0;"66,00";"66,00";AGENTE CONTABILE SBARAGLIA Giuliano; ;LIQUIDAZIONE PER ACQUISTO STAMPATI PER UFFICIO DEMOGRAFICO-CARTE D'IDENTITA'.;07-05-2018;1116;0;102;1;Spese correnti;3;Acquisto di beni e servizi;1;Acquisto di beni;2;Altri beni di consumo;1;"Carta, cancelleria e stampati";07-05-2018;
433;1;0;"16.224,38";"16.224,38";GECABUS SRLS;6337728A96;SALDO Fatt.n. 15/2018/PA  del 28/03/2018 Servizio trasporto scolastico - Marzo 2018.;07-05-2018;1424;0;190;1;Spese correnti;3;Acquisto di beni e servizi;2;Acquisto di servizi;15;Contratti di servizio pubblico;2;Contratti di servizio di trasporto scolastico;07-05-2018;
434;1;0;"257,40";"257,40";TESORERIA PROVINCIALE DELLO STATO; ;"LIQUIDAZIONE  DI SPESA   PER  ""VISURE ESPERITE TRAMITE SERVIZIO TELEMATICO - 1^, 2 e 4^ trimestre 2017";07-05-2018;1278;0;5;1;Spese correnti;3;Acquisto di beni e servizi;2;Acquisto di servizi;5;Utenze e canoni;3;Accesso a banche dati e a pubblicazioni on line;07-05-2018;
435;1;0;"2.073,50";"5.043,58";EDOS S.r.l.; ;ACCONTO Fatt.n. 113EL  del 20/02/2018 COMPARTECIPAZIONE 2017 - DI LORENZO LORETO;08-05-2018;1653;0;338;1;Spese correnti;3;Acquisto di beni e servizi;2;Acquisto di servizi;15;Contratti di servizio pubblico;8;Contratti di servizio di assistenza sociale residenziale e semiresidenziale;08-05-2018;
435;2;0;"2.970,08";"5.043,58";EDOS S.r.l.; ;ACCONTO Fatt.n. 112EL  del 20/02/2018 CATENARO MARIA CONCETTA SR - COMPARTECIPAZIONE 2017;08-05-2018;1653;0;338;1;Spese correnti;3;Acquisto di beni e servizi;2;Acquisto di servizi;15;Contratti di servizio pubblico;8;Contratti di servizio di assistenza sociale residenziale e semiresidenziale;08-05-2018;
436;1;0;"3.660,00";"13.887,80";PRIMAVERA PREFABBRICATI SRL;Z2320FF058;SALDO Fatt.n. 1/PA  del 15/04/2018 SPESE TECNICHE;08-05-2018;3052;0;332;2;Spese in conto capitale;2;Investimenti fissi lordi e acquisto di terreni;1;Beni materiali;9;Beni immobili;15;Cimiteri;08-05-2018;
436;2;0;"10.227,80";"13.887,80";PRIMAVERA PREFABBRICATI SRL;Z2320FF058;SALDO Fatt.n. 2/PA  del 15/04/2018  Acconto lavori di fornitura e posa in opera di loculi prefabbricati;08-05-2018;3052;0;332;2;Spese in conto capitale;2;Investimenti fissi lordi e acquisto di terreni;1;Beni materiali;9;Beni immobili;15;Cimiteri;08-05-2018;
437;1;0;"39.331,26";"39.331,26";OTTIMA S.r.l.;606897656D;SALDO Fatt.n. FATTPA 12_18  del 28/02/2018 Canone bimestrale gennaio/febbraio 2018 - Manutenzione pubblica illuminazione;08-05-2018;1939;0;176;1;Spese correnti;3;Acquisto di beni e servizi;2;Acquisto di servizi;15;Contratti di servizio pubblico;15;Contratti di servizio per l'illuminazione pubblica;08-05-2018;
439;1;0;"36,30";"1.192,76";ODOARDO ZECCA S.r.l.; ;ACCONTO Fatt.n. P2018/000009  del 25/01/2018 Bolletta Energia Elettrica relativa al periodo 01/11/2017 - 31/12/2017;08-05-2018;2174;0;269;1;Spese correnti;3;Acquisto di beni e servizi;2;Acquisto di servizi;5;Utenze e canoni;4;Energia elettrica;08-05-2018;
439;2;0;"36,33";"1.192,76";ODOARDO ZECCA S.r.l.; ;SALDO Fatt.n. P2018/000002  del 25/01/2018 Bolletta Energia Elettrica relativa al periodo 01/11/2017 - 31/12/2017;08-05-2018;2174;0;269;1;Spese correnti;3;Acquisto di beni e servizi;2;Acquisto di servizi;5;Utenze e canoni;4;Energia elettrica;08-05-2018;
439;3;0;"73,15";"1.192,76";ODOARDO ZECCA S.r.l.; ;SALDO Fatt.n. P2018/000001  del 25/01/2018 Bolletta Energia Elettrica relativa al periodo 01/11/2017 - 31/12/2017;08-05-2018;2174;0;269;1;Spese correnti;3;Acquisto di beni e servizi;2;Acquisto di servizi;5;Utenze e canoni;4;Energia elettrica;08-05-2018;
439;4;0;"73,15";"1.192,76";ODOARDO ZECCA S.r.l.; ;SALDO Fatt.n. P2018/000006  del 25/01/2018 Bolletta Energia Elettrica relativa al periodo 01/11/2017 - 31/12/2017;08-05-2018;2174;0;269;1;Spese correnti;3;Acquisto di beni e servizi;2;Acquisto di servizi;5;Utenze e canoni;4;Energia elettrica;08-05-2018;
439;5;0;"101,99";"1.192,76";ODOARDO ZECCA S.r.l.; ;SALDO Fatt.n. P2018/000005  del 25/01/2018 Bolletta Energia Elettrica relativa al periodo 01/11/2017 - 31/12/2017;08-05-2018;2174;0;269;1;Spese correnti;3;Acquisto di beni e servizi;2;Acquisto di servizi;5;Utenze e canoni;4;Energia elettrica;08-05-2018;
439;6;0;"105,27";"1.192,76";ODOARDO ZECCA S.r.l.; ;SALDO Fatt.n. P2018/000007  del 25/01/2018 Bolletta Energia Elettrica relativa al periodo 01/11/2017 - 31/12/2017;08-05-2018;2174;0;269;1;Spese correnti;3;Acquisto di beni e servizi;2;Acquisto di servizi;5;Utenze e canoni;4;Energia elettrica;08-05-2018;
439;7;0;"175,28";"1.192,76";ODOARDO ZECCA S.r.l.; ;SALDO Fatt.n. P2018/000003  del 25/01/2018 Bolletta Energia Elettrica relativa al periodo 01/11/2017 - 31/12/2017;08-05-2018;2174;0;269;1;Spese correnti;3;Acquisto di beni e servizi;2;Acquisto di servizi;5;Utenze e canoni;4;Energia elettrica;08-05-2018;
439;8;0;"295,35";"1.192,76";ODOARDO ZECCA S.r.l.; ;SALDO Fatt.n. P2018/000008  del 25/01/2018 Bolletta Energia Elettrica relativa al periodo 01/12/2017 - 31/12/2017;08-05-2018;2174;0;269;1;Spese correnti;3;Acquisto di beni e servizi;2;Acquisto di servizi;5;Utenze e canoni;4;Energia elettrica;08-05-2018;
439;9;0;"295,94";"1.192,76";ODOARDO ZECCA S.r.l.; ;SALDO Fatt.n. P2018/000004  del 25/01/2018 Bolletta Energia Elettrica relativa al periodo 01/11/2017 - 31/12/2017;08-05-2018;2174;0;269;1;Spese correnti;3;Acquisto di beni e servizi;2;Acquisto di servizi;5;Utenze e canoni;4;Energia elettrica;08-05-2018;
440;1;0;"73,98";"1.139,72";ODOARDO ZECCA S.r.l.; ;SALDO Fatt.n. P2018/000013  del 25/01/2018 Bolletta Energia Elettrica relativa al periodo 01/12/2017 - 31/12/2017;08-05-2018;2124;0;71;1;Spese correnti;3;Acquisto di beni e servizi;2;Acquisto di servizi;5;Utenze e canoni;4;Energia elettrica;08-05-2018;
440;2;0;"83,96";"1.139,72";ODOARDO ZECCA S.r.l.; ;SALDO Fatt.n. P2018/000009  del 25/01/2018 Bolletta Energia Elettrica relativa al periodo 01/11/2017 - 31/12/2017;08-05-2018;2124;0;71;1;Spese correnti;3;Acquisto di beni e servizi;2;Acquisto di servizi;5;Utenze e canoni;4;Energia elettrica;08-05-2018;
440;3;0;"94,40";"1.139,72";ODOARDO ZECCA S.r.l.; ;SALDO Fatt.n. P2018/000011  del 25/01/2018 Bolletta Energia Elettrica relativa al periodo 01/11/2017 - 31/12/2017;08-05-2018;2124;0;71;1;Spese correnti;3;Acquisto di beni e servizi;2;Acquisto di servizi;5;Utenze e canoni;4;Energia elettrica;08-05-2018;
440;4;0;"115,85";"1.139,72";ODOARDO ZECCA S.r.l.; ;ACCONTO Fatt.n. P2018/000014  del 25/01/2018 Bolletta Energia Elettrica relativa al periodo 01/11/2017 - 31/12/2017;08-05-2018;2124;0;71;1;Spese correnti;3;Acquisto di beni e servizi;2;Acquisto di servizi;5;Utenze e canoni;4;Energia elettrica;08-05-2018;
440;5;0;"338,49";"1.139,72";ODOARDO ZECCA S.r.l.; ;SALDO Fatt.n. P2018/000012  del 25/01/2018 Bolletta Energia Elettrica relativa al periodo 01/11/2017 - 31/12/2017;08-05-2018;2124;0;71;1;Spese correnti;3;Acquisto di beni e servizi;2;Acquisto di servizi;5;Utenze e canoni;4;Energia elettrica;08-05-2018;
440;6;0;"433,04";"1.139,72";ODOARDO ZECCA S.r.l.; ;SALDO Fatt.n. P2018/000010  del 25/01/2018 Bolletta Energia Elettrica relativa al periodo 01/12/2017 - 31/12/2017;08-05-2018;2124;0;71;1;Spese correnti;3;Acquisto di beni e servizi;2;Acquisto di servizi;5;Utenze e canoni;4;Energia elettrica;08-05-2018;
441;1;0;"9,24";"1.123,70";ODOARDO ZECCA S.r.l.; ;SALDO Fatt.n. P2018/000014  del 25/01/2018 Bolletta Energia Elettrica relativa al periodo 01/11/2017 - 31/12/2017;08-05-2018;1344;0;69;1;Spese correnti;3;Acquisto di beni e servizi;2;Acquisto di servizi;5;Utenze e canoni;4;Energia elettrica;08-05-2018;
441;2;0;"53,78";"1.123,70";ODOARDO ZECCA S.r.l.; ;SALDO Fatt.n. P2018/000019  del 25/01/2018 Bolletta Energia Elettrica relativa al periodo 01/11/2017 - 31/12/2017;08-05-2018;1344;0;69;1;Spese correnti;3;Acquisto di beni e servizi;2;Acquisto di servizi;5;Utenze e canoni;4;Energia elettrica;08-05-2018;
441;3;0;"73,15";"1.123,70";ODOARDO ZECCA S.r.l.; ;SALDO Fatt.n. P2018/000018  del 25/01/2018 Bolletta Energia Elettrica relativa al periodo 01/11/2017 - 31/12/2017;08-05-2018;1344;0;69;1;Spese correnti;3;Acquisto di beni e servizi;2;Acquisto di servizi;5;Utenze e canoni;4;Energia elettrica;08-05-2018;
441;4;0;"74,22";"1.123,70";ODOARDO ZECCA S.r.l.; ;SALDO Fatt.n. P2018/000017  del 25/01/2018 Bolletta Energia Elettrica relativa al periodo 01/11/2017 - 31/12/2017;08-05-2018;1344;0;69;1;Spese correnti;3;Acquisto di beni e servizi;2;Acquisto di servizi;5;Utenze e canoni;4;Energia elettrica;08-05-2018;
441;5;0;"74,46";"1.123,70";ODOARDO ZECCA S.r.l.; ;SALDO Fatt.n. P2018/000016  del 25/01/2018 Bolletta Energia Elettrica relativa al periodo 01/11/2017 - 31/12/2017;08-05-2018;1344;0;69;1;Spese correnti;3;Acquisto di beni e servizi;2;Acquisto di servizi;5;Utenze e canoni;4;Energia elettrica;08-05-2018;
441;6;0;"104,02";"1.123,70";ODOARDO ZECCA S.r.l.; ;SALDO Fatt.n. P2018/000020  del 25/01/2018 Bolletta Energia Elettrica relativa al periodo 01/11/2017 - 31/12/2017;08-05-2018;1344;0;69;1;Spese correnti;3;Acquisto di beni e servizi;2;Acquisto di servizi;5;Utenze e canoni;4;Energia elettrica;08-05-2018;
441;7;0;"119,60";"1.123,70";ODOARDO ZECCA S.r.l.; ;SALDO Fatt.n. P2018/000021  del 25/01/2018 Bolletta Energia Elettrica relativa al periodo 01/11/2017 - 31/12/2017;08-05-2018;1344;0;69;1;Spese correnti;3;Acquisto di beni e servizi;2;Acquisto di servizi;5;Utenze e canoni;4;Energia elettrica;08-05-2018;
441;8;0;"217,07";"1.123,70";ODOARDO ZECCA S.r.l.; ;ACCONTO Fatt.n. P2018/000022  del 25/01/2018 Bolletta Energia Elettrica relativa al periodo 01/11/2017 - 31/12/2017;08-05-2018;1344;0;69;1;Spese correnti;3;Acquisto di beni e servizi;2;Acquisto di servizi;5;Utenze e canoni;4;Energia elettrica;08-05-2018;
441;9;0;"398,16";"1.123,70";ODOARDO ZECCA S.r.l.; ;SALDO Fatt.n. P2018/000015  del 25/01/2018 Bolletta Energia Elettrica relativa al periodo 01/11/2017 - 31/12/2017;08-05-2018;1344;0;69;1;Spese correnti;3;Acquisto di beni e servizi;2;Acquisto di servizi;5;Utenze e canoni;4;Energia elettrica;08-05-2018;
442;1;0;"23,00";"23,00";ODOARDO ZECCA S.r.l.;Z971FA1D86;ACCONTO Fatt.n. P2018/000022  del 25/01/2018 Bolletta Energia Elettrica relativa al periodo 01/11/2017 - 31/12/2017;08-05-2018;2014;0;179;1;Spese correnti;3;Acquisto di beni e servizi;2;Acquisto di servizi;5;Utenze e canoni;4;Energia elettrica;08-05-2018;
443;1;0;"216,84";"595,06";ODOARDO ZECCA S.r.l.; ;ACCONTO Fatt.n. P2018/000023  del 25/01/2018 Bolletta Energia Elettrica relativa al periodo 01/11/2017 - 31/12/2017;08-05-2018;1932;0;67;1;Spese correnti;3;Acquisto di beni e servizi;2;Acquisto di servizi;5;Utenze e canoni;4;Energia elettrica;08-05-2018;
443;2;0;"378,22";"595,06";ODOARDO ZECCA S.r.l.; ;SALDO Fatt.n. P2018/000022  del 25/01/2018 Bolletta Energia Elettrica relativa al periodo 01/11/2017 - 31/12/2017;08-05-2018;1932;0;67;1;Spese correnti;3;Acquisto di beni e servizi;2;Acquisto di servizi;5;Utenze e canoni;4;Energia elettrica;08-05-2018;
444;1;0;"155,09";"329,79";ODOARDO ZECCA S.r.l.; ;SALDO Fatt.n. P2018/000023  del 25/01/2018 Bolletta Energia Elettrica relativa al periodo 01/11/2017 - 31/12/2017;08-05-2018;1269;0;68;1;Spese correnti;3;Acquisto di beni e servizi;2;Acquisto di servizi;5;Utenze e canoni;4;Energia elettrica;08-05-2018;
444;2;0;"174,70";"329,79";ODOARDO ZECCA S.r.l.; ;ACCONTO Fatt.n. P2018/000024  del 25/01/2018 Bolletta Energia Elettrica relativa al periodo 01/12/2017 - 31/12/2017;08-05-2018;1269;0;68;1;Spese correnti;3;Acquisto di beni e servizi;2;Acquisto di servizi;5;Utenze e canoni;4;Energia elettrica;08-05-2018;
445;1;0;"95,72";"386,93";ODOARDO ZECCA S.r.l.; ;SALDO Fatt.n. P2018/000025  del 25/01/2018 Bolletta Energia Elettrica relativa al periodo 01/11/2017 - 31/12/2017;08-05-2018;1505;0;66;1;Spese correnti;3;Acquisto di beni e servizi;2;Acquisto di servizi;5;Utenze e canoni;4;Energia elettrica;08-05-2018;
445;2;0;"113,09";"386,93";ODOARDO ZECCA S.r.l.; ;ACCONTO Fatt.n. P2018/000026  del 25/01/2018 Bolletta Energia Elettrica relativa al periodo 01/12/2017 - 31/12/2017;08-05-2018;1505;0;66;1;Spese correnti;3;Acquisto di beni e servizi;2;Acquisto di servizi;5;Utenze e canoni;4;Energia elettrica;08-05-2018;
445;3;0;"178,12";"386,93";ODOARDO ZECCA S.r.l.; ;SALDO Fatt.n. P2018/000024  del 25/01/2018 Bolletta Energia Elettrica relativa al periodo 01/12/2017 - 31/12/2017;08-05-2018;1505;0;66;1;Spese correnti;3;Acquisto di beni e servizi;2;Acquisto di servizi;5;Utenze e canoni;4;Energia elettrica;08-05-2018;
446;1;0;"66,92";"511,61";ODOARDO ZECCA S.r.l.; ;ACCONTO Fatt.n. P2018/000027  del 25/01/2018 Bolletta Energia Elettrica relativa al periodo 01/11/2017 - 31/12/2017;08-05-2018;2006;0;65;1;Spese correnti;3;Acquisto di beni e servizi;2;Acquisto di servizi;5;Utenze e canoni;4;Energia elettrica;08-05-2018;
446;2;0;"444,69";"511,61";ODOARDO ZECCA S.r.l.; ;SALDO Fatt.n. P2018/000026  del 25/01/2018 Bolletta Energia Elettrica relativa al periodo 01/12/2017 - 31/12/2017;08-05-2018;2006;0;65;1;Spese correnti;3;Acquisto di beni e servizi;2;Acquisto di servizi;5;Utenze e canoni;4;Energia elettrica;08-05-2018;
447;1;0;"125,83";"484,21";ODOARDO ZECCA S.r.l.; ;SALDO Fatt.n. P2018/000028  del 25/01/2018 Bolletta Energia Elettrica relativa al periodo 01/11/2017 - 31/12/2017;08-05-2018;1479;0;64;1;Spese correnti;3;Acquisto di beni e servizi;2;Acquisto di servizi;5;Utenze e canoni;4;Energia elettrica;08-05-2018;
447;2;0;"129,21";"484,21";ODOARDO ZECCA S.r.l.; ;SALDO Fatt.n. P2018/000027  del 25/01/2018 Bolletta Energia Elettrica relativa al periodo 01/11/2017 - 31/12/2017;08-05-2018;1479;0;64;1;Spese correnti;3;Acquisto di beni e servizi;2;Acquisto di servizi;5;Utenze e canoni;4;Energia elettrica;08-05-2018;
447;3;0;"229,17";"484,21";ODOARDO ZECCA S.r.l.; ;ACCONTO Fatt.n. P2018/000029  del 25/01/2018 Bolletta Energia Elettrica relativa al periodo 01/11/2017 - 31/12/2017;08-05-2018;1479;0;64;1;Spese correnti;3;Acquisto di beni e servizi;2;Acquisto di servizi;5;Utenze e canoni;4;Energia elettrica;08-05-2018;
448;1;0;"16,90";"16,90";ODOARDO ZECCA S.r.l.; ;SALDO Fatt.n. P2018/000029  del 25/01/2018 Bolletta Energia Elettrica relativa al periodo 01/11/2017 - 31/12/2017;08-05-2018;2026;0;63;1;Spese correnti;3;Acquisto di beni e servizi;2;Acquisto di servizi;5;Utenze e canoni;4;Energia elettrica;08-05-2018;
449;1;0;"240,43";"240,43";S.A.S.I. S.p.A; ;SALDO Fatt.n. RFS-2017-0000000645  del 12/12/2017 Fornitura idrica - Periodo: 09.07.2016/07.07.2017;08-05-2018;2084;0;122;1;Spese correnti;3;Acquisto di beni e servizi;2;Acquisto di servizi;5;Utenze e canoni;5;Acqua;08-05-2018;
450;1;0;"177,56";"1.857,00";S.A.S.I. S.p.A; ;SALDO Fatt.n. RFS-2017-0000000703  del 12/12/2017 Fornitura idrica - Periodo: 09.07.2016/06.07.2017.;08-05-2018;1036;0;93;1;Spese correnti;3;Acquisto di beni e servizi;2;Acquisto di servizi;5;Utenze e canoni;5;Acqua;08-05-2018;
450;2;0;"323,16";"1.857,00";S.A.S.I. S.p.A; ;SALDO Fatt.n. RFS-2017-0000000695  del 12/12/2017 Fornitura idrica - Periodo: 08.12.2016/19.07.2017.;08-05-2018;1036;0;93;1;Spese correnti;3;Acquisto di beni e servizi;2;Acquisto di servizi;5;Utenze e canoni;5;Acqua;08-05-2018;
450;3;0;"381,41";"1.857,00";S.A.S.I. S.p.A; ;SALDO Fatt.n. RFS-2017-0000000788  del 12/12/2017 Fornitura idrica - Periodo: 28.07.2016/14.07.2017.;08-05-2018;1036;0;93;1;Spese correnti;3;Acquisto di beni e servizi;2;Acquisto di servizi;5;Utenze e canoni;5;Acqua;08-05-2018;
450;4;0;"974,87";"1.857,00";S.A.S.I. S.p.A; ;ACCONTO Fatt.n. RFS-2017-0000000694  del 12/12/2017 Fornitura idrica - Periodo: 21.07.2016/28.07.2017;08-05-2018;1036;0;93;1;Spese correnti;3;Acquisto di beni e servizi;2;Acquisto di servizi;5;Utenze e canoni;5;Acqua;08-05-2018;
451;1;0;"34,73";"200,00";S.A.S.I. S.p.A; ;ACCONTO Fatt.n. RFS-2018-0000000141  del 19/02/2018 Fornitura idrica- periodo: 20/07/2016-20/07/2017;08-05-2018;2006;0;120;1;Spese correnti;3;Acquisto di beni e servizi;2;Acquisto di servizi;5;Utenze e canoni;5;Acqua;08-05-2018;
451;2;0;"47,17";"200,00";S.A.S.I. S.p.A; ;SALDO Fatt.n. RFS-2018-0000000139  del 19/02/2018 Fornitura idrica- Periodo: 08/12/2016-17/07/2017;08-05-2018;2006;0;120;1;Spese correnti;3;Acquisto di beni e servizi;2;Acquisto di servizi;5;Utenze e canoni;5;Acqua;08-05-2018;
451;3;0;"57,47";"200,00";S.A.S.I. S.p.A; ;SALDO Fatt.n. RFS-2018-0000000140  del 19/02/2018 fornitura idrica - Periodo: 08/12/2016-07/07/2017;08-05-2018;2006;0;120;1;Spese correnti;3;Acquisto di beni e servizi;2;Acquisto di servizi;5;Utenze e canoni;5;Acqua;08-05-2018;
451;4;0;"60,63";"200,00";S.A.S.I. S.p.A; ;SALDO Fatt.n. RFS-2018-0000000138  del 19/02/2018 Fornitura idrica- periodo: 16/07/2016-13/07/2017;08-05-2018;2006;0;120;1;Spese correnti;3;Acquisto di beni e servizi;2;Acquisto di servizi;5;Utenze e canoni;5;Acqua;08-05-2018;
452;1;0;"26,15";"438,95";S.A.S.I. S.p.A; ;SALDO Fatt.n. RFS-2018-0000000141  del 19/02/2018 Fornitura idrica- periodo: 20/07/2016-20/07/2017;08-05-2018;1826;0;124;1;Spese correnti;3;Acquisto di beni e servizi;2;Acquisto di servizi;5;Utenze e canoni;5;Acqua;08-05-2018;
452;2;0;"47,17";"438,95";S.A.S.I. S.p.A; ;SALDO Fatt.n. RFS-2018-0000000147  del 19/02/2018 Fornitura idrica- Periodo: 08/12/2016-17/07/2017;08-05-2018;1826;0;124;1;Spese correnti;3;Acquisto di beni e servizi;2;Acquisto di servizi;5;Utenze e canoni;5;Acqua;08-05-2018;
452;3;0;"60,63";"438,95";S.A.S.I. S.p.A; ;SALDO Fatt.n. RFS-2018-0000000146  del 19/02/2018 Fornitura idrica - Periodo: 05/07/2016-03/07/2017.;08-05-2018;1826;0;124;1;Spese correnti;3;Acquisto di beni e servizi;2;Acquisto di servizi;5;Utenze e canoni;5;Acqua;08-05-2018;
452;4;0;"60,63";"438,95";S.A.S.I. S.p.A; ;SALDO Fatt.n. RFS-2018-0000000148  del 19/02/2018 Fornitura idrica - Periodo: 16/07/2016-13/07/2017;08-05-2018;1826;0;124;1;Spese correnti;3;Acquisto di beni e servizi;2;Acquisto di servizi;5;Utenze e canoni;5;Acqua;08-05-2018;
452;5;0;"69,75";"438,95";S.A.S.I. S.p.A; ;SALDO Fatt.n. RFS-2018-0000000145  del 19/02/2018 Fornitura idrica - Periodo: 05/07/2016-31/08/2017.;08-05-2018;1826;0;124;1;Spese correnti;3;Acquisto di beni e servizi;2;Acquisto di servizi;5;Utenze e canoni;5;Acqua;08-05-2018;
452;6;0;"76,98";"438,95";S.A.S.I. S.p.A; ;SALDO Fatt.n. RFS-2018-0000000142  del 19/02/2018 Fornitura idrica- Periodo: 09/07/2016-07/07/2017;08-05-2018;1826;0;124;1;Spese correnti;3;Acquisto di beni e servizi;2;Acquisto di servizi;5;Utenze e canoni;5;Acqua;08-05-2018;
452;7;0;"97,64";"438,95";S.A.S.I. S.p.A; ;ACCONTO Fatt.n. RFS-2017-0000000723  del 12/12/2017 Fornitura acqua potabile - Periodo: 07.02.2014/17.07.2017;08-05-2018;1826;0;124;1;Spese correnti;3;Acquisto di beni e servizi;2;Acquisto di servizi;5;Utenze e canoni;5;Acqua;08-05-2018;
453;1;0;"500,00";"500,00";S.A.S.I. S.p.A; ;ACCONTO Fatt.n. RFS-2017-0000000696  del 12/12/2017 Fornitura idrica - Periodo: 22.07.2016/27.07.2017;08-05-2018;1829;0;118;1;Spese correnti;3;Acquisto di beni e servizi;2;Acquisto di servizi;5;Utenze e canoni;5;Acqua;08-05-2018;
454;1;0;"1.179,14";"1.179,14";S.A.S.I. S.p.A; ;SALDO Fatt.n. RFS-2017-0000000693  del 12/12/2017 Fornitura idrica - Periodo: 06.07.2016/27.07.2017;08-05-2018;1656;0;115;1;Spese correnti;3;Acquisto di beni e servizi;2;Acquisto di servizi;5;Utenze e canoni;5;Acqua;08-05-2018;
455;1;0;"54,94";"291,12";S.A.S.I. S.p.A; ;SALDO Fatt.n. RFS-2017-0000000696  del 12/12/2017 Fornitura idrica - Periodo: 22.07.2016/27.07.2017;08-05-2018;1505;0;113;1;Spese correnti;3;Acquisto di beni e servizi;2;Acquisto di servizi;5;Utenze e canoni;5;Acqua;08-05-2018;
455;2;0;"93,22";"291,12";S.A.S.I. S.p.A; ;SALDO Fatt.n. RFS-2017-0000000710  del 12/12/2017 Fornitura idrica - Periodo: 22.07.2016/19.07.2017;08-05-2018;1505;0;113;1;Spese correnti;3;Acquisto di beni e servizi;2;Acquisto di servizi;5;Utenze e canoni;5;Acqua;08-05-2018;
455;3;0;"142,96";"291,12";S.A.S.I. S.p.A; ;SALDO Fatt.n. RFS-2017-0000000704  del 12/12/2017 Fornitura idrica - Periodo: 28.07.2016/17.07.2017;08-05-2018;1505;0;113;1;Spese correnti;3;Acquisto di beni e servizi;2;Acquisto di servizi;5;Utenze e canoni;5;Acqua;08-05-2018;
456;1;0;"100,00";"100,00";S.A.S.I. S.p.A; ;ACCONTO Fatt.n. RFS-2017-0000000723  del 12/12/2017 Fornitura acqua potabile - Periodo: 07.02.2014/17.07.2017;08-05-2018;1479;0;111;1;Spese correnti;3;Acquisto di beni e servizi;2;Acquisto di servizi;5;Utenze e canoni;5;Acqua;08-05-2018;
457;1;0;"700,00";"700,00";S.A.S.I. S.p.A; ;ACCONTO Fatt.n. RFS-2017-0000000723  del 12/12/2017 Fornitura acqua potabile - Periodo: 07.02.2014/17.07.2017;09-05-2018;1479;0;110;1;Spese correnti;3;Acquisto di beni e servizi;2;Acquisto di servizi;5;Utenze e canoni;5;Acqua;09-05-2018;
458;1;0;"760,00";"760,00";S.A.S.I. S.p.A; ;SALDO Fatt.n. RFS-2017-0000000694  del 12/12/2017 Fornitura idrica - Periodo: 21.07.2016/28.07.2017;09-05-2018;1387;0;108;1;Spese correnti;3;Acquisto di beni e servizi;2;Acquisto di servizi;5;Utenze e canoni;5;Acqua;09-05-2018;
459;1;0;"254,64";"1.205,17";S.A.S.I. S.p.A; ;SALDO Fatt.n. RFS-2017-0000000702  del 12/12/2017 Fornitura idrica - Periodo: 07.07.2016/04.07.2017;09-05-2018;1370;0;105;1;Spese correnti;3;Acquisto di beni e servizi;2;Acquisto di servizi;5;Utenze e canoni;5;Acqua;09-05-2018;
459;2;0;"315,44";"1.205,17";S.A.S.I. S.p.A; ;SALDO Fatt.n. RFS-2017-0000000698  del 12/12/2017 Fornitrua idrica - Periodo: 07.07.2016/06.07.2017;09-05-2018;1370;0;105;1;Spese correnti;3;Acquisto di beni e servizi;2;Acquisto di servizi;5;Utenze e canoni;5;Acqua;09-05-2018;
459;3;0;"635,09";"1.205,17";S.A.S.I. S.p.A; ;SALDO Fatt.n. RFS-2017-0000000701  del 12/12/2017 Fornitura idrica - Periodo: 08.122016/17.07.2017.;09-05-2018;1370;0;105;1;Spese correnti;3;Acquisto di beni e servizi;2;Acquisto di servizi;5;Utenze e canoni;5;Acqua;09-05-2018;
460;1;0;"26,29";"400,00";S.A.S.I. S.p.A; ;ACCONTO Fatt.n. RFS-2017-0000000723  del 12/12/2017 Fornitura acqua potabile - Periodo: 07.02.2014/17.07.2017;09-05-2018;1344;0;102;1;Spese correnti;3;Acquisto di beni e servizi;2;Acquisto di servizi;5;Utenze e canoni;5;Acqua;09-05-2018;
460;2;0;"373,71";"400,00";S.A.S.I. S.p.A; ;SALDO Fatt.n. RFS-2017-0000000789  del 12/12/2017 Fornitura idrica - Periodo: 05.07.2016/03.07.2017;09-05-2018;1344;0;102;1;Spese correnti;3;Acquisto di beni e servizi;2;Acquisto di servizi;5;Utenze e canoni;5;Acqua;09-05-2018;
461;1;0;"250,00";"250,00";S.A.S.I. S.p.A; ;ACCONTO Fatt.n. RFS-2017-0000000723  del 12/12/2017 Fornitura acqua potabile - Periodo: 07.02.2014/17.07.2017;09-05-2018;1269;0;99;1;Spese correnti;3;Acquisto di beni e servizi;2;Acquisto di servizi;5;Utenze e canoni;5;Acqua;09-05-2018;
462;1;0;"1.271,34";"1.271,34";S.A.S.I. S.p.A; ;ACCONTO Fatt.n. RFS-2017-0000000723  del 12/12/2017 Fornitura acqua potabile - Periodo: 07.02.2014/17.07.2017;09-05-2018;1370;0;59;1;Spese correnti;3;Acquisto di beni e servizi;2;Acquisto di servizi;5;Utenze e canoni;5;Acqua;09-05-2018;
463;1;0;"432,26";"432,26";S.A.S.I. S.p.A; ;SALDO Fatt.n. RFS-2017-0000000723  del 12/12/2017 Fornitura acqua potabile - Periodo: 07.02.2014/17.07.2017;09-05-2018;2026;0;63;1;Spese correnti;3;Acquisto di beni e servizi;2;Acquisto di servizi;5;Utenze e canoni;5;Acqua;09-05-2018;
464;1;0;"0,81";"45,99";TELECOM ITALIA S.p.a.;XO4132F1CE;SALDO Fatt.n. 4220718800002634  del 06/02/2018 Interessi di mora per ritardato pagamento;09-05-2018;1036;0;96;1;Spese correnti;3;Acquisto di beni e servizi;2;Acquisto di servizi;5;Utenze e canoni;1;Telefonia fissa;09-05-2018;
464;2;0;"1,17";"45,99";TELECOM ITALIA S.p.a.;XO4132F1CE;SALDO Fatt.n. 8P00019967  del 06/02/2018 Interessi di mora per ritardato pagamento;09-05-2018;1036;0;96;1;Spese correnti;3;Acquisto di beni e servizi;2;Acquisto di servizi;5;Utenze e canoni;1;Telefonia fissa;09-05-2018;
464;3;0;"3,66";"45,99";TELECOM ITALIA S.p.a.;XO4132F1CE;SALDO Fatt.n. 8P00066483  del 06/04/2018 Interessi per ritardato pagamento;09-05-2018;1036;0;96;1;Spese correnti;3;Acquisto di beni e servizi;2;Acquisto di servizi;5;Utenze e canoni;1;Telefonia fissa;09-05-2018;
464;4;0;"5,41";"45,99";TELECOM ITALIA S.p.a.;XO4132F1CE;SALDO Fatt.n. 8P00020041  del 06/02/2018 Interessi di mora per ritardato pagamento;09-05-2018;1036;0;96;1;Spese correnti;3;Acquisto di beni e servizi;2;Acquisto di servizi;5;Utenze e canoni;1;Telefonia fissa;09-05-2018;
464;5;0;"11,77";"45,99";TELECOM ITALIA S.p.a.;XO4132F1CE;SALDO Fatt.n. 8P00019990  del 06/02/2018 Interessi di mora per ritardato pagamento;09-05-2018;1036;0;96;1;Spese correnti;3;Acquisto di beni e servizi;2;Acquisto di servizi;5;Utenze e canoni;1;Telefonia fissa;09-05-2018;
464;6;0;"23,17";"45,99";TELECOM ITALIA S.p.a.;XO4132F1CE;SALDO Fatt.n. 4220718800009546  del 06/04/2018 Spese telefoniche 3BIM 2018;09-05-2018;1036;0;96;1;Spese correnti;3;Acquisto di beni e servizi;2;Acquisto di servizi;5;Utenze e canoni;1;Telefonia fissa;09-05-2018;
465;1;0;"-459,84";"5.921,10";SANGROSERVIZI SRL; ;SALDO Fatt.n. P2017/231  del 22/11/2017 BOLLETTA GAS RELATIVA AL PERIODO 11/04/2017 - 31/10/2017;09-05-2018;1036;0;94;1;Spese correnti;3;Acquisto di beni e servizi;2;Acquisto di servizi;5;Utenze e canoni;6;Gas;09-05-2018;
465;2;0;"-27,18";"5.921,10";SANGROSERVIZI SRL; ;SALDO Fatt.n. P2017/102  del 05/06/2017 BOLLETTA GAS RELATIVA AL PERIODO 29/12/2015 - 30/04/2017;09-05-2018;1036;0;94;1;Spese correnti;3;Acquisto di beni e servizi;2;Acquisto di servizi;5;Utenze e canoni;6;Gas;09-05-2018;
465;3;0;"-1,15";"5.921,10";SANGROSERVIZI SRL; ;SALDO Fatt.n. P2017/124  del 05/06/2017 BOLLETTA GAS RELATIVA AL PERIODO 10/05/2016 - 30/04/2017;09-05-2018;1036;0;94;1;Spese correnti;3;Acquisto di beni e servizi;2;Acquisto di servizi;5;Utenze e canoni;6;Gas;09-05-2018;
465;4;0;"8,55";"5.921,10";SANGROSERVIZI SRL; ;SALDO Fatt.n. P2017/249  del 22/11/2017 BOLLETTA GAS RELATIVA AL PERIODO 24/07/2017 - 23/10/2017;09-05-2018;1036;0;94;1;Spese correnti;3;Acquisto di beni e servizi;2;Acquisto di servizi;5;Utenze e canoni;6;Gas;09-05-2018;
465;5;0;"14,04";"5.921,10";SANGROSERVIZI SRL; ;SALDO Fatt.n. P2017/164  del 08/08/2017 BOLLETTA GAS RELATIVA AL PERIODO 11/01/2016 - 30/06/2017;09-05-2018;1036;0;94;1;Spese correnti;3;Acquisto di beni e servizi;2;Acquisto di servizi;5;Utenze e canoni;6;Gas;09-05-2018;
465;6;0;"18,12";"5.921,10";SANGROSERVIZI SRL; ;SALDO Fatt.n. P2017/246  del 22/11/2017 BOLLETTA GAS RELATIVA AL PERIODO 12/08/2017 - 23/10/2017;09-05-2018;1036;0;94;1;Spese correnti;3;Acquisto di beni e servizi;2;Acquisto di servizi;5;Utenze e canoni;6;Gas;09-05-2018;
465;7;0;"20,78";"5.921,10";SANGROSERVIZI SRL; ;SALDO Fatt.n. P2017/121  del 05/06/2017 BOLLETTA GAS RELATIVA AL PERIODO 10/05/2016 - 30/04/2017;09-05-2018;1036;0;94;1;Spese correnti;3;Acquisto di beni e servizi;2;Acquisto di servizi;5;Utenze e canoni;6;Gas;09-05-2018;
465;8;0;"20,80";"5.921,10";SANGROSERVIZI SRL; ;SALDO Fatt.n. P2017/79  del 03/04/2017 BOLLETTA GAS RELATIVA AL PERIODO 01/01/2017 - 28/02/2017;09-05-2018;1036;0;94;1;Spese correnti;3;Acquisto di beni e servizi;2;Acquisto di servizi;5;Utenze e canoni;6;Gas;09-05-2018;
465;9;0;"20,80";"5.921,10";SANGROSERVIZI SRL; ;SALDO Fatt.n. P2017/80  del 03/04/2017 BOLLETTA GAS RELATIVA AL PERIODO 01/01/2017 - 28/02/2017;09-05-2018;1036;0;94;1;Spese correnti;3;Acquisto di beni e servizi;2;Acquisto di servizi;5;Utenze e canoni;6;Gas;09-05-2018;
465;10;0;"20,80";"5.921,10";SANGROSERVIZI SRL; ;SALDO Fatt.n. P2017/122  del 05/06/2017 BOLLETTA GAS RELATIVA AL PERIODO 01/03/2017 - 30/04/2017;09-05-2018;1036;0;94;1;Spese correnti;3;Acquisto di beni e servizi;2;Acquisto di servizi;5;Utenze e canoni;6;Gas;09-05-2018;
465;11;0;"20,80";"5.921,10";SANGROSERVIZI SRL; ;SALDO Fatt.n. P2017/163  del 08/08/2017 BOLLETTA GAS RELATIVA AL PERIODO 01/05/2017 - 30/06/2017;09-05-2018;1036;0;94;1;Spese correnti;3;Acquisto di beni e servizi;2;Acquisto di servizi;5;Utenze e canoni;6;Gas;09-05-2018;
465;12;0;"20,80";"5.921,10";SANGROSERVIZI SRL; ;SALDO Fatt.n. P2017/153  del 08/08/2017 BOLLETTA GAS RELATIVA AL PERIODO 01/05/2017 - 30/06/2017;09-05-2018;1036;0;94;1;Spese correnti;3;Acquisto di beni e servizi;2;Acquisto di servizi;5;Utenze e canoni;6;Gas;09-05-2018;
465;13;0;"20,80";"5.921,10";SANGROSERVIZI SRL; ;SALDO Fatt.n. P2017/247  del 22/11/2017 BOLLETTA GAS RELATIVA AL PERIODO 01/09/2017 - 31/10/2017;09-05-2018;1036;0;94;1;Spese correnti;3;Acquisto di beni e servizi;2;Acquisto di servizi;5;Utenze e canoni;6;Gas;09-05-2018;
465;14;0;"21,20";"5.921,10";SANGROSERVIZI SRL; ;SALDO Fatt.n. P2017/206  del 11/10/2017 BOLLETTA GAS RELATIVA AL PERIODO 23/11/2016 - 31/08/2017;09-05-2018;1036;0;94;1;Spese correnti;3;Acquisto di beni e servizi;2;Acquisto di servizi;5;Utenze e canoni;6;Gas;09-05-2018;
465;15;0;"21,21";"5.921,10";SANGROSERVIZI SRL; ;SALDO Fatt.n. P2017/205  del 11/10/2017 BOLLETTA GAS RELATIVA AL PERIODO 20/10/2016 - 31/08/2017;09-05-2018;1036;0;94;1;Spese correnti;3;Acquisto di beni e servizi;2;Acquisto di servizi;5;Utenze e canoni;6;Gas;09-05-2018;
465;16;0;"28,04";"5.921,10";SANGROSERVIZI SRL; ;SALDO Fatt.n. P2017/207  del 11/10/2017 BOLLETTA GAS RELATIVA AL PERIODO 01/07/2017 - 31/08/2017;09-05-2018;1036;0;94;1;Spese correnti;3;Acquisto di beni e servizi;2;Acquisto di servizi;5;Utenze e canoni;6;Gas;09-05-2018;
465;17;0;"28,83";"5.921,10";SANGROSERVIZI SRL; ;SALDO Fatt.n. P2017/165  del 08/08/2017 BOLLETTA GAS RELATIVA AL PERIODO 01/05/2017 - 30/06/2017;09-05-2018;1036;0;94;1;Spese correnti;3;Acquisto di beni e servizi;2;Acquisto di servizi;5;Utenze e canoni;6;Gas;09-05-2018;
465;18;0;"32,05";"5.921,10";SANGROSERVIZI SRL; ;SALDO Fatt.n. P2017/166  del 08/08/2017 BOLLETTA GAS RELATIVA AL PERIODO 01/05/2017 - 30/06/2017;09-05-2018;1036;0;94;1;Spese correnti;3;Acquisto di beni e servizi;2;Acquisto di servizi;5;Utenze e canoni;6;Gas;09-05-2018;
465;19;0;"34,79";"5.921,10";SANGROSERVIZI SRL; ;SALDO Fatt.n. P2017/123  del 05/06/2017 BOLLETTA GAS RELATIVA AL PERIODO 01/03/2017 - 30/04/2017;09-05-2018;1036;0;94;1;Spese correnti;3;Acquisto di beni e servizi;2;Acquisto di servizi;5;Utenze e canoni;6;Gas;09-05-2018;
465;20;0;"36,28";"5.921,10";SANGROSERVIZI SRL; ;SALDO Fatt.n. P2016/240  del 23/12/2016 BOLLETTA GAS RELATIVA AL PERIODO 01/09/2016 - 31/10/2016;09-05-2018;1036;0;94;1;Spese correnti;3;Acquisto di beni e servizi;2;Acquisto di servizi;5;Utenze e canoni;6;Gas;09-05-2018;
465;21;0;"41,18";"5.921,10";SANGROSERVIZI SRL; ;SALDO Fatt.n. P2017/81  del 03/04/2017 BOLLETTA GAS RELATIVA AL PERIODO 01/01/2017 - 28/02/2017;09-05-2018;1036;0;94;1;Spese correnti;3;Acquisto di beni e servizi;2;Acquisto di servizi;5;Utenze e canoni;6;Gas;09-05-2018;
465;22;0;"41,62";"5.921,10";SANGROSERVIZI SRL; ;SALDO Fatt.n. P2017/239  del 22/11/2017 BOLLETTA GAS RELATIVA AL PERIODO 01/09/2017 - 31/10/2017;09-05-2018;1036;0;94;1;Spese correnti;3;Acquisto di beni e servizi;2;Acquisto di servizi;5;Utenze e canoni;6;Gas;09-05-2018;
465;23;0;"41,95";"5.921,10";SANGROSERVIZI SRL; ;SALDO Fatt.n. P2017/156  del 08/08/2017 BOLLETTA GAS RELATIVA AL PERIODO 01/05/2017 - 30/06/2017;09-05-2018;1036;0;94;1;Spese correnti;3;Acquisto di beni e servizi;2;Acquisto di servizi;5;Utenze e canoni;6;Gas;09-05-2018;
465;24;0;"46,04";"5.921,10";SANGROSERVIZI SRL; ;SALDO Fatt.n. P2017/82  del 03/04/2017 BOLLETTA GAS RELATIVA AL PERIODO 01/01/2017 - 28/02/2017;09-05-2018;1036;0;94;1;Spese correnti;3;Acquisto di beni e servizi;2;Acquisto di servizi;5;Utenze e canoni;6;Gas;09-05-2018;
465;25;0;"52,25";"5.921,10";SANGROSERVIZI SRL; ;SALDO Fatt.n. P2017/72  del 03/04/2017 BOLLETTA GAS RELATIVA AL PERIODO 01/01/2017 - 28/02/2017;09-05-2018;1036;0;94;1;Spese correnti;3;Acquisto di beni e servizi;2;Acquisto di servizi;5;Utenze e canoni;6;Gas;09-05-2018;
465;26;0;"52,51";"5.921,10";SANGROSERVIZI SRL; ;SALDO Fatt.n. P2017/198  del 11/10/2017 BOLLETTA GAS RELATIVA AL PERIODO 20/10/2016 - 31/08/2017;09-05-2018;1036;0;94;1;Spese correnti;3;Acquisto di beni e servizi;2;Acquisto di servizi;5;Utenze e canoni;6;Gas;09-05-2018;
465;27;0;"65,20";"5.921,10";SANGROSERVIZI SRL; ;SALDO Fatt.n. P2017/199  del 11/10/2017 BOLLETTA GAS RELATIVA AL PERIODO 01/07/2017 - 31/08/2017;09-05-2018;1036;0;94;1;Spese correnti;3;Acquisto di beni e servizi;2;Acquisto di servizi;5;Utenze e canoni;6;Gas;09-05-2018;
465;28;0;"70,87";"5.921,10";SANGROSERVIZI SRL; ;SALDO Fatt.n. P2017/157  del 08/08/2017 BOLLETTA GAS RELATIVA AL PERIODO 01/05/2017 - 30/06/2017;09-05-2018;1036;0;94;1;Spese correnti;3;Acquisto di beni e servizi;2;Acquisto di servizi;5;Utenze e canoni;6;Gas;09-05-2018;
465;29;0;"71,55";"5.921,10";SANGROSERVIZI SRL; ;SALDO Fatt.n. P2017/240  del 22/11/2017 BOLLETTA GAS RELATIVA AL PERIODO 01/09/2017 - 31/10/2017;09-05-2018;1036;0;94;1;Spese correnti;3;Acquisto di beni e servizi;2;Acquisto di servizi;5;Utenze e canoni;6;Gas;09-05-2018;
465;30;0;"76,04";"5.921,10";SANGROSERVIZI SRL; ;SALDO Fatt.n. P2017/186  del 11/10/2017 BOLLETTA GAS RELATIVA AL PERIODO 01/07/2017 - 31/08/2017;09-05-2018;1036;0;94;1;Spese correnti;3;Acquisto di beni e servizi;2;Acquisto di servizi;5;Utenze e canoni;6;Gas;09-05-2018;
465;31;0;"82,11";"5.921,10";SANGROSERVIZI SRL; ;SALDO Fatt.n. P2017/144  del 08/08/2017 BOLLETTA GAS RELATIVA AL PERIODO 01/05/2017 - 30/06/2017;09-05-2018;1036;0;94;1;Spese correnti;3;Acquisto di beni e servizi;2;Acquisto di servizi;5;Utenze e canoni;6;Gas;09-05-2018;
465;32;0;"83,15";"5.921,10";SANGROSERVIZI SRL; ;SALDO Fatt.n. P2017/114  del 05/06/2017 BOLLETTA GAS RELATIVA AL PERIODO 29/12/2015 - 30/04/2017;09-05-2018;1036;0;94;1;Spese correnti;3;Acquisto di beni e servizi;2;Acquisto di servizi;5;Utenze e canoni;6;Gas;09-05-2018;
465;33;0;"83,63";"5.921,10";SANGROSERVIZI SRL; ;SALDO Fatt.n. P2017/228  del 22/11/2017 BOLLETTA GAS RELATIVA AL PERIODO 01/09/2017 - 31/10/2017;09-05-2018;1036;0;94;1;Spese correnti;3;Acquisto di beni e servizi;2;Acquisto di servizi;5;Utenze e canoni;6;Gas;09-05-2018;
465;34;0;"88,01";"5.921,10";SANGROSERVIZI SRL; ;SALDO Fatt.n. P2017/248  del 22/11/2017 BOLLETTA GAS RELATIVA AL PERIODO 11/01/2016 - 31/10/2017;09-05-2018;1036;0;94;1;Spese correnti;3;Acquisto di beni e servizi;2;Acquisto di servizi;5;Utenze e canoni;6;Gas;09-05-2018;
465;35;0;"96,18";"5.921,10";SANGROSERVIZI SRL; ;SALDO Fatt.n. P2017/189  del 11/10/2017 BOLLETTA GAS RELATIVA AL PERIODO 01/07/2017 - 31/08/2017;09-05-2018;1036;0;94;1;Spese correnti;3;Acquisto di beni e servizi;2;Acquisto di servizi;5;Utenze e canoni;6;Gas;09-05-2018;
465;36;0;"97,02";"5.921,10";SANGROSERVIZI SRL; ;SALDO Fatt.n. P2017/208  del 11/10/2017 BOLLETTA GAS RELATIVA AL PERIODO 20/10/2016 - 31/08/2017;09-05-2018;1036;0;94;1;Spese correnti;3;Acquisto di beni e servizi;2;Acquisto di servizi;5;Utenze e canoni;6;Gas;09-05-2018;
465;37;0;"112,91";"5.921,10";SANGROSERVIZI SRL; ;SALDO Fatt.n. P2017/73  del 03/04/2017 BOLLETTA GAS RELATIVA AL PERIODO 01/01/2017 - 28/02/2017;09-05-2018;1036;0;94;1;Spese correnti;3;Acquisto di beni e servizi;2;Acquisto di servizi;5;Utenze e canoni;6;Gas;09-05-2018;
465;38;0;"132,72";"5.921,10";SANGROSERVIZI SRL; ;SALDO Fatt.n. P2017/192  del 11/10/2017 BOLLETTA GAS RELATIVA AL PERIODO 05/01/2016 - 31/08/2017;09-05-2018;1036;0;94;1;Spese correnti;3;Acquisto di beni e servizi;2;Acquisto di servizi;5;Utenze e canoni;6;Gas;09-05-2018;
465;39;0;"133,86";"5.921,10";SANGROSERVIZI SRL; ;SALDO Fatt.n. P2017/115  del 05/06/2017 BOLLETTA GAS RELATIVA AL PERIODO 08/01/2016 - 30/04/2017;09-05-2018;1036;0;94;1;Spese correnti;3;Acquisto di beni e servizi;2;Acquisto di servizi;5;Utenze e canoni;6;Gas;09-05-2018;
465;40;0;"139,02";"5.921,10";SANGROSERVIZI SRL; ;SALDO Fatt.n. P2017/60  del 03/04/2017 BOLLETTA GAS RELATIVA AL PERIODO 01/01/2017 - 28/02/2017;09-05-2018;1036;0;94;1;Spese correnti;3;Acquisto di beni e servizi;2;Acquisto di servizi;5;Utenze e canoni;6;Gas;09-05-2018;
465;41;0;"260,85";"5.921,10";SANGROSERVIZI SRL; ;SALDO Fatt.n. P2017/109  del 05/06/2017 BOLLETTA GAS RELATIVA AL PERIODO 06/10/2016 - 30/04/2017;09-05-2018;1036;0;94;1;Spese correnti;3;Acquisto di beni e servizi;2;Acquisto di servizi;5;Utenze e canoni;6;Gas;09-05-2018;
465;42;0;"708,95";"5.921,10";SANGROSERVIZI SRL; ;SALDO Fatt.n. P2017/193  del 11/10/2017 BOLLETTA GAS RELATIVA AL PERIODO 01/07/2017 - 31/08/2017;09-05-2018;1036;0;94;1;Spese correnti;3;Acquisto di beni e servizi;2;Acquisto di servizi;5;Utenze e canoni;6;Gas;09-05-2018;
465;43;0;"806,57";"5.921,10";SANGROSERVIZI SRL; ;SALDO Fatt.n. P2017/105  del 05/06/2017 BOLLETTA GAS RELATIVA AL PERIODO 01/03/2017 - 30/04/2017;09-05-2018;1036;0;94;1;Spese correnti;3;Acquisto di beni e servizi;2;Acquisto di servizi;5;Utenze e canoni;6;Gas;09-05-2018;
465;44;0;"1.029,79";"5.921,10";SANGROSERVIZI SRL; ;SALDO Fatt.n. P2017/63  del 03/04/2017 BOLLETTA GAS RELATIVA AL PERIODO 01/01/2017 - 28/02/2017;09-05-2018;1036;0;94;1;Spese correnti;3;Acquisto di beni e servizi;2;Acquisto di servizi;5;Utenze e canoni;6;Gas;09-05-2018;
465;45;0;"1.606,60";"5.921,10";SANGROSERVIZI SRL; ;SALDO Fatt.n. P2017/147  del 08/08/2017 BOLLETTA GAS RELATIVA AL PERIODO 06/10/2016 - 30/06/2017;09-05-2018;1036;0;94;1;Spese correnti;3;Acquisto di beni e servizi;2;Acquisto di servizi;5;Utenze e canoni;6;Gas;09-05-2018;
466;1;0;"20,80";"838,63";SANGROSERVIZI SRL; ;SALDO Fatt.n. P2017/70  del 03/04/2017 BOLLETTA GAS RELATIVA AL PERIODO 01/01/2017 - 28/02/2017;09-05-2018;1269;0;98;1;Spese correnti;3;Acquisto di beni e servizi;2;Acquisto di servizi;5;Utenze e canoni;6;Gas;09-05-2018;
466;2;0;"20,80";"838,63";SANGROSERVIZI SRL; ;SALDO Fatt.n. P2017/69  del 03/04/2017 BOLLETTA GAS RELATIVA AL PERIODO 01/01/2017 - 28/02/2017;09-05-2018;1269;0;98;1;Spese correnti;3;Acquisto di beni e servizi;2;Acquisto di servizi;5;Utenze e canoni;6;Gas;09-05-2018;
466;3;0;"20,80";"838,63";SANGROSERVIZI SRL; ;SALDO Fatt.n. P2017/111  del 05/06/2017 BOLLETTA GAS RELATIVA AL PERIODO 01/03/2017 - 30/04/2017;09-05-2018;1269;0;98;1;Spese correnti;3;Acquisto di beni e servizi;2;Acquisto di servizi;5;Utenze e canoni;6;Gas;09-05-2018;
466;4;0;"20,80";"838,63";SANGROSERVIZI SRL; ;SALDO Fatt.n. P2017/112  del 05/06/2017 BOLLETTA GAS RELATIVA AL PERIODO 01/03/2017 - 30/04/2017;09-05-2018;1269;0;98;1;Spese correnti;3;Acquisto di beni e servizi;2;Acquisto di servizi;5;Utenze e canoni;6;Gas;09-05-2018;
466;5;0;"20,80";"838,63";SANGROSERVIZI SRL; ;SALDO Fatt.n. P2017/154  del 08/08/2017 BOLLETTA GAS RELATIVA AL PERIODO 01/05/2017 - 30/06/2017;09-05-2018;1269;0;98;1;Spese correnti;3;Acquisto di beni e servizi;2;Acquisto di servizi;5;Utenze e canoni;6;Gas;09-05-2018;
466;6;0;"20,80";"838,63";SANGROSERVIZI SRL; ;SALDO Fatt.n. P2017/236  del 22/11/2017 BOLLETTA GAS RELATIVA AL PERIODO 01/09/2017 - 31/10/2017;09-05-2018;1269;0;98;1;Spese correnti;3;Acquisto di beni e servizi;2;Acquisto di servizi;5;Utenze e canoni;6;Gas;09-05-2018;
466;7;0;"20,80";"838,63";SANGROSERVIZI SRL; ;SALDO Fatt.n. P2017/237  del 22/11/2017 BOLLETTA GAS RELATIVA AL PERIODO 01/09/2017 - 31/10/2017;09-05-2018;1269;0;98;1;Spese correnti;3;Acquisto di beni e servizi;2;Acquisto di servizi;5;Utenze e canoni;6;Gas;09-05-2018;
466;8;0;"32,58";"838,63";SANGROSERVIZI SRL; ;SALDO Fatt.n. P2017/195  del 11/10/2017 BOLLETTA GAS RELATIVA AL PERIODO 08/01/2016 - 31/08/2017;09-05-2018;1269;0;98;1;Spese correnti;3;Acquisto di beni e servizi;2;Acquisto di servizi;5;Utenze e canoni;6;Gas;09-05-2018;
466;9;0;"660,45";"838,63";SANGROSERVIZI SRL; ;SALDO Fatt.n. P2017/196  del 11/10/2017 BOLLETTA GAS RELATIVA AL PERIODO 08/01/2016 - 31/08/2017;09-05-2018;1269;0;98;1;Spese correnti;3;Acquisto di beni e servizi;2;Acquisto di servizi;5;Utenze e canoni;6;Gas;09-05-2018;
467;1;0;"210,41";"1.767,23";SANGROSERVIZI SRL; ;SALDO Fatt.n. P2017/146  del 08/08/2017 BOLLETTA GAS RELATIVA AL PERIODO 01/05/2017 - 30/06/2017;09-05-2018;1344;0;101;1;Spese correnti;3;Acquisto di beni e servizi;2;Acquisto di servizi;5;Utenze e canoni;6;Gas;09-05-2018;
467;2;0;"218,49";"1.767,23";SANGROSERVIZI SRL; ;SALDO Fatt.n. P2017/230  del 22/11/2017 BOLLETTA GAS RELATIVA AL PERIODO 01/09/2017 - 31/10/2017;09-05-2018;1344;0;101;1;Spese correnti;3;Acquisto di beni e servizi;2;Acquisto di servizi;5;Utenze e canoni;6;Gas;09-05-2018;
467;3;0;"287,39";"1.767,23";SANGROSERVIZI SRL; ;SALDO Fatt.n. P2017/104  del 05/06/2017 BOLLETTA GAS RELATIVA AL PERIODO 29/12/2015 - 30/04/2017;09-05-2018;1344;0;101;1;Spese correnti;3;Acquisto di beni e servizi;2;Acquisto di servizi;5;Utenze e canoni;6;Gas;09-05-2018;
467;4;0;"441,66";"1.767,23";SANGROSERVIZI SRL; ;SALDO Fatt.n. P2017/62  del 03/04/2017 BOLLETTA GAS RELATIVA AL PERIODO 01/01/2017 - 28/02/2017;09-05-2018;1344;0;101;1;Spese correnti;3;Acquisto di beni e servizi;2;Acquisto di servizi;5;Utenze e canoni;6;Gas;09-05-2018;
467;5;0;"609,28";"1.767,23";SANGROSERVIZI SRL; ;SALDO Fatt.n. P2017/188  del 11/10/2017 BOLLETTA GAS RELATIVA AL PERIODO 20/10/2016 - 31/08/2017;09-05-2018;1344;0;101;1;Spese correnti;3;Acquisto di beni e servizi;2;Acquisto di servizi;5;Utenze e canoni;6;Gas;09-05-2018;
468;1;0;"-661,21";"6.151,28";SANGROSERVIZI SRL; ;SALDO Fatt.n. P2017/145  del 08/08/2017 BOLLETTA GAS RELATIVA AL PERIODO 05/10/2016 - 30/06/2017;09-05-2018;1370;0;104;1;Spese correnti;3;Acquisto di beni e servizi;2;Acquisto di servizi;5;Utenze e canoni;6;Gas;09-05-2018;
468;2;0;"81,75";"6.151,28";SANGROSERVIZI SRL; ;SALDO Fatt.n. P2017/187  del 11/10/2017 BOLLETTA GAS RELATIVA AL PERIODO 01/07/2017 - 31/08/2017;09-05-2018;1370;0;104;1;Spese correnti;3;Acquisto di beni e servizi;2;Acquisto di servizi;5;Utenze e canoni;6;Gas;09-05-2018;
468;3;0;"83,39";"6.151,28";SANGROSERVIZI SRL; ;SALDO Fatt.n. P2017/229  del 22/11/2017 BOLLETTA GAS RELATIVA AL PERIODO 30/06/2017 - 31/10/2017;09-05-2018;1370;0;104;1;Spese correnti;3;Acquisto di beni e servizi;2;Acquisto di servizi;5;Utenze e canoni;6;Gas;09-05-2018;
468;4;0;"86,57";"6.151,28";SANGROSERVIZI SRL; ;SALDO Fatt.n. P2017/103  del 05/06/2017 BOLLETTA GAS RELATIVA AL PERIODO 01/03/2017 - 30/04/2017;09-05-2018;1370;0;104;1;Spese correnti;3;Acquisto di beni e servizi;2;Acquisto di servizi;5;Utenze e canoni;6;Gas;09-05-2018;
468;5;0;"303,41";"6.151,28";SANGROSERVIZI SRL; ;SALDO Fatt.n. P2017/150  del 08/08/2017 BOLLETTA GAS RELATIVA AL PERIODO 01/05/2017 - 30/06/2017;09-05-2018;1370;0;104;1;Spese correnti;3;Acquisto di beni e servizi;2;Acquisto di servizi;5;Utenze e canoni;6;Gas;09-05-2018;
468;6;0;"303,74";"6.151,28";SANGROSERVIZI SRL; ;SALDO Fatt.n. P2017/234  del 22/11/2017 BOLLETTA GAS RELATIVA AL PERIODO 01/09/2017 - 31/10/2017;09-05-2018;1370;0;104;1;Spese correnti;3;Acquisto di beni e servizi;2;Acquisto di servizi;5;Utenze e canoni;6;Gas;09-05-2018;
468;7;0;"457,55";"6.151,28";SANGROSERVIZI SRL; ;SALDO Fatt.n. P2017/61  del 03/04/2017 BOLLETTA GAS RELATIVA AL PERIODO 01/01/2017 - 28/02/2017;09-05-2018;1370;0;104;1;Spese correnti;3;Acquisto di beni e servizi;2;Acquisto di servizi;5;Utenze e canoni;6;Gas;09-05-2018;
468;8;0;"477,70";"6.151,28";SANGROSERVIZI SRL; ;SALDO Fatt.n. P2017/108  del 05/06/2017 BOLLETTA GAS RELATIVA AL PERIODO 01/03/2017 - 30/04/2017;09-05-2018;1370;0;104;1;Spese correnti;3;Acquisto di beni e servizi;2;Acquisto di servizi;5;Utenze e canoni;6;Gas;09-05-2018;
468;9;0;"643,77";"6.151,28";SANGROSERVIZI SRL; ;SALDO Fatt.n. P2017/66  del 03/04/2017 BOLLETTA GAS RELATIVA AL PERIODO 01/01/2017 - 28/02/2017;09-05-2018;1370;0;104;1;Spese correnti;3;Acquisto di beni e servizi;2;Acquisto di servizi;5;Utenze e canoni;6;Gas;09-05-2018;
468;10;0;"776,74";"6.151,28";SANGROSERVIZI SRL; ;SALDO Fatt.n. P2017/235  del 22/11/2017 BOLLETTA GAS RELATIVA AL PERIODO 30/06/2017 - 31/10/2017;09-05-2018;1370;0;104;1;Spese correnti;3;Acquisto di beni e servizi;2;Acquisto di servizi;5;Utenze e canoni;6;Gas;09-05-2018;
468;11;0;"1.419,71";"6.151,28";SANGROSERVIZI SRL; ;SALDO Fatt.n. P2017/151  del 08/08/2017 BOLLETTA GAS RELATIVA AL PERIODO 24/04/2017 - 30/06/2017;09-05-2018;1370;0;104;1;Spese correnti;3;Acquisto di beni e servizi;2;Acquisto di servizi;5;Utenze e canoni;6;Gas;09-05-2018;
468;12;0;"2.178,16";"6.151,28";SANGROSERVIZI SRL; ;SALDO Fatt.n. P2017/67  del 03/04/2017 BOLLETTA GAS RELATIVA AL PERIODO 01/01/2017 - 28/02/2017;09-05-2018;1370;0;104;1;Spese correnti;3;Acquisto di beni e servizi;2;Acquisto di servizi;5;Utenze e canoni;6;Gas;09-05-2018;
469;1;0;"852,33";"5.341,03";SANGROSERVIZI SRL; ;SALDO Fatt.n. P2017/194  del 11/10/2017 Bolletta Gas relativa al periodo 01/07/2017 - 31/08/2017;09-05-2018;1387;0;107;1;Spese correnti;3;Acquisto di beni e servizi;2;Acquisto di servizi;5;Utenze e canoni;6;Gas;09-05-2018;
469;2;0;"966,89";"5.341,03";SANGROSERVIZI SRL; ;SALDO Fatt.n. P2017/152  del 08/08/2017 BOLLETTA GAS RELATIVA AL PERIODO 01/05/2017 - 30/06/2017;09-05-2018;1387;0;107;1;Spese correnti;3;Acquisto di beni e servizi;2;Acquisto di servizi;5;Utenze e canoni;6;Gas;09-05-2018;
469;3;0;"1.504,04";"5.341,03";SANGROSERVIZI SRL; ;SALDO Fatt.n. P2017/110  del 05/06/2017 BOLLETTA GAS RELATIVA AL PERIODO 01/03/2017 - 30/04/2017;09-05-2018;1387;0;107;1;Spese correnti;3;Acquisto di beni e servizi;2;Acquisto di servizi;5;Utenze e canoni;6;Gas;09-05-2018;
469;4;0;"2.017,77";"5.341,03";SANGROSERVIZI SRL; ;SALDO Fatt.n. P2017/68  del 03/04/2017 BOLLETTA GAS RELATIVA AL PERIODO 01/01/2017 - 28/02/2017;09-05-2018;1387;0;107;1;Spese correnti;3;Acquisto di beni e servizi;2;Acquisto di servizi;5;Utenze e canoni;6;Gas;09-05-2018;
470;1;0;"-168,83";"700,32";SANGROSERVIZI SRL; ;SALDO Fatt.n. P2017/200  del 11/10/2017 BOLLETTA GAS RELATIVA AL PERIODO 04/01/2016 - 31/08/2017;09-05-2018;1505;0;114;1;Spese correnti;3;Acquisto di beni e servizi;2;Acquisto di servizi;5;Utenze e canoni;6;Gas;09-05-2018;
470;2;0;"155,84";"700,32";SANGROSERVIZI SRL; ;SALDO Fatt.n. P2017/241  del 22/11/2017 BOLLETTA GAS RELATIVA AL PERIODO 01/09/2017 - 31/10/2017;09-05-2018;1505;0;114;1;Spese correnti;3;Acquisto di beni e servizi;2;Acquisto di servizi;5;Utenze e canoni;6;Gas;09-05-2018;
470;3;0;"156,75";"700,32";SANGROSERVIZI SRL; ;SALDO Fatt.n. P2017/158  del 08/08/2017 BOLLETTA GAS RELATIVA AL PERIODO 01/05/2017 - 30/06/2017;09-05-2018;1505;0;114;1;Spese correnti;3;Acquisto di beni e servizi;2;Acquisto di servizi;5;Utenze e canoni;6;Gas;09-05-2018;
470;4;0;"248,66";"700,32";SANGROSERVIZI SRL; ;SALDO Fatt.n. P2017/116  del 05/06/2017 BOLLETTA GAS RELATIVA AL PERIODO 01/03/2017 - 30/04/2017;09-05-2018;1505;0;114;1;Spese correnti;3;Acquisto di beni e servizi;2;Acquisto di servizi;5;Utenze e canoni;6;Gas;09-05-2018;
470;5;0;"307,90";"700,32";SANGROSERVIZI SRL; ;SALDO Fatt.n. P2017/74  del 03/04/2017 BOLLETTA GAS RELATIVA AL PERIODO 01/01/2017 - 28/02/2017;09-05-2018;1505;0;114;1;Spese correnti;3;Acquisto di beni e servizi;2;Acquisto di servizi;5;Utenze e canoni;6;Gas;09-05-2018;
471;1;0;"-849,87";"1.838,76";SANGROSERVIZI SRL; ;SALDO Fatt.n. P2017/155  del 08/08/2017 BOLLETTA GAS RELATIVA AL PERIODO 07/01/2016 - 30/06/2017;09-05-2018;1829;0;117;1;Spese correnti;3;Acquisto di beni e servizi;2;Acquisto di servizi;5;Utenze e canoni;6;Gas;09-05-2018;
471;2;0;"166,59";"1.838,76";SANGROSERVIZI SRL; ;SALDO Fatt.n. P2017/197  del 11/10/2017 BOLLETTA GAS RELATIVA AL PERIODO 01/07/2017 - 31/08/2017;09-05-2018;1829;0;117;1;Spese correnti;3;Acquisto di beni e servizi;2;Acquisto di servizi;5;Utenze e canoni;6;Gas;09-05-2018;
471;3;0;"179,24";"1.838,76";SANGROSERVIZI SRL; ;SALDO Fatt.n. P2017/191  del 11/10/2017 BOLLETTA GAS RELATIVA AL PERIODO 01/07/2017 - 31/08/2017;09-05-2018;1829;0;117;1;Spese correnti;3;Acquisto di beni e servizi;2;Acquisto di servizi;5;Utenze e canoni;6;Gas;09-05-2018;
471;4;0;"199,38";"1.838,76";SANGROSERVIZI SRL; ;SALDO Fatt.n. P2017/149  del 08/08/2017 BOLLETTA GAS RELATIVA AL PERIODO 01/05/2017 - 30/06/2017;09-05-2018;1829;0;117;1;Spese correnti;3;Acquisto di beni e servizi;2;Acquisto di servizi;5;Utenze e canoni;6;Gas;09-05-2018;
471;5;0;"204,51";"1.838,76";SANGROSERVIZI SRL; ;SALDO Fatt.n. P2017/233  del 22/11/2017 BOLLETTA GAS RELATIVA AL PERIODO 01/09/2017 - 31/10/2017;09-05-2018;1829;0;117;1;Spese correnti;3;Acquisto di beni e servizi;2;Acquisto di servizi;5;Utenze e canoni;6;Gas;09-05-2018;
471;6;0;"228,81";"1.838,76";SANGROSERVIZI SRL; ;SALDO Fatt.n. P2017/238  del 22/11/2017 BOLLETTA GAS RELATIVA AL PERIODO 30/06/2017 - 31/10/2017;09-05-2018;1829;0;117;1;Spese correnti;3;Acquisto di beni e servizi;2;Acquisto di servizi;5;Utenze e canoni;6;Gas;09-05-2018;
471;7;0;"322,40";"1.838,76";SANGROSERVIZI SRL; ;SALDO Fatt.n. P2017/107  del 05/06/2017 BOLLETTA GAS RELATIVA AL PERIODO 01/03/2017 - 30/04/2017;09-05-2018;1829;0;117;1;Spese correnti;3;Acquisto di beni e servizi;2;Acquisto di servizi;5;Utenze e canoni;6;Gas;09-05-2018;
471;8;0;"415,18";"1.838,76";SANGROSERVIZI SRL; ;SALDO Fatt.n. P2017/65  del 03/04/2017 BOLLETTA GAS RELATIVA AL PERIODO 01/01/2017 - 28/02/2017;09-05-2018;1829;0;117;1;Spese correnti;3;Acquisto di beni e servizi;2;Acquisto di servizi;5;Utenze e canoni;6;Gas;09-05-2018;
471;9;0;"429,45";"1.838,76";SANGROSERVIZI SRL; ;SALDO Fatt.n. P2017/113  del 05/06/2017 BOLLETTA GAS RELATIVA AL PERIODO 01/03/2017 - 30/04/2017;09-05-2018;1829;0;117;1;Spese correnti;3;Acquisto di beni e servizi;2;Acquisto di servizi;5;Utenze e canoni;6;Gas;09-05-2018;
471;10;0;"543,07";"1.838,76";SANGROSERVIZI SRL; ;SALDO Fatt.n. P2017/71  del 03/04/2017 BOLLETTA GAS RELATIVA AL PERIODO 01/01/2017 - 28/02/2017;09-05-2018;1829;0;117;1;Spese correnti;3;Acquisto di beni e servizi;2;Acquisto di servizi;5;Utenze e canoni;6;Gas;09-05-2018;
472;1;0;"-108,36";"277,90";SANGROSERVIZI SRL; ;SALDO Fatt.n. P2017/106  del 05/06/2017 BOLLETTA GAS RELATIVA AL PERIODO 08/01/2016 - 30/04/2017;09-05-2018;2006;0;119;1;Spese correnti;3;Acquisto di beni e servizi;2;Acquisto di servizi;5;Utenze e canoni;6;Gas;09-05-2018;
472;2;0;"79,32";"277,90";SANGROSERVIZI SRL; ;SALDO Fatt.n. P2017/148  del 08/08/2017 BOLLETTA GAS RELATIVA AL PERIODO 01/05/2017 - 30/06/2017;09-05-2018;2006;0;119;1;Spese correnti;3;Acquisto di beni e servizi;2;Acquisto di servizi;5;Utenze e canoni;6;Gas;09-05-2018;
472;3;0;"81,45";"277,90";SANGROSERVIZI SRL; ;SALDO Fatt.n. P2017/232  del 22/11/2017 BOLLETTA GAS RELATIVA AL PERIODO 01/09/2017 - 31/10/2017;09-05-2018;2006;0;119;1;Spese correnti;3;Acquisto di beni e servizi;2;Acquisto di servizi;5;Utenze e canoni;6;Gas;09-05-2018;
472;4;0;"93,72";"277,90";SANGROSERVIZI SRL; ;SALDO Fatt.n. P2017/190  del 11/10/2017 BOLLETTA GAS RELATIVA AL PERIODO 15/12/2016 - 31/08/2017;09-05-2018;2006;0;119;1;Spese correnti;3;Acquisto di beni e servizi;2;Acquisto di servizi;5;Utenze e canoni;6;Gas;09-05-2018;
472;5;0;"131,77";"277,90";SANGROSERVIZI SRL; ;SALDO Fatt.n. P2017/64  del 03/04/2017 BOLLETTA GAS RELATIVA AL PERIODO 01/01/2017 - 28/02/2017;09-05-2018;2006;0;119;1;Spese correnti;3;Acquisto di beni e servizi;2;Acquisto di servizi;5;Utenze e canoni;6;Gas;09-05-2018;
474;1;0;"42,85";"1.162,97";ODOARDO ZECCA S.r.l.; ;SALDO Fatt.n. P2018/000074  del 23/04/2018 Bolletta Energia Elettrica relativa al periodo 01/01/2018 - 31/03/2018;09-05-2018;1826;0;112;1;Spese correnti;3;Acquisto di beni e servizi;2;Acquisto di servizi;5;Utenze e canoni;4;Energia elettrica;09-05-2018;
474;2;0;"60,59";"1.162,97";ODOARDO ZECCA S.r.l.; ;SALDO Fatt.n. P2018/000054  del 26/03/2018 Bolletta Energia Elettrica relativa al periodo 01/02/2018 - 28/02/2018;09-05-2018;1826;0;112;1;Spese correnti;3;Acquisto di beni e servizi;2;Acquisto di servizi;5;Utenze e canoni;4;Energia elettrica;09-05-2018;
474;3;0;"64,42";"1.162,97";ODOARDO ZECCA S.r.l.; ;SALDO Fatt.n. P2018/000039  del 23/02/2018 Bolletta Energia Elettrica relativa al periodo 01/01/2018 - 31/01/2018;09-05-2018;1826;0;112;1;Spese correnti;3;Acquisto di beni e servizi;2;Acquisto di servizi;5;Utenze e canoni;4;Energia elettrica;09-05-2018;
474;4;0;"308,95";"1.162,97";ODOARDO ZECCA S.r.l.; ;SALDO Fatt.n. P2018/000049  del 26/03/2018 Bolletta Energia Elettrica relativa al periodo 01/02/2018 - 28/02/2018;09-05-2018;1826;0;112;1;Spese correnti;3;Acquisto di beni e servizi;2;Acquisto di servizi;5;Utenze e canoni;4;Energia elettrica;09-05-2018;
474;5;0;"311,77";"1.162,97";ODOARDO ZECCA S.r.l.; ;SALDO Fatt.n. P2018/000072  del 23/04/2018 Bolletta Energia Elettrica relativa al periodo 01/03/2018 - 31/03/2018;09-05-2018;1826;0;112;1;Spese correnti;3;Acquisto di beni e servizi;2;Acquisto di servizi;5;Utenze e canoni;4;Energia elettrica;09-05-2018;
474;6;0;"374,39";"1.162,97";ODOARDO ZECCA S.r.l.; ;SALDO Fatt.n. P2018/000037  del 23/02/2018 Bolletta Energia Elettrica relativa al periodo 01/01/2018 - 31/01/2018;09-05-2018;1826;0;112;1;Spese correnti;3;Acquisto di beni e servizi;2;Acquisto di servizi;5;Utenze e canoni;4;Energia elettrica;09-05-2018;
475;1;0;"187,69";"187,69";ODOARDO ZECCA S.r.l.; ;ACCONTO Fatt.n. P2016/000165  del 26/04/2016 Bolletta Energia Elettrica relativa al periodo 01/03/2016 - 31/03/2016;09-05-2018;1826;0;60;1;Spese correnti;3;Acquisto di beni e servizi;2;Acquisto di servizi;5;Utenze e canoni;4;Energia elettrica;09-05-2018;
476;1;0;"54,79";"136,81";ODOARDO ZECCA S.r.l.; ;SALDO Fatt.n. P2016/000352  del 28/12/2016 Bolletta Energia Elettrica relativa al periodo 01/11/2016 - 30/11/2016;09-05-2018;1829;0;117;1;Spese correnti;3;Acquisto di beni e servizi;2;Acquisto di servizi;5;Utenze e canoni;4;Energia elettrica;09-05-2018;
476;2;0;"82,02";"136,81";ODOARDO ZECCA S.r.l.; ;SALDO Fatt.n. P2016/000165  del 26/04/2016 Bolletta Energia Elettrica relativa al periodo 01/03/2016 - 31/03/2016;09-05-2018;1829;0;117;1;Spese correnti;3;Acquisto di beni e servizi;2;Acquisto di servizi;5;Utenze e canoni;4;Energia elettrica;09-05-2018;
477;1;0;"668,78";"668,78";ODOARDO ZECCA S.r.l.; ;SALDO Fatt.n. P2018/000063  del 26/03/2018 Bolletta Energia Elettrica relativa al periodo 01/01/2018 - 28/02/2018;09-05-2018;1829;0;113;1;Spese correnti;3;Acquisto di beni e servizi;2;Acquisto di servizi;5;Utenze e canoni;4;Energia elettrica;09-05-2018;
478;1;0;"308,77";"308,77";ODOARDO ZECCA S.r.l.; ;SALDO Fatt.n. P2016/000349  del 28/12/2016 Bolletta Energia Elettrica relativa al periodo 01/11/2016 - 30/11/2016;09-05-2018;1829;0;117;1;Spese correnti;3;Acquisto di beni e servizi;2;Acquisto di servizi;5;Utenze e canoni;6;Gas;09-05-2018;
479;1;0;"295,35";"295,35";ODOARDO ZECCA S.r.l.; ;SALDO Fatt.n. P2018/000045  del 26/03/2018 Bolletta Energia Elettrica relativa al periodo 01/01/2018 - 28/02/2018;09-05-2018;2006;0;115;1;Spese correnti;3;Acquisto di beni e servizi;2;Acquisto di servizi;5;Utenze e canoni;4;Energia elettrica;09-05-2018;
480;1;0;"88,06";"88,06";ODOARDO ZECCA S.r.l.; ;SALDO Fatt.n. P2018/000046  del 26/03/2018 Bolletta Energia Elettrica relativa al periodo 01/01/2018 - 28/02/2018;09-05-2018;1479;0;109;1;Spese correnti;3;Acquisto di beni e servizi;2;Acquisto di servizi;5;Utenze e canoni;4;Energia elettrica;09-05-2018;
481;1;0;"67,62";"1.605,58";ODOARDO ZECCA S.r.l.; ;SALDO Fatt.n. P2018/000059  del 26/03/2018 Bolletta Energia Elettrica relativa al periodo 01/01/2018 - 28/02/2018;09-05-2018;1370;0;107;1;Spese correnti;3;Acquisto di beni e servizi;2;Acquisto di servizi;5;Utenze e canoni;4;Energia elettrica;09-05-2018;
481;2;0;"326,92";"1.605,58";ODOARDO ZECCA S.r.l.; ;SALDO Fatt.n. P2018/000064  del 26/03/2018 Bolletta Energia Elettrica relativa al periodo 01/01/2018 - 28/02/2018;09-05-2018;1370;0;107;1;Spese correnti;3;Acquisto di beni e servizi;2;Acquisto di servizi;5;Utenze e canoni;4;Energia elettrica;09-05-2018;
481;3;0;"391,77";"1.605,58";ODOARDO ZECCA S.r.l.; ;SALDO Fatt.n. P2018/000065  del 26/03/2018 Bolletta Energia Elettrica relativa al periodo 01/02/2018 - 28/02/2018;09-05-2018;1370;0;107;1;Spese correnti;3;Acquisto di beni e servizi;2;Acquisto di servizi;5;Utenze e canoni;4;Energia elettrica;09-05-2018;
481;4;0;"406,20";"1.605,58";ODOARDO ZECCA S.r.l.; ;SALDO Fatt.n. P2018/000075  del 23/04/2018 Bolletta Energia Elettrica relativa al periodo 01/03/2018 - 31/03/2018;09-05-2018;1370;0;107;1;Spese correnti;3;Acquisto di beni e servizi;2;Acquisto di servizi;5;Utenze e canoni;4;Energia elettrica;09-05-2018;
481;5;0;"413,07";"1.605,58";ODOARDO ZECCA S.r.l.; ;SALDO Fatt.n. P2018/000040  del 23/02/2018 Bolletta Energia Elettrica relativa al periodo 01/01/2018 - 31/01/2018;09-05-2018;1370;0;107;1;Spese correnti;3;Acquisto di beni e servizi;2;Acquisto di servizi;5;Utenze e canoni;4;Energia elettrica;09-05-2018;
482;1;0;"144,03";"144,03";ODOARDO ZECCA S.r.l.; ;SALDO Fatt.n. P2018/000044  del 26/03/2018 Bolletta Energia Elettrica relativa al periodo 01/01/2018 - 28/02/2018;09-05-2018;2084;0;116;1;Spese correnti;3;Acquisto di beni e servizi;2;Acquisto di servizi;5;Utenze e canoni;4;Energia elettrica;09-05-2018;
483;1;0;"270,93";"270,93";ODOARDO ZECCA S.r.l.; ;SALDO Fatt.n. P2018/000070  del 26/03/2018 Bolletta Energia Elettrica relativa al periodo 01/01/2018 - 28/02/2018;09-05-2018;1505;0;110;1;Spese correnti;3;Acquisto di beni e servizi;2;Acquisto di servizi;5;Utenze e canoni;4;Energia elettrica;09-05-2018;
484;1;0;"68,65";"68,65";ODOARDO ZECCA S.r.l.; ;SALDO Fatt.n. P2018/000042  del 26/03/2018 Bolletta Energia Elettrica relativa al periodo 01/01/2018 - 28/02/2018;09-05-2018;1269;0;105;1;Spese correnti;3;Acquisto di beni e servizi;2;Acquisto di servizi;5;Utenze e canoni;4;Energia elettrica;09-05-2018;
485;1;0;"104,52";"104,52";ODOARDO ZECCA S.r.l.; ;SALDO Fatt.n. P2018/000061  del 26/03/2018 Bolletta Energia Elettrica relativa al periodo 01/01/2018 - 28/02/2018;09-05-2018;1932;0;114;1;Spese correnti;3;Acquisto di beni e servizi;2;Acquisto di servizi;5;Utenze e canoni;4;Energia elettrica;09-05-2018;
486;1;0;"330,32";"1.022,12";ODOARDO ZECCA S.r.l.; ;SALDO Fatt.n. P2018/000073  del 23/04/2018 Bolletta Energia Elettrica relativa al periodo 01/03/2018 - 31/03/2018;09-05-2018;1387;0;108;1;Spese correnti;3;Acquisto di beni e servizi;2;Acquisto di servizi;5;Utenze e canoni;4;Energia elettrica;09-05-2018;
486;2;0;"342,61";"1.022,12";ODOARDO ZECCA S.r.l.; ;SALDO Fatt.n. P2018/000038  del 23/02/2018 Bolletta Energia Elettrica relativa al periodo 01/01/2018 - 31/01/2018;09-05-2018;1387;0;108;1;Spese correnti;3;Acquisto di beni e servizi;2;Acquisto di servizi;5;Utenze e canoni;4;Energia elettrica;09-05-2018;
486;3;0;"349,19";"1.022,12";ODOARDO ZECCA S.r.l.; ;SALDO Fatt.n. P2018/000051  del 26/03/2018 Bolletta Energia Elettrica relativa al periodo 01/02/2018 - 28/02/2018;09-05-2018;1387;0;108;1;Spese correnti;3;Acquisto di beni e servizi;2;Acquisto di servizi;5;Utenze e canoni;4;Energia elettrica;09-05-2018;
487;1;0;"72,09";"200,14";ODOARDO ZECCA S.r.l.; ;SALDO Fatt.n. P2018/000060  del 26/03/2018 Bolletta Energia Elettrica relativa al periodo 01/01/2018 - 28/02/2018;09-05-2018;1656;0;111;1;Spese correnti;3;Acquisto di beni e servizi;2;Acquisto di servizi;5;Utenze e canoni;4;Energia elettrica;09-05-2018;
487;2;0;"128,05";"200,14";ODOARDO ZECCA S.r.l.; ;SALDO Fatt.n. P2018/000048  del 26/03/2018 Bolletta Energia Elettrica relativa al periodo 01/01/2018 - 28/02/2018;09-05-2018;1656;0;111;1;Spese correnti;3;Acquisto di beni e servizi;2;Acquisto di servizi;5;Utenze e canoni;4;Energia elettrica;09-05-2018;
488;1;0;"199,72";"550,34";ODOARDO ZECCA S.r.l.; ;SALDO Fatt.n. P2018/000068  del 26/03/2018 Bolletta Energia Elettrica relativa al periodo 01/01/2018 - 28/02/2018;09-05-2018;1344;0;106;1;Spese correnti;3;Acquisto di beni e servizi;2;Acquisto di servizi;5;Utenze e canoni;4;Energia elettrica;09-05-2018;
488;2;0;"350,62";"550,34";ODOARDO ZECCA S.r.l.; ;SALDO Fatt.n. P2018/000053  del 26/03/2018 Bolletta Energia Elettrica relativa al periodo 01/01/2018 - 28/02/2018;09-05-2018;1344;0;106;1;Spese correnti;3;Acquisto di beni e servizi;2;Acquisto di servizi;5;Utenze e canoni;4;Energia elettrica;09-05-2018;
489;1;0;"67,62";"591,34";ODOARDO ZECCA S.r.l.; ;SALDO Fatt.n. P2018/000057  del 26/03/2018 Bolletta Energia Elettrica relativa al periodo 01/01/2018 - 28/02/2018;09-05-2018;2124;0;117;1;Spese correnti;3;Acquisto di beni e servizi;2;Acquisto di servizi;5;Utenze e canoni;4;Energia elettrica;09-05-2018;
489;2;0;"67,62";"591,34";ODOARDO ZECCA S.r.l.; ;SALDO Fatt.n. P2018/000058  del 26/03/2018 Bolletta Energia Elettrica relativa al periodo 01/01/2018 - 28/02/2018;09-05-2018;2124;0;117;1;Spese correnti;3;Acquisto di beni e servizi;2;Acquisto di servizi;5;Utenze e canoni;4;Energia elettrica;09-05-2018;
489;3;0;"109,47";"591,34";ODOARDO ZECCA S.r.l.; ;SALDO Fatt.n. P2018/000052  del 26/03/2018 Bolletta Energia Elettrica relativa al periodo 01/01/2018 - 28/02/2018;09-05-2018;2124;0;117;1;Spese correnti;3;Acquisto di beni e servizi;2;Acquisto di servizi;5;Utenze e canoni;4;Energia elettrica;09-05-2018;
489;4;0;"113,00";"591,34";ODOARDO ZECCA S.r.l.; ;SALDO Fatt.n. P2018/000069  del 26/03/2018 Bolletta Energia Elettrica relativa al periodo 01/01/2018 - 28/02/2018;09-05-2018;2124;0;117;1;Spese correnti;3;Acquisto di beni e servizi;2;Acquisto di servizi;5;Utenze e canoni;4;Energia elettrica;09-05-2018;
489;5;0;"113,70";"591,34";ODOARDO ZECCA S.r.l.; ;SALDO Fatt.n. P2018/000062  del 26/03/2018 Bolletta Energia Elettrica relativa al periodo 01/01/2018 - 28/02/2018;09-05-2018;2124;0;117;1;Spese correnti;3;Acquisto di beni e servizi;2;Acquisto di servizi;5;Utenze e canoni;4;Energia elettrica;09-05-2018;
489;6;0;"119,93";"591,34";ODOARDO ZECCA S.r.l.; ;SALDO Fatt.n. P2018/000055  del 26/03/2018 Bolletta Energia Elettrica relativa al periodo 01/01/2018 - 28/02/2018;09-05-2018;2124;0;117;1;Spese correnti;3;Acquisto di beni e servizi;2;Acquisto di servizi;5;Utenze e canoni;4;Energia elettrica;09-05-2018;
490;1;0;"67,62";"1.903,27";ODOARDO ZECCA S.r.l.; ;SALDO Fatt.n. P2018/000047  del 26/03/2018 Bolletta Energia Elettrica relativa al periodo 01/01/2018 - 28/02/2018;09-05-2018;1036;0;104;1;Spese correnti;3;Acquisto di beni e servizi;2;Acquisto di servizi;5;Utenze e canoni;4;Energia elettrica;09-05-2018;
490;2;0;"74,94";"1.903,27";ODOARDO ZECCA S.r.l.; ;SALDO Fatt.n. P2018/000066  del 26/03/2018 Bolletta Energia Elettrica relativa al periodo 01/11/2016 - 28/02/2018;09-05-2018;1036;0;104;1;Spese correnti;3;Acquisto di beni e servizi;2;Acquisto di servizi;5;Utenze e canoni;4;Energia elettrica;09-05-2018;
490;3;0;"572,62";"1.903,27";ODOARDO ZECCA S.r.l.; ;SALDO Fatt.n. P2018/000041  del 23/02/2018 Bolletta Energia Elettrica relativa al periodo 01/01/2018 - 31/01/2018;09-05-2018;1036;0;104;1;Spese correnti;3;Acquisto di beni e servizi;2;Acquisto di servizi;5;Utenze e canoni;4;Energia elettrica;09-05-2018;
490;4;0;"587,04";"1.903,27";ODOARDO ZECCA S.r.l.; ;SALDO Fatt.n. P2018/000076  del 23/04/2018 Bolletta Energia Elettrica relativa al periodo 01/03/2018 - 31/03/2018;09-05-2018;1036;0;104;1;Spese correnti;3;Acquisto di beni e servizi;2;Acquisto di servizi;5;Utenze e canoni;4;Energia elettrica;09-05-2018;
490;5;0;"601,05";"1.903,27";ODOARDO ZECCA S.r.l.; ;SALDO Fatt.n. P2018/000067  del 26/03/2018 Bolletta Energia Elettrica relativa al periodo 01/02/2018 - 28/02/2018;09-05-2018;1036;0;104;1;Spese correnti;3;Acquisto di beni e servizi;2;Acquisto di servizi;5;Utenze e canoni;4;Energia elettrica;09-05-2018;
491;1;0;"54,02";"620,96";ODOARDO ZECCA S.r.l.; ;SALDO Fatt.n. P2018/000043  del 26/03/2018 Bolletta Energia Elettrica relativa al periodo 01/01/2018 - 28/02/2018;09-05-2018;2026;0;119;1;Spese correnti;3;Acquisto di beni e servizi;2;Acquisto di servizi;5;Utenze e canoni;4;Energia elettrica;09-05-2018;
491;2;0;"161,57";"620,96";ODOARDO ZECCA S.r.l.; ;SALDO Fatt.n. P2018/000050  del 26/03/2018 Bolletta Energia Elettrica relativa al periodo 01/01/2018 - 28/02/2018;09-05-2018;2026;0;119;1;Spese correnti;3;Acquisto di beni e servizi;2;Acquisto di servizi;5;Utenze e canoni;4;Energia elettrica;09-05-2018;
491;3;0;"405,37";"620,96";ODOARDO ZECCA S.r.l.; ;SALDO Fatt.n. P2018/000056  del 26/03/2018 Bolletta Energia Elettrica relativa al periodo 01/01/2018 - 28/02/2018;09-05-2018;2026;0;119;1;Spese correnti;3;Acquisto di beni e servizi;2;Acquisto di servizi;5;Utenze e canoni;4;Energia elettrica;09-05-2018;
492;1;0;"51,65";"460,65";ODOARDO ZECCA S.r.l.; ;SALDO Fatt.n. P2016/000168  del 26/04/2016 Bolletta Energia Elettrica relativa al periodo 01/03/2016 - 31/03/2016;09-05-2018;2026;0;63;1;Spese correnti;3;Acquisto di beni e servizi;2;Acquisto di servizi;5;Utenze e canoni;4;Energia elettrica;09-05-2018;
492;2;0;"409,00";"460,65";ODOARDO ZECCA S.r.l.; ;SALDO Fatt.n. P2016/000166  del 26/04/2016 Bolletta Energia Elettrica relativa al periodo 01/03/2016 - 31/03/2016;09-05-2018;2026;0;63;1;Spese correnti;3;Acquisto di beni e servizi;2;Acquisto di servizi;5;Utenze e canoni;4;Energia elettrica;09-05-2018;
493;1;0;"267,37";"267,37";ODOARDO ZECCA S.r.l.; ;ACCONTO Fatt.n. P2016/000169  del 26/04/2016 Bolletta Energia Elettrica relativa al periodo 01/03/2016 - 31/03/2016;09-05-2018;1656;0;61;1;Spese correnti;3;Acquisto di beni e servizi;2;Acquisto di servizi;5;Utenze e canoni;4;Energia elettrica;09-05-2018;
494;1;0;"85,78";"195,55";ODOARDO ZECCA S.r.l.; ;ACCONTO Fatt.n. P2016/000170  del 26/04/2016 Bolletta Energia Elettrica relativa al periodo 01/03/2016 - 31/03/2016;09-05-2018;2084;0;62;1;Spese correnti;3;Acquisto di beni e servizi;2;Acquisto di servizi;5;Utenze e canoni;4;Energia elettrica;09-05-2018;
494;2;0;"109,77";"195,55";ODOARDO ZECCA S.r.l.; ;SALDO Fatt.n. P2016/000169  del 26/04/2016 Bolletta Energia Elettrica relativa al periodo 01/03/2016 - 31/03/2016;09-05-2018;2084;0;62;1;Spese correnti;3;Acquisto di beni e servizi;2;Acquisto di servizi;5;Utenze e canoni;4;Energia elettrica;09-05-2018;
495;1;0;"309,03";"1.465,88";ODOARDO ZECCA S.r.l.; ;ACCONTO Fatt.n. P2016/000354  del 28/12/2016 Bolletta Energia Elettrica relativa al periodo 01/11/2016 - 30/11/2016;09-05-2018;1036;0;94;1;Spese correnti;3;Acquisto di beni e servizi;2;Acquisto di servizi;5;Utenze e canoni;4;Energia elettrica;09-05-2018;
495;2;0;"358,28";"1.465,88";ODOARDO ZECCA S.r.l.; ;SALDO Fatt.n. P2016/000350  del 28/12/2016 Bolletta Energia Elettrica relativa al periodo 01/11/2016 - 30/11/2016;09-05-2018;1036;0;94;1;Spese correnti;3;Acquisto di beni e servizi;2;Acquisto di servizi;5;Utenze e canoni;4;Energia elettrica;09-05-2018;
495;3;0;"386,09";"1.465,88";ODOARDO ZECCA S.r.l.; ;SALDO Fatt.n. P2016/000353  del 28/12/2016 Bolletta Energia Elettrica relativa al periodo 01/11/2016 - 30/11/2016;09-05-2018;1036;0;94;1;Spese correnti;3;Acquisto di beni e servizi;2;Acquisto di servizi;5;Utenze e canoni;4;Energia elettrica;09-05-2018;
495;4;0;"412,48";"1.465,88";ODOARDO ZECCA S.r.l.; ;SALDO Fatt.n. P2016/000170  del 26/04/2016 Bolletta Energia Elettrica relativa al periodo 01/03/2016 - 31/03/2016;09-05-2018;1036;0;94;1;Spese correnti;3;Acquisto di beni e servizi;2;Acquisto di servizi;5;Utenze e canoni;4;Energia elettrica;09-05-2018;
496;1;0;"229,82";"229,82";ODOARDO ZECCA S.r.l.; ;SALDO Fatt.n. P2016/000354  del 28/12/2016 Bolletta Energia Elettrica relativa al periodo 01/11/2016 - 30/11/2016;09-05-2018;1505;0;114;1;Spese correnti;3;Acquisto di beni e servizi;2;Acquisto di servizi;5;Utenze e canoni;4;Energia elettrica;09-05-2018;
497;1;0;"1.900,00";"1.900,00";FLAMMINIO Anna; ;LIQUIDAZIONE DELLA SPESA RELATIVA LA CONTROVERSIA FLAMMINIO ANNA/COMUNE DI SAN VITO CHIETINO;09-05-2018;1058;0;120;1;Spese correnti;3;Acquisto di beni e servizi;2;Acquisto di servizi;99;Altri servizi;2;Altre spese legali;09-05-2018;
498;1;0;"597,80";"597,80";EUROSERVIZI S.r.l.;Z191EEB415;SALDO Fatt.n. 41  del 31/03/2018 Servizio di pulizie uffici comunali - Marzo 2018;11-05-2018;1483;0;38;1;Spese correnti;3;Acquisto di beni e servizi;2;Acquisto di servizi;13;Servizi ausiliari per il funzionamento dell'ente;2;Servizi di pulizia e lavanderia;11-05-2018;
499;1;0;"1.345,34";"10.090,08";COOPERATIVA PRIMAVERA Soc. Coop.;6355628E21;SALDO Fatt.n. 14/PA  del 31/03/2018 Fattura gestione servizio mensa c/o nido S.Vito Paese mese di marzo 2018;11-05-2018;1422;0;189;1;Spese correnti;3;Acquisto di beni e servizi;2;Acquisto di servizi;15;Contratti di servizio pubblico;6;Contratti di servizio per le mense scolastiche;11-05-2018;
499;2;0;"3.000,82";"10.090,08";COOPERATIVA PRIMAVERA Soc. Coop.;6355628E21;SALDO Fatt.n. 15/PA  del 31/03/2018 Fattura gestione servizio mensa c/o scuola materna S.Apollinare mese di marzo 2018;11-05-2018;1422;0;189;1;Spese correnti;3;Acquisto di beni e servizi;2;Acquisto di servizi;15;Contratti di servizio pubblico;6;Contratti di servizio per le mense scolastiche;11-05-2018;
499;3;0;"5.743,92";"10.090,08";COOPERATIVA PRIMAVERA Soc. Coop.;6355628E21;SALDO Fatt.n. 13/PA  del 31/03/2018 Fattura per gestione servizio mensa c/o scuola materna S.Vito Paese mese di marzo 2018;11-05-2018;1422;0;189;1;Spese correnti;3;Acquisto di beni e servizi;2;Acquisto di servizi;15;Contratti di servizio pubblico;6;Contratti di servizio per le mense scolastiche;11-05-2018;
500;1;0;"8.439,89";"8.439,89";CONSORZIO COOPERATIVE SOCIALI S.G.S.;649009322C;SALDO Fatt.n. 225/10  del 13/03/2018 Servizio assistenza educativa - Febbraio 2018.;11-05-2018;1421;0;295;1;Spese correnti;3;Acquisto di beni e servizi;2;Acquisto di servizi;15;Contratti di servizio pubblico;10;Contratti di servizio di asilo nido;11-05-2018;
501;1;0;"597,80";"597,80";EUROSERVIZI S.r.l.;Z191EEB415;SALDO Fatt.n. 30  del 28/02/2018 Servizio di pulizie uffici comunali - Febbraio 2018;11-05-2018;1483;0;38;1;Spese correnti;3;Acquisto di beni e servizi;2;Acquisto di servizi;13;Servizi ausiliari per il funzionamento dell'ente;2;Servizi di pulizia e lavanderia;11-05-2018;
505;1;0;"15,00";"15,00";ECONOMO COMUNALE - PETACCIA Silvana; ;Rimborso bollette;15-05-2018;1120;0;20;1;Spese correnti;3;Acquisto di beni e servizi;1;Acquisto di beni;2;Altri beni di consumo;6;Materiale informatico;15-05-2018;
506;1;0;"184,03";"184,03";ECONOMO COMUNALE - PETACCIA Silvana; ;Rimborso bollette;15-05-2018;1122;0;11;1;Spese correnti;3;Acquisto di beni e servizi;1;Acquisto di beni;2;Altri beni di consumo;1;"Carta, cancelleria e stampati";15-05-2018;
507;1;0;"175,00";"175,00";ECONOMO COMUNALE - PETACCIA Silvana; ;Rimborso bollette;15-05-2018;1123;0;10;1;Spese correnti;3;Acquisto di beni e servizi;1;Acquisto di beni;2;Altri beni di consumo;999;Altri beni e materiali di consumo n.a.c.;15-05-2018;
508;1;0;"24,80";"24,80";ECONOMO COMUNALE - PETACCIA Silvana; ;Rimborso bollette;15-05-2018;1125;0;58;1;Spese correnti;3;Acquisto di beni e servizi;1;Acquisto di beni;2;Altri beni di consumo;999;Altri beni e materiali di consumo n.a.c.;15-05-2018;
509;1;0;"67,88";"67,88";GESTORE DEI SERVIZI ENERGETICI; ;SALDO Fatt.n. 2131  del 12/01/2018 Corrispettivi di cui al DM 24/12/2014 - Modifiche impiantistiche - MI00006171;16-05-2018;1057;1;127;1;Spese correnti;3;Acquisto di beni e servizi;2;Acquisto di servizi;5;Utenze e canoni;999;Utenze e canoni per altri servizi n.a.c.;16-05-2018;
512;1;0;"185,59";"185,59";AGENZIA DELLE ENTRATE - IVA; ;PAGAMENTO F24 TRAMITE ENTRATEL-PAGAMENTO F24 TRAMITE ENTRATEL - C.F.00094240694 - DISPOSIZIONE N.2024294012) (P.      88 -R.     584);18-05-2018;2154;0;129;1;Spese correnti;10;Altre spese correnti;3;Versamenti IVA a debito;1;Versamenti IVA a debito per le gestioni commerciali;1;Versamenti IVA a debito per le gestioni commerciali;18-05-2018;
513;1;0;"6.023,95";"6.023,95";DIPENDENTI COMUNALI; ;STIPENDI MESE DI: MAGGIO 18;18-05-2018;1001;0;0;1;Spese correnti;3;Acquisto di beni e servizi;2;Acquisto di servizi;1;Organi e incarichi istituzionali dell'amministrazione;1;Organi istituzionali dell'amministrazione - Indennit�;18-05-2018;
561;1;0;"58.712,79";"58.712,79";ECO.LAN. S.p.A.; ;SALDO Fatt.n. 100107  del 28/02/2018 Servizio igiener urbana - Febbraio 2018.;23-05-2018;1745;0;47;1;Spese correnti;3;Acquisto di beni e servizi;2;Acquisto di servizi;15;Contratti di servizio pubblico;4;Contratti di servizio per la raccolta rifiuti;23-05-2018;
562;1;0;"-15.184,18";"13.349,73";SO.G.E.T. Spa Societa` Gestione Entrate e Tributi; ;SALDO Fatt.n. 33848/00  del 31/12/2014 Recupero spese su quote inesigibili.;23-05-2018;1186;0;351;1;Spese correnti;3;Acquisto di beni e servizi;2;Acquisto di servizi;16;Servizi amministrativi;999;Altre spese per servizi amministrativi;23-05-2018;
562;2;0;"-7.740,08";"13.349,73";SO.G.E.T. Spa Societa` Gestione Entrate e Tributi; ;SALDO Fatt.n. 33984  del 31/12/2014 Nota di ciredito.;23-05-2018;1186;0;351;1;Spese correnti;3;Acquisto di beni e servizi;2;Acquisto di servizi;16;Servizi amministrativi;999;Altre spese per servizi amministrativi;23-05-2018;
562;3;0;"2.146,50";"13.349,73";SO.G.E.T. Spa Societa` Gestione Entrate e Tributi; ;SALDO Fatt.n. 138300  del 08/04/2016 Rimborso spese postali invio Accertamento ICI 2011.;23-05-2018;1186;0;351;1;Spese correnti;3;Acquisto di beni e servizi;2;Acquisto di servizi;16;Servizi amministrativi;999;Altre spese per servizi amministrativi;23-05-2018;
562;4;0;"3.355,60";"13.349,73";SO.G.E.T. Spa Societa` Gestione Entrate e Tributi;X9C19F743C;SALDO Fatt.n. 574600  del 30/12/2016 Recupero spese postali per invio accertamenti IMU 2012.;23-05-2018;1186;0;351;1;Spese correnti;3;Acquisto di beni e servizi;2;Acquisto di servizi;16;Servizi amministrativi;999;Altre spese per servizi amministrativi;23-05-2018;
562;5;0;"7.740,08";"13.349,73";SO.G.E.T. Spa Societa` Gestione Entrate e Tributi; ;SALDO Fatt.n. 33663  del 31/12/2014 Rimborso spese notifica e spese per procedure esecutive.;23-05-2018;1186;0;351;1;Spese correnti;3;Acquisto di beni e servizi;2;Acquisto di servizi;16;Servizi amministrativi;999;Altre spese per servizi amministrativi;23-05-2018;
562;6;0;"7.847,63";"13.349,73";SO.G.E.T. Spa Societa` Gestione Entrate e Tributi; ;SALDO Fatt.n. 607900  del 30/12/2016 Aggio per accertamento ICI-TARSU .;23-05-2018;1186;0;351;1;Spese correnti;3;Acquisto di beni e servizi;2;Acquisto di servizi;16;Servizi amministrativi;999;Altre spese per servizi amministrativi;23-05-2018;
562;7;0;"15.184,18";"13.349,73";SO.G.E.T. Spa Societa` Gestione Entrate e Tributi; ;SALDO Fatt.n. 25794/00  del 20/10/2014 Rimborso spese di notifica e spese per le procedure esecutive..;23-05-2018;1186;0;351;1;Spese correnti;3;Acquisto di beni e servizi;2;Acquisto di servizi;16;Servizi amministrativi;999;Altre spese per servizi amministrativi;23-05-2018;
565;1;0;"295,56";"295,56";MARCHITELLI Roberta; ;"LIQUIDAZIONE DELLE SPESE LEGALI RELATIVE ALLA SENTENZA N. 1957/2017 DEL 25.10.2017 EMESSA DAL G.D.P. DI LANCIANO, CONSEGUENTE IL RICORSO PROPOSTO DA SAGARESE ANTONIO";23-05-2018;1058;0;101;1;Spese correnti;3;Acquisto di beni e servizi;2;Acquisto di servizi;99;Altri servizi;2;Altre spese legali;23-05-2018;
566;1;0;"89,99";"89,99";ANXA ENERGY (PORTOBELLO);ZE32241565;ACCONTO Fatt.n. B/64  del 31/03/2018 Fornitura carburante per mezzi di proprieta' dell'ente -;23-05-2018;1270;0;27;1;Spese correnti;3;Acquisto di beni e servizi;1;Acquisto di beni;2;Altri beni di consumo;2;"Carburanti, combustibili e lubrificanti";23-05-2018;
567;1;0;"-0,01";"49,99";ANXA ENERGY (PORTOBELLO);ZE32241565;ACCONTO Fatt.n. B/64  del 31/03/2018 Fornitura carburante per mezzi di proprieta' dell'ente -;23-05-2018;1009;0;26;1;Spese correnti;3;Acquisto di beni e servizi;1;Acquisto di beni;2;Altri beni di consumo;2;"Carburanti, combustibili e lubrificanti";23-05-2018;
567;2;0;"50,00";"49,99";ANXA ENERGY (PORTOBELLO);ZE32241565;ACCONTO Fatt.n. B/64  del 31/03/2018 Fornitura carburante per mezzi di proprieta' dell'ente -;23-05-2018;1009;0;26;1;Spese correnti;3;Acquisto di beni e servizi;1;Acquisto di beni;2;Altri beni di consumo;2;"Carburanti, combustibili e lubrificanti";23-05-2018;
568;1;0;"236,22";"236,22";ANXA ENERGY (PORTOBELLO);ZE32241565;SALDO Fatt.n. B/64  del 31/03/2018 Fornitura carburante per mezzi di proprieta' dell'ente -;23-05-2018;1926;0;30;1;Spese correnti;3;Acquisto di beni e servizi;1;Acquisto di beni;2;Altri beni di consumo;2;"Carburanti, combustibili e lubrificanti";23-05-2018;
569;1;0;"46,00";"46,00";ANXA ENERGY (PORTOBELLO);ZE32241565;ACCONTO Fatt.n. B/60  del 28/02/2018 Fornitura gasolio per autotrazione;23-05-2018;1009;0;26;1;Spese correnti;3;Acquisto di beni e servizi;1;Acquisto di beni;2;Altri beni di consumo;2;"Carburanti, combustibili e lubrificanti";23-05-2018;
570;1;0;"0,03";"118,56";ANXA ENERGY (PORTOBELLO);ZE32241565;ACCONTO Fatt.n. B/60  del 28/02/2018 Fornitura gasolio per autotrazione;23-05-2018;1926;0;30;1;Spese correnti;3;Acquisto di beni e servizi;1;Acquisto di beni;2;Altri beni di consumo;2;"Carburanti, combustibili e lubrificanti";23-05-2018;
570;2;0;"118,53";"118,56";ANXA ENERGY (PORTOBELLO);ZE32241565;ACCONTO Fatt.n. B/60  del 28/02/2018 Fornitura gasolio per autotrazione;23-05-2018;1926;0;30;1;Spese correnti;3;Acquisto di beni e servizi;1;Acquisto di beni;2;Altri beni di consumo;2;"Carburanti, combustibili e lubrificanti";23-05-2018;
571;1;0;"72,50";"72,50";ANXA ENERGY (PORTOBELLO);ZE32241565;SALDO Fatt.n. B/60  del 28/02/2018 Fornitura gasolio per autotrazione;23-05-2018;1270;0;27;1;Spese correnti;3;Acquisto di beni e servizi;1;Acquisto di beni;2;Altri beni di consumo;2;"Carburanti, combustibili e lubrificanti";23-05-2018;
572;1;0;"-1.147,03";"5.323,11";OTTIMA S.r.l.;606897656D;SALDO Fatt.n. FATTPA 53_17  del 05/07/2017 Nota di creditosu errata fatturazione;23-05-2018;1939;0;176;1;Spese correnti;3;Acquisto di beni e servizi;2;Acquisto di servizi;15;Contratti di servizio pubblico;15;Contratti di servizio per l'illuminazione pubblica;23-05-2018;
572;2;0;"1.147,04";"5.323,11";OTTIMA S.r.l.;606897656D;SALDO Fatt.n. FATTPA 8_17  del 28/02/2017 Canone bimestrale per impianto pubblica illuminazione - Gennaio febbraio 2017.;23-05-2018;1939;0;176;1;Spese correnti;3;Acquisto di beni e servizi;2;Acquisto di servizi;15;Contratti di servizio pubblico;15;Contratti di servizio per l'illuminazione pubblica;23-05-2018;
572;3;0;"5.323,10";"5.323,11";OTTIMA S.r.l.;606897656D;SALDO Fatt.n. FATTPA 49_17  del 29/06/2017 Canone adeguamento e manifestazioni estive;23-05-2018;1939;0;176;1;Spese correnti;3;Acquisto di beni e servizi;2;Acquisto di servizi;15;Contratti di servizio pubblico;15;Contratti di servizio per l'illuminazione pubblica;23-05-2018;
574;1;0;"0,51";"457,00";PIGNATIELLO ISABELLA;Z9D22A610C;ACCONTO Fatt.n. 1  del 20/03/2018 FORNITURA FARMACI E PARAFARMACI;29-05-2018;1367;0;71;1;Spese correnti;3;Acquisto di beni e servizi;1;Acquisto di beni;2;Altri beni di consumo;999;Altri beni e materiali di consumo n.a.c.;29-05-2018;
574;2;0;"456,49";"457,00";PIGNATIELLO ISABELLA;Z9D22A610C;ACCONTO Fatt.n. 1  del 20/03/2018 FORNITURA FARMACI E PARAFARMACI;29-05-2018;1367;0;71;1;Spese correnti;3;Acquisto di beni e servizi;1;Acquisto di beni;2;Altri beni di consumo;999;Altri beni e materiali di consumo n.a.c.;29-05-2018;
575;1;0;"1.200,86";"1.200,86";TELECONTROL SERVICE SOC. COOP;XBC18983E9;"SALDO Fatt.n. 03/18  del 02/02/2018 Servizio di gestione, manutenzione e riqualificazione energetica - Gennaio 2018";29-05-2018;1939;0;175;1;Spese correnti;3;Acquisto di beni e servizi;2;Acquisto di servizi;15;Contratti di servizio pubblico;15;Contratti di servizio per l'illuminazione pubblica;29-05-2018;
576;1;0;"311,10";"311,10";MUCCI Antonio;Z5D2291CE9;SALDO Fatt.n. 1/E  del 20/03/2018 prestazioni da elettricista presso campo sportivo sant'Apollinare;29-05-2018;1828;0;49;1;Spese correnti;3;Acquisto di beni e servizi;2;Acquisto di servizi;9;Manutenzione ordinaria e riparazioni;8;Manutenzione ordinaria e riparazioni di beni immobili;29-05-2018;
577;1;0;"335,50";"335,50";MUCCI Antonio;Z062291C03;SALDO Fatt.n. 2/E  del 23/03/2018 Prestazioni da elettricista patrimonio comunale;29-05-2018;1931;0;51;1;Spese correnti;3;Acquisto di beni e servizi;2;Acquisto di servizi;9;Manutenzione ordinaria e riparazioni;8;Manutenzione ordinaria e riparazioni di beni immobili;29-05-2018;
579;1;0;"109,80";"109,80";DECART S.r.l.;ZAC20B72E7;SALDO Fatt.n. 571/PA  del 31/10/2017 Fornitura buste verdine per notificazione atti amministrativi.;29-05-2018;1268;0;262;1;Spese correnti;3;Acquisto di beni e servizi;1;Acquisto di beni;2;Altri beni di consumo;1;"Carta, cancelleria e stampati";29-05-2018;
580;1;0;"60,00";"60,00";O.C.M. FICCO S.n.c.;ZF52202180;ACCONTO Fatt.n. 06/18  del 06/02/2018 Fornitrua toner e manutenzione stampante ufficio polizia lcale;29-05-2018;1268;0;18;1;Spese correnti;3;Acquisto di beni e servizi;1;Acquisto di beni;2;Altri beni di consumo;1;"Carta, cancelleria e stampati";29-05-2018;
581;1;0;"315,00";"315,00";O.C.M. FICCO S.n.c.;ZF52202180;SALDO Fatt.n. 06/18  del 06/02/2018 Fornitrua toner e manutenzione stampante ufficio polizia lcale;29-05-2018;1276;0;19;1;Spese correnti;3;Acquisto di beni e servizi;2;Acquisto di servizi;9;Manutenzione ordinaria e riparazioni;6;Manutenzione ordinaria e riparazioni di macchine per ufficio;29-05-2018;
582;1;0;"441,33";"1.007,72";POSTE ITALIANE S.p.A.; ;ACCONTO Fatt.n. 8718060365  del 23/02/2018 Fattura Elettronica relativa all'Identificativo Rendiconto 2095731537;29-05-2018;1036;0;90;1;Spese correnti;3;Acquisto di beni e servizi;2;Acquisto di servizi;5;Utenze e canoni;999;Utenze e canoni per altri servizi n.a.c.;29-05-2018;
582;2;0;"566,39";"1.007,72";POSTE ITALIANE S.p.A.; ;ACCONTO Fatt.n. 8718106878  del 05/04/2018 Fattura Elettronica relativa all'Identificativo Rendiconto 2096156534 - Marzo 2018;29-05-2018;1036;0;90;1;Spese correnti;3;Acquisto di beni e servizi;2;Acquisto di servizi;5;Utenze e canoni;999;Utenze e canoni per altri servizi n.a.c.;29-05-2018;
583;1;0;"946,60";"946,60";DELLE VIGNE Tommaso S.r.l.;Z7F22C0D45;SALDO Fatt.n. 343/01  del 23/03/2018 Fornitura materiali per refezione scolastica;29-05-2018;3079;0;57;2;Spese in conto capitale;2;Investimenti fissi lordi e acquisto di terreni;1;Beni materiali;5;Attrezzature;999;Attrezzature n.a.c.;29-05-2018;
584;1;0;"1.217,68";"1.217,68";DICARTA S.r.l..;Z73225B64D;SALDO Fatt.n. 15/01  del 10/03/2018 Fornitrua materiale di cancelleria;29-05-2018;1050;0;32;1;Spese correnti;3;Acquisto di beni e servizi;1;Acquisto di beni;2;Altri beni di consumo;1;"Carta, cancelleria e stampati";29-05-2018;
585;1;0;"366,00";"366,00";SHARP ELECTRONICS S.p.A.;zb71d73e28;"SALDO Fatt.n. 7718005056  del 29/03/2018 COMUNE SAN VITO CHIETINO, ORDINE 3519132, CIG zb71d73e28 COMPETENZA 14/12/2017 al 13/03/2018 NUM.RATA    20";29-05-2018;1053;0;89;1;Spese correnti;3;Acquisto di beni e servizi;2;Acquisto di servizi;19;Servizi informatici e di telecomunicazioni;1;Gestione e manutenzione applicazioni;29-05-2018;
587;1;0;"5.420,85";"25.203,48";CASSA DEPOSITI E PRESTITI; ;Rata Interessi  1^Anno 31/05/18 CONTRATTO DI ANTICIPAZIONE DI CASSA D.L. 78/2015;31-05-2018;1006;0;99999;1;Spese correnti;7;Interessi passivi;5;Interessi su Mutui e altri finanziamenti a medio lungo termine;4;Interessi passivi su finanziamenti a medio lungo termine a Imprese;3;Interessi passivi a Cassa Depositi e Prestiti SPA su mutui e altri finanziamenti a medio lungo termine;31-05-2018;
587;2;0;"6.301,35";"25.203,48";CASSA DEPOSITI E PRESTITI; ;Rata Interessi  1^Anno 31/05/18 LIQUIDITA' PER DEBITI D.L. 35/2013;31-05-2018;1006;0;99999;1;Spese correnti;7;Interessi passivi;5;Interessi su Mutui e altri finanziamenti a medio lungo termine;4;Interessi passivi su finanziamenti a medio lungo termine a Imprese;3;Interessi passivi a Cassa Depositi e Prestiti SPA su mutui e altri finanziamenti a medio lungo termine;31-05-2018;
587;3;0;"13.481,28";"25.203,48";CASSA DEPOSITI E PRESTITI; ;Rata Interessi  1^Anno 31/05/18 ANTICIPAZIONE DI LIQUIDITA' D.L. 102/2013;31-05-2018;1006;0;99999;1;Spese correnti;7;Interessi passivi;5;Interessi su Mutui e altri finanziamenti a medio lungo termine;4;Interessi passivi su finanziamenti a medio lungo termine a Imprese;3;Interessi passivi a Cassa Depositi e Prestiti SPA su mutui e altri finanziamenti a medio lungo termine;31-05-2018;
590;1;0;"283,16";"576,96";ENEL ENERGIA S.p.A.; ;SALDO Fatt.n. 004810777098  del 09/05/2018 Fornitura energia elettrrica impianto fotovoltaico - Aprile 2018;31-05-2018;1057;1;103;1;Spese correnti;3;Acquisto di beni e servizi;2;Acquisto di servizi;5;Utenze e canoni;999;Utenze e canoni per altri servizi n.a.c.;31-05-2018;
590;2;0;"293,80";"576,96";ENEL ENERGIA S.p.A.; ;SALDO Fatt.n. 004810777099  del 09/05/2018 Fornitrua energia elettrica impianto fotovoltaico - Aprile 2018;31-05-2018;1057;1;103;1;Spese correnti;3;Acquisto di beni e servizi;2;Acquisto di servizi;5;Utenze e canoni;999;Utenze e canoni per altri servizi n.a.c.;31-05-2018;
591;1;0;"14.872,35";"14.872,35";GECABUS SRLS;6337728A96;SALDO Fatt.n. 20/2018/PA  del 28/04/2018 Servizio trasporto scolastico - Aprile 2018;31-05-2018;1424;0;190;1;Spese correnti;3;Acquisto di beni e servizi;2;Acquisto di servizi;15;Contratti di servizio pubblico;2;Contratti di servizio di trasporto scolastico;31-05-2018;
592;1;0;"14,64";"361,62";POSTE ITALIANE S.p.A.; ;SALDO Fatt.n. 2018046040  del 11/04/2018 contratto 50000028148 - Anno 2016.;31-05-2018;1036;0;90;1;Spese correnti;3;Acquisto di beni e servizi;2;Acquisto di servizi;5;Utenze e canoni;999;Utenze e canoni per altri servizi n.a.c.;31-05-2018;
592;2;0;"2,00";"361,62";POSTE ITALIANE S.p.A.; ;SALDO Fatt.n. 8717132718  del 17/05/2017 Fattura Elettronica relativa all'Identificativo Rendiconto 2091427204;31-05-2018;1036;0;90;1;Spese correnti;3;Acquisto di beni e servizi;2;Acquisto di servizi;5;Utenze e canoni;999;Utenze e canoni per altri servizi n.a.c.;31-05-2018;
592;3;0;"2,00";"361,62";POSTE ITALIANE S.p.A.; ;SALDO Fatt.n. 8717191550  del 12/07/2017 Fattura Elettronica relativa all'Identificativo Rendiconto 2091821901;31-05-2018;1036;0;90;1;Spese correnti;3;Acquisto di beni e servizi;2;Acquisto di servizi;5;Utenze e canoni;999;Utenze e canoni per altri servizi n.a.c.;31-05-2018;
592;4;0;"2,00";"361,62";POSTE ITALIANE S.p.A.; ;SALDO Fatt.n. 8717215433  del 27/07/2017 Fattura Elettronica relativa all'Identificativo Rendiconto 2092320170;31-05-2018;1036;0;90;1;Spese correnti;3;Acquisto di beni e servizi;2;Acquisto di servizi;5;Utenze e canoni;999;Utenze e canoni per altri servizi n.a.c.;31-05-2018;
592;5;0;"2,00";"361,62";POSTE ITALIANE S.p.A.; ;SALDO Fatt.n. 8717215664  del 27/07/2017 Fattura Elettronica relativa all'Identificativo Rendiconto 2092690904;31-05-2018;1036;0;90;1;Spese correnti;3;Acquisto di beni e servizi;2;Acquisto di servizi;5;Utenze e canoni;999;Utenze e canoni per altri servizi n.a.c.;31-05-2018;
592;6;0;"2,00";"361,62";POSTE ITALIANE S.p.A.; ;SALDO Fatt.n. 8717328953  del 31/10/2017 Fattura Elettronica relativa all'Identificativo Rendiconto 2094051347;31-05-2018;1036;0;90;1;Spese correnti;3;Acquisto di beni e servizi;2;Acquisto di servizi;5;Utenze e canoni;999;Utenze e canoni per altri servizi n.a.c.;31-05-2018;
592;7;0;"2,00";"361,62";POSTE ITALIANE S.p.A.; ;SALDO Fatt.n. 8718032786  del 31/01/2018 Fattura Elettronica relativa all'Identificativo Rendiconto 1000464757;31-05-2018;1036;0;90;1;Spese correnti;3;Acquisto di beni e servizi;2;Acquisto di servizi;5;Utenze e canoni;999;Utenze e canoni per altri servizi n.a.c.;31-05-2018;
592;8;0;"2,00";"361,62";POSTE ITALIANE S.p.A.; ;SALDO Fatt.n. 8718060365  del 23/02/2018 Fattura Elettronica relativa all'Identificativo Rendiconto 2095731537;31-05-2018;1036;0;90;1;Spese correnti;3;Acquisto di beni e servizi;2;Acquisto di servizi;5;Utenze e canoni;999;Utenze e canoni per altri servizi n.a.c.;31-05-2018;
592;9;0;"2,00";"361,62";POSTE ITALIANE S.p.A.; ;SALDO Fatt.n. 8718106878  del 05/04/2018 Fattura Elettronica relativa all'Identificativo Rendiconto 2096156534 - Marzo 2018;31-05-2018;1036;0;90;1;Spese correnti;3;Acquisto di beni e servizi;2;Acquisto di servizi;5;Utenze e canoni;999;Utenze e canoni per altri servizi n.a.c.;31-05-2018;
592;10;0;"330,98";"361,62";POSTE ITALIANE S.p.A.; ;SALDO Fatt.n. 8718147064  del 08/05/2018 Fattura Elettronica relativa all'Identificativo Rendiconto 2096591451;31-05-2018;1036;0;90;1;Spese correnti;3;Acquisto di beni e servizi;2;Acquisto di servizi;5;Utenze e canoni;999;Utenze e canoni per altri servizi n.a.c.;31-05-2018;
593;1;0;"1.236,14";"8.936,92";COOPERATIVA PRIMAVERA Soc. Coop.;6355628E21;SALDO Fatt.n. 20/PA  del 08/05/2018 Fattura per gestione servizio mensa c/o nido San Vito Paese mese di aprile 2018;31-05-2018;1422;0;189;1;Spese correnti;3;Acquisto di beni e servizi;2;Acquisto di servizi;15;Contratti di servizio pubblico;6;Contratti di servizio per le mense scolastiche;31-05-2018;
593;2;0;"2.944,03";"8.936,92";COOPERATIVA PRIMAVERA Soc. Coop.;6355628E21;SALDO Fatt.n. 21/PA  del 08/05/2018 Fattura relativa al servizio mensa c/o scuola materna S.Apollinare mese di aprile 2018;31-05-2018;1422;0;189;1;Spese correnti;3;Acquisto di beni e servizi;2;Acquisto di servizi;15;Contratti di servizio pubblico;6;Contratti di servizio per le mense scolastiche;31-05-2018;
593;3;0;"4.756,75";"8.936,92";COOPERATIVA PRIMAVERA Soc. Coop.;6355628E21;SALDO Fatt.n. 19/PA  del 07/05/2018 Fattura per gestione servizio mensa c/o scuola materna San Vito Paese mese di aprile 2018;31-05-2018;1422;0;189;1;Spese correnti;3;Acquisto di beni e servizi;2;Acquisto di servizi;15;Contratti di servizio pubblico;6;Contratti di servizio per le mense scolastiche;31-05-2018;
595;1;0;"47.481,03";"47.481,03";AMBITO SOCIALE DISTRETT. N. 11 - GESTIONE SOCIALE N. 2; ;Liquidazione 1^trimestre 2018 - Paino di Zona;01-06-2018;1794;0;139;1;Spese correnti;4;Trasferimenti correnti;1;Trasferimenti correnti a Amministrazioni Pubbliche;2;Trasferimenti correnti a Amministrazioni Locali;5;Trasferimenti correnti a Unioni di Comuni;01-06-2018;
596;1;0;"451,40";"451,40";IEZZI Gabriele;Z312163925;SALDO Fatt.n. 1/E  del 20/04/2018 Fornitura gomma terna;01-06-2018;1927;0;323;1;Spese correnti;3;Acquisto di beni e servizi;2;Acquisto di servizi;9;Manutenzione ordinaria e riparazioni;2;Manutenzione ordinaria e riparazioni di mezzi di trasporto ad uso militare;01-06-2018;
597;1;0;"902,80";"902,80";IEZZI Gabriele;ZD9228D471;SALDO Fatt.n. 3/E  del 20/04/2018 Fornitura gomme terna;01-06-2018;1927;0;47;1;Spese correnti;3;Acquisto di beni e servizi;2;Acquisto di servizi;9;Manutenzione ordinaria e riparazioni;2;Manutenzione ordinaria e riparazioni di mezzi di trasporto ad uso militare;01-06-2018;
598;1;0;"0,01";"976,01";IEZZI Gabriele;Z49228D6CF;SALDO Fatt.n. 5/E  del 23/04/2018 Prestazione da meccanico.;01-06-2018;1808;0;46;1;Spese correnti;3;Acquisto di beni e servizi;2;Acquisto di servizi;9;Manutenzione ordinaria e riparazioni;12;Manutenzione ordinaria e riparazioni di terreni e beni materiali non prodotti;01-06-2018;
598;2;0;"976,00";"976,01";IEZZI Gabriele;Z49228D6CF;ACCONTO Fatt.n. 5/E  del 23/04/2018 Prestazione da meccanico.;01-06-2018;1808;0;46;1;Spese correnti;3;Acquisto di beni e servizi;2;Acquisto di servizi;9;Manutenzione ordinaria e riparazioni;12;Manutenzione ordinaria e riparazioni di terreni e beni materiali non prodotti;01-06-2018;
599;1;0;"-0,02";"1.097,98";IEZZI Gabriele;Z95228D5B9;SALDO Fatt.n. 4/E  del 23/04/2018 Prestazione da meccanico;01-06-2018;1928;0;48;1;Spese correnti;3;Acquisto di beni e servizi;1;Acquisto di beni;2;Altri beni di consumo;999;Altri beni e materiali di consumo n.a.c.;01-06-2018;
599;2;0;"1.098,00";"1.097,98";IEZZI Gabriele;Z95228D5B9;SALDO Fatt.n. 4/E  del 23/04/2018 Prestazione da meccanico;01-06-2018;1928;0;48;1;Spese correnti;3;Acquisto di beni e servizi;1;Acquisto di beni;2;Altri beni di consumo;999;Altri beni e materiali di consumo n.a.c.;01-06-2018;
607;1;0;"496,40";"6.054,60";OMESSO NOMINATIVO NEL RISPETTO DELLA NORMATIVA SULLA PROTEZIONE DATI PERSONALI; ;RIMBORSO TOTALE FORNITURA GRATUITA E SEMIGRATUITA  LIBRI DI TESTO ALUNNI FREQUENTANTI LA SCUOLA DELL'OBBLIGO E LA SCUOLA MEDIA SUPERIORE A.S. 2017/18.;07-06-2018;1382;0;150;1;Spese correnti;4;Trasferimenti correnti;2;Trasferimenti correnti a Famiglie;5;Altri trasferimenti a famiglie;999;Altri trasferimenti a famiglie n.a.c.;07-06-2018;
607;2;0;"166,70";"6.054,60";OMESSO NOMINATIVO NEL RISPETTO DELLA NORMATIVA SULLA PROTEZIONE DATI PERSONALI; ;RIMBORSO TOTALE FORNITURA GRATUITA E SEMIGRATUITA  LIBRI DI TESTO ALUNNI FREQUENTANTI LA SCUOLA DELL'OBBLIGO E LA SCUOLA MEDIA SUPERIORE A.S. 2017/18.;07-06-2018;1382;0;150;1;Spese correnti;4;Trasferimenti correnti;2;Trasferimenti correnti a Famiglie;5;Altri trasferimenti a famiglie;999;Altri trasferimenti a famiglie n.a.c.;07-06-2018;
607;3;0;"167,00";"6.054,60";OMESSO NOMINATIVO NEL RISPETTO DELLA NORMATIVA SULLA PROTEZIONE DATI PERSONALI; ;RIMBORSO TOTALE FORNITURA GRATUITA E SEMIGRATUITA  LIBRI DI TESTO ALUNNI FREQUENTANTI LA SCUOLA DELL'OBBLIGO E LA SCUOLA MEDIA SUPERIORE A.S. 2017/18.;07-06-2018;1382;0;150;1;Spese correnti;4;Trasferimenti correnti;2;Trasferimenti correnti a Famiglie;5;Altri trasferimenti a famiglie;999;Altri trasferimenti a famiglie n.a.c.;07-06-2018;
607;4;0;"350,35";"6.054,60";OMESSO NOMINATIVO NEL RISPETTO DELLA NORMATIVA SULLA PROTEZIONE DATI PERSONALI; ;RIMBORSO TOTALE FORNITURA GRATUITA E SEMIGRATUITA  LIBRI DI TESTO ALUNNI FREQUENTANTI LA SCUOLA DELL'OBBLIGO E LA SCUOLA MEDIA SUPERIORE A.S. 2017/18.;07-06-2018;1382;0;150;1;Spese correnti;4;Trasferimenti correnti;2;Trasferimenti correnti a Famiglie;5;Altri trasferimenti a famiglie;999;Altri trasferimenti a famiglie n.a.c.;07-06-2018;
607;5;0;"143,65";"6.054,60";OMESSO NOMINATIVO NEL RISPETTO DELLA NORMATIVA SULLA PROTEZIONE DATI PERSONALI; ;RIMBORSO TOTALE FORNITURA GRATUITA E SEMIGRATUITA  LIBRI DI TESTO ALUNNI FREQUENTANTI LA SCUOLA DELL'OBBLIGO E LA SCUOLA MEDIA SUPERIORE A.S. 2017/18.;07-06-2018;1382;0;150;1;Spese correnti;4;Trasferimenti correnti;2;Trasferimenti correnti a Famiglie;5;Altri trasferimenti a famiglie;999;Altri trasferimenti a famiglie n.a.c.;07-06-2018;
607;6;0;"153,85";"6.054,60";OMESSO NOMINATIVO NEL RISPETTO DELLA NORMATIVA SULLA PROTEZIONE DATI PERSONALI; ;RIMBORSO TOTALE FORNITURA GRATUITA E SEMIGRATUITA  LIBRI DI TESTO ALUNNI FREQUENTANTI LA SCUOLA DELL'OBBLIGO E LA SCUOLA MEDIA SUPERIORE A.S. 2017/18.;07-06-2018;1382;0;150;1;Spese correnti;4;Trasferimenti correnti;2;Trasferimenti correnti a Famiglie;5;Altri trasferimenti a famiglie;999;Altri trasferimenti a famiglie n.a.c.;07-06-2018;
607;7;0;"335,85";"6.054,60";OMESSO NOMINATIVO NEL RISPETTO DELLA NORMATIVA SULLA PROTEZIONE DATI PERSONALI; ;RIMBORSO TOTALE FORNITURA GRATUITA E SEMIGRATUITA  LIBRI DI TESTO ALUNNI FREQUENTANTI LA SCUOLA DELL'OBBLIGO E LA SCUOLA MEDIA SUPERIORE A.S. 2017/18.;07-06-2018;1382;0;150;1;Spese correnti;4;Trasferimenti correnti;2;Trasferimenti correnti a Famiglie;5;Altri trasferimenti a famiglie;999;Altri trasferimenti a famiglie n.a.c.;07-06-2018;
607;8;0;"155,85";"6.054,60";OMESSO NOMINATIVO NEL RISPETTO DELLA NORMATIVA SULLA PROTEZIONE DATI PERSONALI; ;RIMBORSO TOTALE FORNITURA GRATUITA E SEMIGRATUITA  LIBRI DI TESTO ALUNNI FREQUENTANTI LA SCUOLA DELL'OBBLIGO E LA SCUOLA MEDIA SUPERIORE A.S. 2017/18.;07-06-2018;1382;0;150;1;Spese correnti;4;Trasferimenti correnti;2;Trasferimenti correnti a Famiglie;5;Altri trasferimenti a famiglie;999;Altri trasferimenti a famiglie n.a.c.;07-06-2018;
607;9;0;"290,60";"6.054,60";OMESSO NOMINATIVO NEL RISPETTO DELLA NORMATIVA SULLA PROTEZIONE DATI PERSONALI; ;RIMBORSO TOTALE FORNITURA GRATUITA E SEMIGRATUITA  LIBRI DI TESTO ALUNNI FREQUENTANTI LA SCUOLA DELL'OBBLIGO E LA SCUOLA MEDIA SUPERIORE A.S. 2017/18.;07-06-2018;1382;0;150;1;Spese correnti;4;Trasferimenti correnti;2;Trasferimenti correnti a Famiglie;5;Altri trasferimenti a famiglie;999;Altri trasferimenti a famiglie n.a.c.;07-06-2018;
607;10;0;"153,85";"6.054,60";OMESSO NOMINATIVO NEL RISPETTO DELLA NORMATIVA SULLA PROTEZIONE DATI PERSONALI; ;RIMBORSO TOTALE FORNITURA GRATUITA E SEMIGRATUITA  LIBRI DI TESTO ALUNNI FREQUENTANTI LA SCUOLA DELL'OBBLIGO E LA SCUOLA MEDIA SUPERIORE A.S. 2017/18.;07-06-2018;1382;0;150;1;Spese correnti;4;Trasferimenti correnti;2;Trasferimenti correnti a Famiglie;5;Altri trasferimenti a famiglie;999;Altri trasferimenti a famiglie n.a.c.;07-06-2018;
607;11;0;"155,85";"6.054,60";OMESSO NOMINATIVO NEL RISPETTO DELLA NORMATIVA SULLA PROTEZIONE DATI PERSONALI; ;RIMBORSO TOTALE FORNITURA GRATUITA E SEMIGRATUITA  LIBRI DI TESTO ALUNNI FREQUENTANTI LA SCUOLA DELL'OBBLIGO E LA SCUOLA MEDIA SUPERIORE A.S. 2017/18.;07-06-2018;1382;0;150;1;Spese correnti;4;Trasferimenti correnti;2;Trasferimenti correnti a Famiglie;5;Altri trasferimenti a famiglie;999;Altri trasferimenti a famiglie n.a.c.;07-06-2018;
607;12;0;"154,45";"6.054,60";OMESSO NOMINATIVO NEL RISPETTO DELLA NORMATIVA SULLA PROTEZIONE DATI PERSONALI; ;RIMBORSO TOTALE FORNITURA GRATUITA E SEMIGRATUITA  LIBRI DI TESTO ALUNNI FREQUENTANTI LA SCUOLA DELL'OBBLIGO E LA SCUOLA MEDIA SUPERIORE A.S. 2017/18.;07-06-2018;1382;0;150;1;Spese correnti;4;Trasferimenti correnti;2;Trasferimenti correnti a Famiglie;5;Altri trasferimenti a famiglie;999;Altri trasferimenti a famiglie n.a.c.;07-06-2018;
607;13;0;"273,30";"6.054,60";OMESSO NOMINATIVO NEL RISPETTO DELLA NORMATIVA SULLA PROTEZIONE DATI PERSONALI; ;RIMBORSO TOTALE FORNITURA GRATUITA E SEMIGRATUITA  LIBRI DI TESTO ALUNNI FREQUENTANTI LA SCUOLA DELL'OBBLIGO E LA SCUOLA MEDIA SUPERIORE A.S. 2017/18.;07-06-2018;1382;0;150;1;Spese correnti;4;Trasferimenti correnti;2;Trasferimenti correnti a Famiglie;5;Altri trasferimenti a famiglie;999;Altri trasferimenti a famiglie n.a.c.;07-06-2018;
607;14;0;"290,60";"6.054,60";OMESSO NOMINATIVO NEL RISPETTO DELLA NORMATIVA SULLA PROTEZIONE DATI PERSONALI; ;RIMBORSO TOTALE FORNITURA GRATUITA E SEMIGRATUITA  LIBRI DI TESTO ALUNNI FREQUENTANTI LA SCUOLA DELL'OBBLIGO E LA SCUOLA MEDIA SUPERIORE A.S. 2017/18.;07-06-2018;1382;0;150;1;Spese correnti;4;Trasferimenti correnti;2;Trasferimenti correnti a Famiglie;5;Altri trasferimenti a famiglie;999;Altri trasferimenti a famiglie n.a.c.;07-06-2018;
607;15;0;"166,70";"6.054,60";OMESSO NOMINATIVO NEL RISPETTO DELLA NORMATIVA SULLA PROTEZIONE DATI PERSONALI; ;RIMBORSO TOTALE FORNITURA GRATUITA E SEMIGRATUITA  LIBRI DI TESTO ALUNNI FREQUENTANTI LA SCUOLA DELL'OBBLIGO E LA SCUOLA MEDIA SUPERIORE A.S. 2017/18.;07-06-2018;1382;0;150;1;Spese correnti;4;Trasferimenti correnti;2;Trasferimenti correnti a Famiglie;5;Altri trasferimenti a famiglie;999;Altri trasferimenti a famiglie n.a.c.;07-06-2018;
607;16;0;"388,10";"6.054,60";OMESSO NOMINATIVO NEL RISPETTO DELLA NORMATIVA SULLA PROTEZIONE DATI PERSONALI; ;RIMBORSO TOTALE FORNITURA GRATUITA E SEMIGRATUITA  LIBRI DI TESTO ALUNNI FREQUENTANTI LA SCUOLA DELL'OBBLIGO E LA SCUOLA MEDIA SUPERIORE A.S. 2017/18.;07-06-2018;1382;0;150;1;Spese correnti;4;Trasferimenti correnti;2;Trasferimenti correnti a Famiglie;5;Altri trasferimenti a famiglie;999;Altri trasferimenti a famiglie n.a.c.;07-06-2018;
607;17;0;"336,30";"6.054,60";OMESSO NOMINATIVO NEL RISPETTO DELLA NORMATIVA SULLA PROTEZIONE DATI PERSONALI; ;RIMBORSO TOTALE FORNITURA GRATUITA E SEMIGRATUITA  LIBRI DI TESTO ALUNNI FREQUENTANTI LA SCUOLA DELL'OBBLIGO E LA SCUOLA MEDIA SUPERIORE A.S. 2017/18.;07-06-2018;1382;0;150;1;Spese correnti;4;Trasferimenti correnti;2;Trasferimenti correnti a Famiglie;5;Altri trasferimenti a famiglie;999;Altri trasferimenti a famiglie n.a.c.;07-06-2018;
607;18;0;"154,45";"6.054,60";OMESSO NOMINATIVO NEL RISPETTO DELLA NORMATIVA SULLA PROTEZIONE DATI PERSONALI; ;RIMBORSO TOTALE FORNITURA GRATUITA E SEMIGRATUITA  LIBRI DI TESTO ALUNNI FREQUENTANTI LA SCUOLA DELL'OBBLIGO E LA SCUOLA MEDIA SUPERIORE A.S. 2017/18.;07-06-2018;1382;0;150;1;Spese correnti;4;Trasferimenti correnti;2;Trasferimenti correnti a Famiglie;5;Altri trasferimenti a famiglie;999;Altri trasferimenti a famiglie n.a.c.;07-06-2018;
607;19;0;"166,80";"6.054,60";OMESSO NOMINATIVO NEL RISPETTO DELLA NORMATIVA SULLA PROTEZIONE DATI PERSONALI; ;RIMBORSO TOTALE FORNITURA GRATUITA E SEMIGRATUITA  LIBRI DI TESTO ALUNNI FREQUENTANTI LA SCUOLA DELL'OBBLIGO E LA SCUOLA MEDIA SUPERIORE A.S. 2017/18.;07-06-2018;1382;0;150;1;Spese correnti;4;Trasferimenti correnti;2;Trasferimenti correnti a Famiglie;5;Altri trasferimenti a famiglie;999;Altri trasferimenti a famiglie n.a.c.;07-06-2018;
607;20;0;"166,70";"6.054,60";OMESSO NOMINATIVO NEL RISPETTO DELLA NORMATIVA SULLA PROTEZIONE DATI PERSONALI; ;RIMBORSO TOTALE FORNITURA GRATUITA E SEMIGRATUITA  LIBRI DI TESTO ALUNNI FREQUENTANTI LA SCUOLA DELL'OBBLIGO E LA SCUOLA MEDIA SUPERIORE A.S. 2017/18.;07-06-2018;1382;0;150;1;Spese correnti;4;Trasferimenti correnti;2;Trasferimenti correnti a Famiglie;5;Altri trasferimenti a famiglie;999;Altri trasferimenti a famiglie n.a.c.;07-06-2018;
607;21;0;"127,35";"6.054,60";OMESSO NOMINATIVO NEL RISPETTO DELLA NORMATIVA SULLA PROTEZIONE DATI PERSONALI; ;RIMBORSO TOTALE FORNITURA GRATUITA E SEMIGRATUITA  LIBRI DI TESTO ALUNNI FREQUENTANTI LA SCUOLA DELL'OBBLIGO E LA SCUOLA MEDIA SUPERIORE A.S. 2017/18.;07-06-2018;1382;0;150;1;Spese correnti;4;Trasferimenti correnti;2;Trasferimenti correnti a Famiglie;5;Altri trasferimenti a famiglie;999;Altri trasferimenti a famiglie n.a.c.;07-06-2018;
607;22;0;"212,35";"6.054,60";OMESSO NOMINATIVO NEL RISPETTO DELLA NORMATIVA SULLA PROTEZIONE DATI PERSONALI; ;RIMBORSO TOTALE FORNITURA GRATUITA E SEMIGRATUITA  LIBRI DI TESTO ALUNNI FREQUENTANTI LA SCUOLA DELL'OBBLIGO E LA SCUOLA MEDIA SUPERIORE A.S. 2017/18.;07-06-2018;1382;0;150;1;Spese correnti;4;Trasferimenti correnti;2;Trasferimenti correnti a Famiglie;5;Altri trasferimenti a famiglie;999;Altri trasferimenti a famiglie n.a.c.;07-06-2018;
607;23;0;"111,25";"6.054,60";OMESSO NOMINATIVO NEL RISPETTO DELLA NORMATIVA SULLA PROTEZIONE DATI PERSONALI; ;RIMBORSO TOTALE FORNITURA GRATUITA E SEMIGRATUITA  LIBRI DI TESTO ALUNNI FREQUENTANTI LA SCUOLA DELL'OBBLIGO E LA SCUOLA MEDIA SUPERIORE A.S. 2017/18.;07-06-2018;1382;0;150;1;Spese correnti;4;Trasferimenti correnti;2;Trasferimenti correnti a Famiglie;5;Altri trasferimenti a famiglie;999;Altri trasferimenti a famiglie n.a.c.;07-06-2018;
607;24;0;"293,55";"6.054,60";OMESSO NOMINATIVO NEL RISPETTO DELLA NORMATIVA SULLA PROTEZIONE DATI PERSONALI; ;RIMBORSO TOTALE FORNITURA GRATUITA E SEMIGRATUITA  LIBRI DI TESTO ALUNNI FREQUENTANTI LA SCUOLA DELL'OBBLIGO E LA SCUOLA MEDIA SUPERIORE A.S. 2017/18.;07-06-2018;1382;0;150;1;Spese correnti;4;Trasferimenti correnti;2;Trasferimenti correnti a Famiglie;5;Altri trasferimenti a famiglie;999;Altri trasferimenti a famiglie n.a.c.;07-06-2018;
607;25;0;"166,70";"6.054,60";OMESSO NOMINATIVO NEL RISPETTO DELLA NORMATIVA SULLA PROTEZIONE DATI PERSONALI; ;RIMBORSO TOTALE FORNITURA GRATUITA E SEMIGRATUITA  LIBRI DI TESTO ALUNNI FREQUENTANTI LA SCUOLA DELL'OBBLIGO E LA SCUOLA MEDIA SUPERIORE A.S. 2017/18.;07-06-2018;1382;0;150;1;Spese correnti;4;Trasferimenti correnti;2;Trasferimenti correnti a Famiglie;5;Altri trasferimenti a famiglie;999;Altri trasferimenti a famiglie n.a.c.;07-06-2018;
607;26;0;"476,05";"6.054,60";OMESSO NOMINATIVO NEL RISPETTO DELLA NORMATIVA SULLA PROTEZIONE DATI PERSONALI; ;RIMBORSO TOTALE FORNITURA GRATUITA E SEMIGRATUITA  LIBRI DI TESTO ALUNNI FREQUENTANTI LA SCUOLA DELL'OBBLIGO E LA SCUOLA MEDIA SUPERIORE A.S. 2017/18.;07-06-2018;1382;0;150;1;Spese correnti;4;Trasferimenti correnti;2;Trasferimenti correnti a Famiglie;5;Altri trasferimenti a famiglie;999;Altri trasferimenti a famiglie n.a.c.;07-06-2018;
608;1;0;"230,05";"3.231,69";OMESSO NOMINATIVO NEL RISPETTO DELLA NORMATIVA SULLA PROTEZIONE DATI PERSONALI; ;RIMBORSO TOTALE FORNITURA GRATUITA E SEMIGRATUITA  LIBRI DI TESTO ALUNNI FREQUENTANTI LA SCUOLA DELL'OBBLIGO E LA SCUOLA MEDIA SUPERIORE A.S. 2017/18;07-06-2018;1398;0;192;1;Spese correnti;4;Trasferimenti correnti;2;Trasferimenti correnti a Famiglie;5;Altri trasferimenti a famiglie;999;Altri trasferimenti a famiglie n.a.c.;07-06-2018;
608;2;0;"280,60";"3.231,69";OMESSO NOMINATIVO NEL RISPETTO DELLA NORMATIVA SULLA PROTEZIONE DATI PERSONALI; ;RIMBORSO TOTALE FORNITURA GRATUITA E SEMIGRATUITA  LIBRI DI TESTO ALUNNI FREQUENTANTI LA SCUOLA DELL'OBBLIGO E LA SCUOLA MEDIA SUPERIORE A.S. 2017/18.;07-06-2018;1398;0;192;1;Spese correnti;4;Trasferimenti correnti;2;Trasferimenti correnti a Famiglie;5;Altri trasferimenti a famiglie;999;Altri trasferimenti a famiglie n.a.c.;07-06-2018;
608;3;0;"115,85";"3.231,69";OMESSO NOMINATIVO NEL RISPETTO DELLA NORMATIVA SULLA PROTEZIONE DATI PERSONALI; ;RIMBORSO TOTALE FORNITURA GRATUITA E SEMIGRATUITA  LIBRI DI TESTO ALUNNI FREQUENTANTI LA SCUOLA DELL'OBBLIGO E LA SCUOLA MEDIA SUPERIORE A.S. 2017/18.;07-06-2018;1398;0;192;1;Spese correnti;4;Trasferimenti correnti;2;Trasferimenti correnti a Famiglie;5;Altri trasferimenti a famiglie;999;Altri trasferimenti a famiglie n.a.c.;07-06-2018;
608;4;0;"112,90";"3.231,69";OMESSO NOMINATIVO NEL RISPETTO DELLA NORMATIVA SULLA PROTEZIONE DATI PERSONALI; ;RIMBORSO TOTALE FORNITURA GRATUITA E SEMIGRATUITA  LIBRI DI TESTO ALUNNI FREQUENTANTI LA SCUOLA DELL'OBBLIGO E LA SCUOLA MEDIA SUPERIORE A.S. 2017/18.;07-06-2018;1398;0;192;1;Spese correnti;4;Trasferimenti correnti;2;Trasferimenti correnti a Famiglie;5;Altri trasferimenti a famiglie;999;Altri trasferimenti a famiglie n.a.c.;07-06-2018;
608;5;0;"334,65";"3.231,69";OMESSO NOMINATIVO NEL RISPETTO DELLA NORMATIVA SULLA PROTEZIONE DATI PERSONALI; ;RIMBORSO TOTALE FORNITURA GRATUITA E SEMIGRATUITA  LIBRI DI TESTO ALUNNI FREQUENTANTI LA SCUOLA DELL'OBBLIGO E LA SCUOLA MEDIA SUPERIORE A.S. 2017/18.;07-06-2018;1398;0;192;1;Spese correnti;4;Trasferimenti correnti;2;Trasferimenti correnti a Famiglie;5;Altri trasferimenti a famiglie;999;Altri trasferimenti a famiglie n.a.c.;07-06-2018;
608;6;0;"332,20";"3.231,69";OMESSO NOMINATIVO NEL RISPETTO DELLA NORMATIVA SULLA PROTEZIONE DATI PERSONALI; ;RIMBORSO TOTALE FORNITURA GRATUITA E SEMIGRATUITA  LIBRI DI TESTO ALUNNI FREQUENTANTI LA SCUOLA DELL'OBBLIGO E LA SCUOLA MEDIA SUPERIORE A.S. 2017/18.;07-06-2018;1398;0;192;1;Spese correnti;4;Trasferimenti correnti;2;Trasferimenti correnti a Famiglie;5;Altri trasferimenti a famiglie;999;Altri trasferimenti a famiglie n.a.c.;07-06-2018;
608;7;0;"315,65";"3.231,69";OMESSO NOMINATIVO NEL RISPETTO DELLA NORMATIVA SULLA PROTEZIONE DATI PERSONALI; ;RIMBORSO TOTALE FORNITURA GRATUITA E SEMIGRATUITA  LIBRI DI TESTO ALUNNI FREQUENTANTI LA SCUOLA DELL'OBBLIGO E LA SCUOLA MEDIA SUPERIORE A.S. 2017/18.;07-06-2018;1398;0;192;1;Spese correnti;4;Trasferimenti correnti;2;Trasferimenti correnti a Famiglie;5;Altri trasferimenti a famiglie;999;Altri trasferimenti a famiglie n.a.c.;07-06-2018;
608;8;0;"314,90";"3.231,69";OMESSO NOMINATIVO NEL RISPETTO DELLA NORMATIVA SULLA PROTEZIONE DATI PERSONALI; ;RIMBORSO TOTALE FORNITURA GRATUITA E SEMIGRATUITA  LIBRI DI TESTO ALUNNI FREQUENTANTI LA SCUOLA DELL'OBBLIGO E LA SCUOLA MEDIA SUPERIORE A.S. 2017/18.;07-06-2018;1398;0;192;1;Spese correnti;4;Trasferimenti correnti;2;Trasferimenti correnti a Famiglie;5;Altri trasferimenti a famiglie;999;Altri trasferimenti a famiglie n.a.c.;07-06-2018;
608;9;0;"403,35";"3.231,69";OMESSO NOMINATIVO NEL RISPETTO DELLA NORMATIVA SULLA PROTEZIONE DATI PERSONALI; ;RIMBORSO TOTALE FORNITURA GRATUITA E SEMIGRATUITA  LIBRI DI TESTO ALUNNI FREQUENTANTI LA SCUOLA DELL'OBBLIGO E LA SCUOLA MEDIA SUPERIORE A.S. 2017/18.;07-06-2018;1398;0;192;1;Spese correnti;4;Trasferimenti correnti;2;Trasferimenti correnti a Famiglie;5;Altri trasferimenti a famiglie;999;Altri trasferimenti a famiglie n.a.c.;07-06-2018;
608;10;0;"197,55";"3.231,69";OMESSO NOMINATIVO NEL RISPETTO DELLA NORMATIVA SULLA PROTEZIONE DATI PERSONALI; ;RIMBORSO TOTALE FORNITURA GRATUITA E SEMIGRATUITA  LIBRI DI TESTO ALUNNI FREQUENTANTI LA SCUOLA DELL'OBBLIGO E LA SCUOLA MEDIA SUPERIORE A.S. 2017/18.;07-06-2018;1398;0;192;1;Spese correnti;4;Trasferimenti correnti;2;Trasferimenti correnti a Famiglie;5;Altri trasferimenti a famiglie;999;Altri trasferimenti a famiglie n.a.c.;07-06-2018;
608;11;0;"340,19";"3.231,69";OMESSO NOMINATIVO NEL RISPETTO DELLA NORMATIVA SULLA PROTEZIONE DATI PERSONALI; ;RIMBORSO TOTALE FORNITURA GRATUITA E SEMIGRATUITA  LIBRI DI TESTO ALUNNI FREQUENTANTI LA SCUOLA DELL'OBBLIGO E LA SCUOLA MEDIA SUPERIORE A.S. 2017/18.;07-06-2018;1398;0;192;1;Spese correnti;4;Trasferimenti correnti;2;Trasferimenti correnti a Famiglie;5;Altri trasferimenti a famiglie;999;Altri trasferimenti a famiglie n.a.c.;07-06-2018;
608;12;0;"116,95";"3.231,69";OMESSO NOMINATIVO NEL RISPETTO DELLA NORMATIVA SULLA PROTEZIONE DATI PERSONALI; ;RIMBORSO TOTALE FORNITURA GRATUITA E SEMIGRATUITA  LIBRI DI TESTO ALUNNI FREQUENTANTI LA SCUOLA DELL'OBBLIGO E LA SCUOLA MEDIA SUPERIORE A.S. 2017/18.;07-06-2018;1398;0;192;1;Spese correnti;4;Trasferimenti correnti;2;Trasferimenti correnti a Famiglie;5;Altri trasferimenti a famiglie;999;Altri trasferimenti a famiglie n.a.c.;07-06-2018;
608;13;0;"136,85";"3.231,69";OMESSO NOMINATIVO NEL RISPETTO DELLA NORMATIVA SULLA PROTEZIONE DATI PERSONALI; ;RIMBORSO TOTALE FORNITURA GRATUITA E SEMIGRATUITA  LIBRI DI TESTO ALUNNI FREQUENTANTI LA SCUOLA DELL'OBBLIGO E LA SCUOLA MEDIA SUPERIORE A.S. 2017/18.;07-06-2018;1398;0;192;1;Spese correnti;4;Trasferimenti correnti;2;Trasferimenti correnti a Famiglie;5;Altri trasferimenti a famiglie;999;Altri trasferimenti a famiglie n.a.c.;07-06-2018;
610;1;0;"23,84";"272,82";ODOARDO ZECCA S.r.l.; ;SALDO Fatt.n. P2018/000088  del 22/05/2018 Bolletta Energia Elettrica relativa al periodo 01/04/2018 - 30/04/2018;08-06-2018;1826;0;112;1;Spese correnti;3;Acquisto di beni e servizi;2;Acquisto di servizi;5;Utenze e canoni;4;Energia elettrica;08-06-2018;
610;2;0;"248,98";"272,82";ODOARDO ZECCA S.r.l.; ;SALDO Fatt.n. P2018/000083  del 22/05/2018 Bolletta Energia Elettrica relativa al periodo 01/04/2018 - 30/04/2018;08-06-2018;1826;0;112;1;Spese correnti;3;Acquisto di beni e servizi;2;Acquisto di servizi;5;Utenze e canoni;4;Energia elettrica;08-06-2018;
611;1;0;"280,85";"280,85";ODOARDO ZECCA S.r.l.; ;SALDO Fatt.n. P2018/000080  del 22/05/2018 Bolletta Energia Elettrica relativa al periodo 01/03/2018 - 30/04/2018;08-06-2018;2006;0;115;1;Spese correnti;3;Acquisto di beni e servizi;2;Acquisto di servizi;5;Utenze e canoni;4;Energia elettrica;08-06-2018;
612;1;0;"527,44";"527,44";ODOARDO ZECCA S.r.l.; ;SALDO Fatt.n. P2018/000097  del 22/05/2018 Bolletta Energia Elettrica relativa al periodo 01/03/2018 - 30/04/2018;08-06-2018;1829;0;113;1;Spese correnti;3;Acquisto di beni e servizi;2;Acquisto di servizi;5;Utenze e canoni;4;Energia elettrica;08-06-2018;
613;1;0;"63,99";"172,02";ODOARDO ZECCA S.r.l.; ;SALDO Fatt.n. P2018/000094  del 22/05/2018 Bolletta Energia Elettrica relativa al periodo 01/03/2018 - 30/04/2018;08-06-2018;1656;0;111;1;Spese correnti;3;Acquisto di beni e servizi;2;Acquisto di servizi;5;Utenze e canoni;4;Energia elettrica;08-06-2018;
613;2;0;"108,03";"172,02";ODOARDO ZECCA S.r.l.; ;SALDO Fatt.n. P2018/000082  del 22/05/2018 Bolletta Energia Elettrica relativa al periodo 01/03/2018 - 30/04/2018;08-06-2018;1656;0;111;1;Spese correnti;3;Acquisto di beni e servizi;2;Acquisto di servizi;5;Utenze e canoni;4;Energia elettrica;08-06-2018;
614;1;0;"187,08";"504,76";ODOARDO ZECCA S.r.l.; ;SALDO Fatt.n. P2018/000102  del 22/05/2018 Bolletta Energia Elettrica relativa al periodo 01/03/2018 - 30/04/2018;08-06-2018;1344;0;106;1;Spese correnti;3;Acquisto di beni e servizi;2;Acquisto di servizi;5;Utenze e canoni;4;Energia elettrica;08-06-2018;
614;2;0;"317,68";"504,76";ODOARDO ZECCA S.r.l.; ;SALDO Fatt.n. P2018/000087  del 22/05/2018 Bolletta Energia Elettrica relativa al periodo 01/03/2018 - 30/04/2018;08-06-2018;1344;0;106;1;Spese correnti;3;Acquisto di beni e servizi;2;Acquisto di servizi;5;Utenze e canoni;4;Energia elettrica;08-06-2018;
615;1;0;"68,16";"706,63";ODOARDO ZECCA S.r.l.; ;SALDO Fatt.n. P2018/000093  del 22/05/2018 Bolletta Energia Elettrica relativa al periodo 01/03/2018 - 30/04/2018;08-06-2018;1370;0;107;1;Spese correnti;3;Acquisto di beni e servizi;2;Acquisto di servizi;5;Utenze e canoni;4;Energia elettrica;08-06-2018;
615;2;0;"317,65";"706,63";ODOARDO ZECCA S.r.l.; ;SALDO Fatt.n. P2018/000099  del 22/05/2018 Bolletta Energia Elettrica relativa al periodo 01/04/2018 - 30/04/2018;08-06-2018;1370;0;107;1;Spese correnti;3;Acquisto di beni e servizi;2;Acquisto di servizi;5;Utenze e canoni;4;Energia elettrica;08-06-2018;
615;3;0;"320,82";"706,63";ODOARDO ZECCA S.r.l.; ;SALDO Fatt.n. P2018/000098  del 22/05/2018 Bolletta Energia Elettrica relativa al periodo 01/03/2018 - 30/04/2018;08-06-2018;1370;0;107;1;Spese correnti;3;Acquisto di beni e servizi;2;Acquisto di servizi;5;Utenze e canoni;4;Energia elettrica;08-06-2018;
616;1;0;"71,30";"622,35";ODOARDO ZECCA S.r.l.; ;SALDO Fatt.n. P2018/000091  del 22/05/2018 Bolletta Energia Elettrica relativa al periodo 01/03/2018 - 30/04/2018;08-06-2018;2124;0;117;1;Spese correnti;3;Acquisto di beni e servizi;2;Acquisto di servizi;5;Utenze e canoni;4;Energia elettrica;08-06-2018;
616;2;0;"71,35";"622,35";ODOARDO ZECCA S.r.l.; ;SALDO Fatt.n. P2018/000092  del 22/05/2018 Bolletta Energia Elettrica relativa al periodo 01/03/2018 - 30/04/2018;08-06-2018;2124;0;117;1;Spese correnti;3;Acquisto di beni e servizi;2;Acquisto di servizi;5;Utenze e canoni;4;Energia elettrica;08-06-2018;
616;3;0;"110,51";"622,35";ODOARDO ZECCA S.r.l.; ;SALDO Fatt.n. P2018/000086  del 22/05/2018 Bolletta Energia Elettrica relativa al periodo 01/03/2018 - 30/04/2018;08-06-2018;2124;0;117;1;Spese correnti;3;Acquisto di beni e servizi;2;Acquisto di servizi;5;Utenze e canoni;4;Energia elettrica;08-06-2018;
616;4;0;"116,73";"622,35";ODOARDO ZECCA S.r.l.; ;SALDO Fatt.n. P2018/000089  del 22/05/2018 Bolletta Energia Elettrica relativa al periodo 01/03/2018 - 30/04/2018;08-06-2018;2124;0;117;1;Spese correnti;3;Acquisto di beni e servizi;2;Acquisto di servizi;5;Utenze e canoni;4;Energia elettrica;08-06-2018;
616;5;0;"119,35";"622,35";ODOARDO ZECCA S.r.l.; ;SALDO Fatt.n. P2018/000096  del 22/05/2018 Bolletta Energia Elettrica relativa al periodo 01/03/2018 - 30/04/2018;08-06-2018;2124;0;117;1;Spese correnti;3;Acquisto di beni e servizi;2;Acquisto di servizi;5;Utenze e canoni;4;Energia elettrica;08-06-2018;
616;6;0;"133,11";"622,35";ODOARDO ZECCA S.r.l.; ;SALDO Fatt.n. P2018/000103  del 22/05/2018 Bolletta Energia Elettrica relativa al periodo 01/03/2018 - 30/04/2018;08-06-2018;2124;0;117;1;Spese correnti;3;Acquisto di beni e servizi;2;Acquisto di servizi;5;Utenze e canoni;4;Energia elettrica;08-06-2018;
617;1;0;"68,16";"620,36";ODOARDO ZECCA S.r.l.; ;SALDO Fatt.n. P2018/000081  del 22/05/2018 Bolletta Energia Elettrica relativa al periodo 01/03/2018 - 30/04/2018;08-06-2018;1036;0;104;1;Spese correnti;3;Acquisto di beni e servizi;2;Acquisto di servizi;5;Utenze e canoni;4;Energia elettrica;08-06-2018;
617;2;0;"99,19";"620,36";ODOARDO ZECCA S.r.l.; ;SALDO Fatt.n. P2018/000100  del 22/05/2018 Bolletta Energia Elettrica relativa al periodo 01/02/2018 - 30/04/2018;08-06-2018;1036;0;104;1;Spese correnti;3;Acquisto di beni e servizi;2;Acquisto di servizi;5;Utenze e canoni;4;Energia elettrica;08-06-2018;
617;3;0;"453,01";"620,36";ODOARDO ZECCA S.r.l.; ;SALDO Fatt.n. P2018/000101  del 22/05/2018 Bolletta Energia Elettrica relativa al periodo 01/04/2018 - 30/04/2018;08-06-2018;1036;0;104;1;Spese correnti;3;Acquisto di beni e servizi;2;Acquisto di servizi;5;Utenze e canoni;4;Energia elettrica;08-06-2018;
618;1;0;"68,16";"68,16";ODOARDO ZECCA S.r.l.; ;SALDO Fatt.n. P2018/000077  del 22/05/2018 Bolletta Energia Elettrica relativa al periodo 01/03/2018 - 30/04/2018;08-06-2018;1269;0;105;1;Spese correnti;3;Acquisto di beni e servizi;2;Acquisto di servizi;5;Utenze e canoni;4;Energia elettrica;08-06-2018;
619;1;0;"102,30";"102,30";ODOARDO ZECCA S.r.l.; ;SALDO Fatt.n. P2018/000095  del 22/05/2018 Bolletta Energia Elettrica relativa al periodo 01/03/2018 - 30/04/2018;08-06-2018;1932;0;114;1;Spese correnti;3;Acquisto di beni e servizi;2;Acquisto di servizi;5;Utenze e canoni;4;Energia elettrica;08-06-2018;
620;1;0;"235,41";"235,41";ODOARDO ZECCA S.r.l.; ;SALDO Fatt.n. P2018/000085  del 22/05/2018 Bolletta Energia Elettrica relativa al periodo 01/04/2018 - 30/04/2018;08-06-2018;1387;0;108;1;Spese correnti;3;Acquisto di beni e servizi;2;Acquisto di servizi;5;Utenze e canoni;4;Energia elettrica;08-06-2018;
621;1;0;"257,40";"257,40";ODOARDO ZECCA S.r.l.; ;SALDO Fatt.n. P2018/000104  del 22/05/2018 Bolletta Energia Elettrica relativa al periodo 01/03/2018 - 30/04/2018;08-06-2018;1505;0;110;1;Spese correnti;3;Acquisto di beni e servizi;2;Acquisto di servizi;5;Utenze e canoni;4;Energia elettrica;08-06-2018;
622;1;0;"179,51";"179,51";ODOARDO ZECCA S.r.l.; ;SALDO Fatt.n. P2018/000079  del 22/05/2018 Bolletta Energia Elettrica relativa al periodo 01/03/2018 - 30/04/2018;08-06-2018;2084;0;116;1;Spese correnti;3;Acquisto di beni e servizi;2;Acquisto di servizi;5;Utenze e canoni;4;Energia elettrica;08-06-2018;
623;1;0;"162,00";"162,00";ODOARDO ZECCA S.r.l.; ;SALDO Fatt.n. P2018/000084  del 22/05/2018 Bolletta Energia Elettrica relativa al periodo 01/03/2018 - 30/04/2018;08-06-2018;2026;0;119;1;Spese correnti;3;Acquisto di beni e servizi;2;Acquisto di servizi;5;Utenze e canoni;4;Energia elettrica;08-06-2018;
624;1;0;"48,79";"280,01";ODOARDO ZECCA S.r.l.; ;SALDO Fatt.n. P2018/000078  del 22/05/2018 Bolletta Energia Elettrica relativa al periodo 01/03/2018 - 30/04/2018;08-06-2018;2174;0;118;1;Spese correnti;3;Acquisto di beni e servizi;2;Acquisto di servizi;5;Utenze e canoni;4;Energia elettrica;08-06-2018;
624;2;0;"231,22";"280,01";ODOARDO ZECCA S.r.l.; ;SALDO Fatt.n. P2018/000090  del 22/05/2018 Bolletta Energia Elettrica relativa al periodo 01/03/2018 - 30/04/2018;08-06-2018;2174;0;118;1;Spese correnti;3;Acquisto di beni e servizi;2;Acquisto di servizi;5;Utenze e canoni;4;Energia elettrica;08-06-2018;
625;1;0;"-1.271,84";"3.000,10";SANGROSERVIZI SRL; ;SALDO Fatt.n. P2018/107  del 17/05/2018 Bolletta Gas relativa al periodo 07/01/2016 - 30/04/2018;08-06-2018;1829;0;158;1;Spese correnti;3;Acquisto di beni e servizi;2;Acquisto di servizi;5;Utenze e canoni;6;Gas;08-06-2018;
625;2;0;"435,90";"3.000,10";SANGROSERVIZI SRL; ;SALDO Fatt.n. P2018/67  del 29/03/2018 BOLLETTA GAS RELATIVA AL PERIODO 01/01/2018 - 28/02/2018;08-06-2018;1829;0;158;1;Spese correnti;3;Acquisto di beni e servizi;2;Acquisto di servizi;5;Utenze e canoni;6;Gas;08-06-2018;
625;3;0;"1.170,36";"3.000,10";SANGROSERVIZI SRL; ;SALDO Fatt.n. P2018/113  del 17/05/2018 Bolletta Gas relativa al periodo 31/01/2018 - 30/04/2018;08-06-2018;1829;0;158;1;Spese correnti;3;Acquisto di beni e servizi;2;Acquisto di servizi;5;Utenze e canoni;6;Gas;08-06-2018;
625;4;0;"2.665,68";"3.000,10";SANGROSERVIZI SRL; ;SALDO Fatt.n. P2018/28  del 23/01/2018 BOLLETTA GAS RELATIVA AL PERIODO 30/09/2017 - 31/12/2017;08-06-2018;1829;0;158;1;Spese correnti;3;Acquisto di beni e servizi;2;Acquisto di servizi;5;Utenze e canoni;6;Gas;08-06-2018;
626;1;0;"36,85";"387,36";SANGROSERVIZI SRL; ;SALDO Fatt.n. P2018/19  del 23/01/2018 BOLLETTA GAS RELATIVA AL PERIODO 30/09/2017 - 31/12/2017;08-06-2018;1829;0;117;1;Spese correnti;3;Acquisto di beni e servizi;2;Acquisto di servizi;5;Utenze e canoni;6;Gas;08-06-2018;
626;2;0;"350,51";"387,36";SANGROSERVIZI SRL; ;SALDO Fatt.n. P2018/23  del 23/01/2018 BOLLETTA GAS RELATIVA AL PERIODO 01/11/2017 - 31/12/2017;08-06-2018;1829;0;117;1;Spese correnti;3;Acquisto di beni e servizi;2;Acquisto di servizi;5;Utenze e canoni;6;Gas;08-06-2018;
627;1;0;"-1.143,93";"934,89";SANGROSERVIZI SRL; ;SALDO Fatt.n. P2018/42  del 23/01/2018 BOLLETTA GAS RELATIVA AL PERIODO 01/09/2015 - 31/12/2017;08-06-2018;1505;0;114;1;Spese correnti;3;Acquisto di beni e servizi;2;Acquisto di servizi;5;Utenze e canoni;6;Gas;08-06-2018;
627;2;0;"43,19";"934,89";SANGROSERVIZI SRL; ;SALDO Fatt.n. P2017/262  del 21/12/2017 BOLLETTA GAS RELATIVA AL PERIODO 01/11/2017 - 30/11/2017;08-06-2018;1505;0;114;1;Spese correnti;3;Acquisto di beni e servizi;2;Acquisto di servizi;5;Utenze e canoni;6;Gas;08-06-2018;
627;3;0;"482,03";"934,89";SANGROSERVIZI SRL; ;SALDO Fatt.n. P2017/263  del 21/12/2017 BOLLETTA GAS RELATIVA AL PERIODO 31/10/2017 - 30/11/2017;08-06-2018;1505;0;114;1;Spese correnti;3;Acquisto di beni e servizi;2;Acquisto di servizi;5;Utenze e canoni;6;Gas;08-06-2018;
627;4;0;"661,90";"934,89";SANGROSERVIZI SRL; ;SALDO Fatt.n. P2017/264  del 21/12/2017 BOLLETTA GAS RELATIVA AL PERIODO 01/11/2017 - 30/11/2017;08-06-2018;1505;0;114;1;Spese correnti;3;Acquisto di beni e servizi;2;Acquisto di servizi;5;Utenze e canoni;6;Gas;08-06-2018;
627;5;0;"891,70";"934,89";SANGROSERVIZI SRL; ;SALDO Fatt.n. P2018/73  del 29/03/2018 BOLLETTA GAS RELATIVA AL PERIODO 31/12/2017 - 28/02/2018;08-06-2018;1505;0;114;1;Spese correnti;3;Acquisto di beni e servizi;2;Acquisto di servizi;5;Utenze e canoni;6;Gas;08-06-2018;
628;1;0;"-5.618,21";"493,95";SANGROSERVIZI SRL; ;SALDO Fatt.n. P2018/42  del 23/01/2018 BOLLETTA GAS RELATIVA AL PERIODO 01/09/2015 - 31/12/2017;08-06-2018;1370;0;103;1;Spese correnti;3;Acquisto di beni e servizi;2;Acquisto di servizi;5;Utenze e canoni;6;Gas;08-06-2018;
628;2;0;"76,71";"493,95";SANGROSERVIZI SRL; ;SALDO Fatt.n. P2018/24  del 23/01/2018 BOLLETTA GAS RELATIVA AL PERIODO 01/08/2017 - 31/12/2017;08-06-2018;1370;0;103;1;Spese correnti;3;Acquisto di beni e servizi;2;Acquisto di servizi;5;Utenze e canoni;6;Gas;08-06-2018;
628;3;0;"90,03";"493,95";SANGROSERVIZI SRL; ;SALDO Fatt.n. P2018/63  del 29/03/2018 BOLLETTA GAS RELATIVA AL PERIODO 31/12/2017 - 28/02/2018;08-06-2018;1370;0;103;1;Spese correnti;3;Acquisto di beni e servizi;2;Acquisto di servizi;5;Utenze e canoni;6;Gas;08-06-2018;
628;4;0;"129,23";"493,95";SANGROSERVIZI SRL; ;SALDO Fatt.n. P2018/22  del 23/01/2018 BOLLETTA GAS RELATIVA AL PERIODO 01/11/2017 - 31/12/2017;08-06-2018;1370;0;103;1;Spese correnti;3;Acquisto di beni e servizi;2;Acquisto di servizi;5;Utenze e canoni;6;Gas;08-06-2018;
628;5;0;"240,36";"493,95";SANGROSERVIZI SRL; ;SALDO Fatt.n. P2018/62  del 29/03/2018 BOLLETTA GAS RELATIVA AL PERIODO 20/10/2016 - 28/02/2018;08-06-2018;1370;0;103;1;Spese correnti;3;Acquisto di beni e servizi;2;Acquisto di servizi;5;Utenze e canoni;6;Gas;08-06-2018;
628;6;0;"1.586,96";"493,95";SANGROSERVIZI SRL; ;SALDO Fatt.n. P2018/68  del 29/03/2018 BOLLETTA GAS RELATIVA AL PERIODO 08/11/2017 - 28/02/2018;08-06-2018;1370;0;103;1;Spese correnti;3;Acquisto di beni e servizi;2;Acquisto di servizi;5;Utenze e canoni;6;Gas;08-06-2018;
628;7;0;"1.637,13";"493,95";SANGROSERVIZI SRL; ;SALDO Fatt.n. P2018/25  del 23/01/2018 BOLLETTA GAS RELATIVA AL PERIODO 30/09/2017 - 31/12/2017;08-06-2018;1370;0;103;1;Spese correnti;3;Acquisto di beni e servizi;2;Acquisto di servizi;5;Utenze e canoni;6;Gas;08-06-2018;
628;8;0;"2.351,74";"493,95";SANGROSERVIZI SRL; ;SALDO Fatt.n. P2018/69  del 29/03/2018 BOLLETTA GAS RELATIVA AL PERIODO 31/12/2017 - 28/02/2018;08-06-2018;1370;0;103;1;Spese correnti;3;Acquisto di beni e servizi;2;Acquisto di servizi;5;Utenze e canoni;6;Gas;08-06-2018;
629;1;0;"-3.750,57";"1.161,48";SANGROSERVIZI SRL; ;SALDO Fatt.n. P2018/42  del 23/01/2018 BOLLETTA GAS RELATIVA AL PERIODO 01/09/2015 - 31/12/2017;08-06-2018;1387;0;155;1;Spese correnti;3;Acquisto di beni e servizi;2;Acquisto di servizi;5;Utenze e canoni;6;Gas;08-06-2018;
629;2;0;"21,22";"1.161,48";SANGROSERVIZI SRL; ;SALDO Fatt.n. P2018/81  del 29/03/2018 BOLLETTA GAS RELATIVA AL PERIODO 01/01/2018 - 28/02/2018;08-06-2018;1387;0;155;1;Spese correnti;3;Acquisto di beni e servizi;2;Acquisto di servizi;5;Utenze e canoni;6;Gas;08-06-2018;
629;3;0;"21,22";"1.161,48";SANGROSERVIZI SRL; ;SALDO Fatt.n. P2018/72  del 29/03/2018 BOLLETTA GAS RELATIVA AL PERIODO 01/01/2018 - 28/02/2018;08-06-2018;1387;0;155;1;Spese correnti;3;Acquisto di beni e servizi;2;Acquisto di servizi;5;Utenze e canoni;6;Gas;08-06-2018;
629;4;0;"27,22";"1.161,48";SANGROSERVIZI SRL; ;SALDO Fatt.n. P2018/119  del 17/05/2018 Bolletta Gas relativa al periodo 01/03/2018 - 30/04/2018;08-06-2018;1387;0;155;1;Spese correnti;3;Acquisto di beni e servizi;2;Acquisto di servizi;5;Utenze e canoni;6;Gas;08-06-2018;
629;5;0;"42,25";"1.161,48";SANGROSERVIZI SRL; ;SALDO Fatt.n. P2018/82  del 29/03/2018 BOLLETTA GAS RELATIVA AL PERIODO 01/01/2018 - 28/02/2018;08-06-2018;1387;0;155;1;Spese correnti;3;Acquisto di beni e servizi;2;Acquisto di servizi;5;Utenze e canoni;6;Gas;08-06-2018;
629;6;0;"44,70";"1.161,48";SANGROSERVIZI SRL; ;SALDO Fatt.n. P2018/120  del 17/05/2018 Bolletta Gas relativa al periodo 01/03/2018 - 30/04/2018;08-06-2018;1387;0;155;1;Spese correnti;3;Acquisto di beni e servizi;2;Acquisto di servizi;5;Utenze e canoni;6;Gas;08-06-2018;
629;7;0;"119,34";"1.161,48";SANGROSERVIZI SRL; ;SALDO Fatt.n. P2018/75  del 29/03/2018 Bolletta Gas relativa al periodo 01/01/2018 - 28/02/2018;08-06-2018;1387;0;155;1;Spese correnti;3;Acquisto di beni e servizi;2;Acquisto di servizi;5;Utenze e canoni;6;Gas;08-06-2018;
629;8;0;"139,09";"1.161,48";SANGROSERVIZI SRL; ;SALDO Fatt.n. P2018/66  del 29/03/2018 BOLLETTA GAS RELATIVA AL PERIODO 01/01/2018 - 28/02/2018;08-06-2018;1387;0;155;1;Spese correnti;3;Acquisto di beni e servizi;2;Acquisto di servizi;5;Utenze e canoni;6;Gas;08-06-2018;
629;9;0;"350,30";"1.161,48";SANGROSERVIZI SRL; ;SALDO Fatt.n. P2018/110  del 17/05/2018 Bolletta Gas relativa al periodo 31/01/2018 - 30/04/2018;08-06-2018;1387;0;155;1;Spese correnti;3;Acquisto di beni e servizi;2;Acquisto di servizi;5;Utenze e canoni;6;Gas;08-06-2018;
629;10;0;"1.252,80";"1.161,48";SANGROSERVIZI SRL; ;SALDO Fatt.n. P2018/76  del 29/03/2018 BOLLETTA GAS RELATIVA AL PERIODO 10/11/2017 - 28/02/2018;08-06-2018;1387;0;155;1;Spese correnti;3;Acquisto di beni e servizi;2;Acquisto di servizi;5;Utenze e canoni;6;Gas;08-06-2018;
629;11;0;"1.440,53";"1.161,48";SANGROSERVIZI SRL; ;SALDO Fatt.n. P2018/70  del 29/03/2018 BOLLETTA GAS RELATIVA AL PERIODO 31/12/2017 - 28/02/2018;08-06-2018;1387;0;155;1;Spese correnti;3;Acquisto di beni e servizi;2;Acquisto di servizi;5;Utenze e canoni;6;Gas;08-06-2018;
629;12;0;"1.453,38";"1.161,48";SANGROSERVIZI SRL; ;SALDO Fatt.n. P2018/65  del 29/03/2018 BOLLETTA GAS RELATIVA AL PERIODO 31/12/2017 - 28/02/2018;08-06-2018;1387;0;155;1;Spese correnti;3;Acquisto di beni e servizi;2;Acquisto di servizi;5;Utenze e canoni;6;Gas;08-06-2018;
630;1;0;"152,71";"3.925,75";SANGROSERVIZI SRL; ;SALDO Fatt.n. P2018/103  del 17/05/2018 Bolletta Gas relativa al periodo 31/01/2018 - 30/04/2018;08-06-2018;1370;0;154;1;Spese correnti;3;Acquisto di beni e servizi;2;Acquisto di servizi;5;Utenze e canoni;6;Gas;08-06-2018;
630;2;0;"917,44";"3.925,75";SANGROSERVIZI SRL; ;SALDO Fatt.n. P2018/108  del 17/05/2018 Bolletta Gas relativa al periodo 12/02/2018 - 30/04/2018;08-06-2018;1370;0;154;1;Spese correnti;3;Acquisto di beni e servizi;2;Acquisto di servizi;5;Utenze e canoni;6;Gas;08-06-2018;
630;3;0;"2.855,60";"3.925,75";SANGROSERVIZI SRL; ;SALDO Fatt.n. P2018/109  del 17/05/2018 Bolletta Gas relativa al periodo 31/01/2018 - 30/04/2018;08-06-2018;1370;0;154;1;Spese correnti;3;Acquisto di beni e servizi;2;Acquisto di servizi;5;Utenze e canoni;6;Gas;08-06-2018;
631;1;0;"271,35";"271,35";SANGROSERVIZI SRL; ;SALDO Fatt.n. P2018/106  del 17/05/2018 Bolletta Gas relativa al periodo 02/08/2017 - 30/04/2018;08-06-2018;2006;0;156;1;Spese correnti;3;Acquisto di beni e servizi;2;Acquisto di servizi;5;Utenze e canoni;6;Gas;08-06-2018;
632;1;0;"369,62";"1.752,38";SANGROSERVIZI SRL; ;SALDO Fatt.n. P2018/20  del 23/01/2018 BOLLETTA GAS RELATIVA AL PERIODO 01/11/2017 - 31/12/2017;08-06-2018;1344;0;153;1;Spese correnti;3;Acquisto di beni e servizi;2;Acquisto di servizi;5;Utenze e canoni;6;Gas;08-06-2018;
632;2;0;"442,84";"1.752,38";SANGROSERVIZI SRL; ;SALDO Fatt.n. P2018/104  del 17/05/2018 Bolletta Gas relativa al periodo 01/03/2018 - 30/04/2018;08-06-2018;1344;0;153;1;Spese correnti;3;Acquisto di beni e servizi;2;Acquisto di servizi;5;Utenze e canoni;6;Gas;08-06-2018;
632;3;0;"939,92";"1.752,38";SANGROSERVIZI SRL; ;SALDO Fatt.n. P2018/64  del 29/03/2018 BOLLETTA GAS RELATIVA AL PERIODO 27/07/2017 - 28/02/2018;08-06-2018;1344;0;153;1;Spese correnti;3;Acquisto di beni e servizi;2;Acquisto di servizi;5;Utenze e canoni;6;Gas;08-06-2018;
633;1;0;"943,20";"943,20";SANGROSERVIZI SRL; ;SALDO Fatt.n. P2018/116  del 17/05/2018 Bolletta Gas relativa al periodo 07/02/2018 - 30/04/2018;08-06-2018;1505;0;157;1;Spese correnti;3;Acquisto di beni e servizi;2;Acquisto di servizi;5;Utenze e canoni;6;Gas;08-06-2018;
634;1;0;"28,43";"58,09";SANGROSERVIZI SRL; ;SALDO Fatt.n. P2018/111  del 17/05/2018 Bolletta Gas relativa al periodo 01/03/2018 - 30/04/2018;08-06-2018;1269;0;152;1;Spese correnti;3;Acquisto di beni e servizi;2;Acquisto di servizi;5;Utenze e canoni;6;Gas;08-06-2018;
634;2;0;"29,66";"58,09";SANGROSERVIZI SRL; ;SALDO Fatt.n. P2018/112  del 17/05/2018 Bolletta Gas relativa al periodo 01/03/2018 - 30/04/2018;08-06-2018;1269;0;152;1;Spese correnti;3;Acquisto di beni e servizi;2;Acquisto di servizi;5;Utenze e canoni;6;Gas;08-06-2018;
635;1;0;"20,80";"123,03";SANGROSERVIZI SRL; ;SALDO Fatt.n. P2018/36  del 23/01/2018 BOLLETTA GAS RELATIVA AL PERIODO 01/11/2017 - 31/12/2017;08-06-2018;1344;0;101;1;Spese correnti;3;Acquisto di beni e servizi;2;Acquisto di servizi;5;Utenze e canoni;6;Gas;08-06-2018;
635;2;0;"20,80";"123,03";SANGROSERVIZI SRL; ;SALDO Fatt.n. P2018/26  del 23/01/2018 BOLLETTA GAS RELATIVA AL PERIODO 01/11/2017 - 31/12/2017;08-06-2018;1344;0;101;1;Spese correnti;3;Acquisto di beni e servizi;2;Acquisto di servizi;5;Utenze e canoni;6;Gas;08-06-2018;
635;3;0;"20,80";"123,03";SANGROSERVIZI SRL; ;SALDO Fatt.n. P2018/27  del 23/01/2018 BOLLETTA GAS RELATIVA AL PERIODO 01/11/2017 - 31/12/2017;08-06-2018;1344;0;101;1;Spese correnti;3;Acquisto di beni e servizi;2;Acquisto di servizi;5;Utenze e canoni;6;Gas;08-06-2018;
635;4;0;"23,46";"123,03";SANGROSERVIZI SRL; ;SALDO Fatt.n. P2018/29  del 23/01/2018 BOLLETTA GAS RELATIVA AL PERIODO 27/07/2017 - 31/12/2017;08-06-2018;1344;0;101;1;Spese correnti;3;Acquisto di beni e servizi;2;Acquisto di servizi;5;Utenze e canoni;6;Gas;08-06-2018;
635;5;0;"37,17";"123,03";SANGROSERVIZI SRL; ;SALDO Fatt.n. P2018/31  del 23/01/2018 BOLLETTA GAS RELATIVA AL PERIODO 31/07/2017 - 31/12/2017;08-06-2018;1344;0;101;1;Spese correnti;3;Acquisto di beni e servizi;2;Acquisto di servizi;5;Utenze e canoni;6;Gas;08-06-2018;
636;1;0;"90,39";"90,39";SANGROSERVIZI SRL; ;ACCONTO Fatt.n. P2018/74  del 29/03/2018 BOLLETTA GAS RELATIVA AL PERIODO 10/11/2017 - 28/02/2018;08-06-2018;2006;0;119;1;Spese correnti;3;Acquisto di beni e servizi;2;Acquisto di servizi;5;Utenze e canoni;6;Gas;08-06-2018;
637;1;0;"44,00";"221,13";SANGROSERVIZI SRL; ;SALDO Fatt.n. P2018/37  del 23/01/2018 BOLLETTA GAS RELATIVA AL PERIODO 01/11/2017 - 31/12/2017;08-06-2018;1269;0;98;1;Spese correnti;3;Acquisto di beni e servizi;2;Acquisto di servizi;5;Utenze e canoni;6;Gas;08-06-2018;
637;2;0;"57,34";"221,13";SANGROSERVIZI SRL; ;SALDO Fatt.n. P2018/74  del 29/03/2018 BOLLETTA GAS RELATIVA AL PERIODO 10/11/2017 - 28/02/2018;08-06-2018;1269;0;98;1;Spese correnti;3;Acquisto di beni e servizi;2;Acquisto di servizi;5;Utenze e canoni;6;Gas;08-06-2018;
637;3;0;"119,79";"221,13";SANGROSERVIZI SRL; ;ACCONTO Fatt.n. P2018/18  del 23/01/2018 BOLLETTA GAS RELATIVA AL PERIODO 01/11/2017 - 31/12/2017;08-06-2018;1269;0;98;1;Spese correnti;3;Acquisto di beni e servizi;2;Acquisto di servizi;5;Utenze e canoni;6;Gas;08-06-2018;
638;1;0;"-277,88";"2.576,24";SANGROSERVIZI SRL; ;SALDO Fatt.n. P2018/30  del 23/01/2018 BOLLETTA GAS RELATIVA AL PERIODO 15/12/2016 - 31/12/2017;08-06-2018;1036;0;151;1;Spese correnti;3;Acquisto di beni e servizi;2;Acquisto di servizi;5;Utenze e canoni;6;Gas;08-06-2018;
638;2;0;"14,58";"2.576,24";SANGROSERVIZI SRL; ;SALDO Fatt.n. P2018/18  del 23/01/2018 BOLLETTA GAS RELATIVA AL PERIODO 01/11/2017 - 31/12/2017;08-06-2018;1036;0;151;1;Spese correnti;3;Acquisto di beni e servizi;2;Acquisto di servizi;5;Utenze e canoni;6;Gas;08-06-2018;
638;3;0;"21,22";"2.576,24";SANGROSERVIZI SRL; ;SALDO Fatt.n. P2018/71  del 29/03/2018 BOLLETTA GAS RELATIVA AL PERIODO 01/01/2018 - 28/02/2018;08-06-2018;1036;0;151;1;Spese correnti;3;Acquisto di beni e servizi;2;Acquisto di servizi;5;Utenze e canoni;6;Gas;08-06-2018;
638;4;0;"73,94";"2.576,24";SANGROSERVIZI SRL; ;SALDO Fatt.n. P2018/114  del 17/05/2018 Bolletta Gas relativa al periodo 01/03/2018 - 30/04/2018;08-06-2018;1036;0;151;1;Spese correnti;3;Acquisto di beni e servizi;2;Acquisto di servizi;5;Utenze e canoni;6;Gas;08-06-2018;
638;5;0;"137,72";"2.576,24";SANGROSERVIZI SRL; ;SALDO Fatt.n. P2018/115  del 17/05/2018 Bolletta Gas relativa al periodo 01/03/2018 - 30/04/2018;08-06-2018;1036;0;151;1;Spese correnti;3;Acquisto di beni e servizi;2;Acquisto di servizi;5;Utenze e canoni;6;Gas;08-06-2018;
638;6;0;"158,07";"2.576,24";SANGROSERVIZI SRL; ;SALDO Fatt.n. P2018/102  del 17/05/2018 Bolletta Gas relativa al periodo 01/03/2018 - 30/04/2018;08-06-2018;1036;0;151;1;Spese correnti;3;Acquisto di beni e servizi;2;Acquisto di servizi;5;Utenze e canoni;6;Gas;08-06-2018;
638;7;0;"846,12";"2.576,24";SANGROSERVIZI SRL; ;SALDO Fatt.n. P2018/21  del 23/01/2018 BOLLETTA GAS RELATIVA AL PERIODO 30/11/2017 - 31/12/2017;08-06-2018;1036;0;151;1;Spese correnti;3;Acquisto di beni e servizi;2;Acquisto di servizi;5;Utenze e canoni;6;Gas;08-06-2018;
638;8;0;"1.602,47";"2.576,24";SANGROSERVIZI SRL; ;SALDO Fatt.n. P2018/105  del 17/05/2018 Bolletta Gas relativa al periodo 31/01/2018 - 30/04/2018;08-06-2018;1036;0;151;1;Spese correnti;3;Acquisto di beni e servizi;2;Acquisto di servizi;5;Utenze e canoni;6;Gas;08-06-2018;
645;1;0;"1.181,61";"2.453,38";VODAFONE Omnitel B.V.; ;ACCONTO Fatt.n. AI06721154  del 13/04/2018 Spese telefoniche 9 febbraio 2018/8 aprile 2018.;14-06-2018;1036;0;159;1;Spese correnti;3;Acquisto di beni e servizi;2;Acquisto di servizi;5;Utenze e canoni;1;Telefonia fissa;14-06-2018;
645;2;0;"1.271,77";"2.453,38";VODAFONE Omnitel B.V.; ;ACCONTO Fatt.n. AI02836479  del 14/02/2018 Spese telefoniche - Periodo: 15 dicembre 2017/8 febbraio 2018.;14-06-2018;1036;0;159;1;Spese correnti;3;Acquisto di beni e servizi;2;Acquisto di servizi;5;Utenze e canoni;1;Telefonia fissa;14-06-2018;
646;1;0;"79,80";"159,60";VODAFONE Omnitel B.V.; ;ACCONTO Fatt.n. AI02836479  del 14/02/2018 Spese telefoniche - Periodo: 15 dicembre 2017/8 febbraio 2018.;14-06-2018;1269;0;160;1;Spese correnti;3;Acquisto di beni e servizi;2;Acquisto di servizi;5;Utenze e canoni;1;Telefonia fissa;14-06-2018;
646;2;0;"79,80";"159,60";VODAFONE Omnitel B.V.; ;ACCONTO Fatt.n. AI06721154  del 13/04/2018 Spese telefoniche 9 febbraio 2018/8 aprile 2018.;14-06-2018;1269;0;160;1;Spese correnti;3;Acquisto di beni e servizi;2;Acquisto di servizi;5;Utenze e canoni;1;Telefonia fissa;14-06-2018;
647;1;0;"231,20";"463,19";VODAFONE Omnitel B.V.; ;ACCONTO Fatt.n. AI06721154  del 13/04/2018 Spese telefoniche 9 febbraio 2018/8 aprile 2018.;14-06-2018;1387;0;161;1;Spese correnti;3;Acquisto di beni e servizi;2;Acquisto di servizi;5;Utenze e canoni;1;Telefonia fissa;14-06-2018;
647;2;0;"231,99";"463,19";VODAFONE Omnitel B.V.; ;ACCONTO Fatt.n. AI02836479  del 14/02/2018 Spese telefoniche - Periodo: 15 dicembre 2017/8 febbraio 2018.;14-06-2018;1387;0;161;1;Spese correnti;3;Acquisto di beni e servizi;2;Acquisto di servizi;5;Utenze e canoni;1;Telefonia fissa;14-06-2018;
648;1;0;"327,00";"654,00";VODAFONE Omnitel B.V.; ;ACCONTO Fatt.n. AI02836479  del 14/02/2018 Spese telefoniche - Periodo: 15 dicembre 2017/8 febbraio 2018.;14-06-2018;1370;0;162;1;Spese correnti;3;Acquisto di beni e servizi;2;Acquisto di servizi;5;Utenze e canoni;1;Telefonia fissa;14-06-2018;
648;2;0;"327,00";"654,00";VODAFONE Omnitel B.V.; ;ACCONTO Fatt.n. AI06721154  del 13/04/2018 Spese telefoniche 9 febbraio 2018/8 aprile 2018.;14-06-2018;1370;0;162;1;Spese correnti;3;Acquisto di beni e servizi;2;Acquisto di servizi;5;Utenze e canoni;1;Telefonia fissa;14-06-2018;
649;1;0;"159,60";"319,20";VODAFONE Omnitel B.V.; ;ACCONTO Fatt.n. AI02836479  del 14/02/2018 Spese telefoniche - Periodo: 15 dicembre 2017/8 febbraio 2018.;14-06-2018;1344;0;163;1;Spese correnti;3;Acquisto di beni e servizi;2;Acquisto di servizi;5;Utenze e canoni;1;Telefonia fissa;14-06-2018;
649;2;0;"159,60";"319,20";VODAFONE Omnitel B.V.; ;ACCONTO Fatt.n. AI06721154  del 13/04/2018 Spese telefoniche 9 febbraio 2018/8 aprile 2018.;14-06-2018;1344;0;163;1;Spese correnti;3;Acquisto di beni e servizi;2;Acquisto di servizi;5;Utenze e canoni;1;Telefonia fissa;14-06-2018;
650;1;0;"159,60";"319,20";VODAFONE Omnitel B.V.; ;ACCONTO Fatt.n. AI02836479  del 14/02/2018 Spese telefoniche - Periodo: 15 dicembre 2017/8 febbraio 2018.;14-06-2018;1505;0;164;1;Spese correnti;3;Acquisto di beni e servizi;2;Acquisto di servizi;5;Utenze e canoni;1;Telefonia fissa;14-06-2018;
650;2;0;"159,60";"319,20";VODAFONE Omnitel B.V.; ;ACCONTO Fatt.n. AI06721154  del 13/04/2018 Spese telefoniche 9 febbraio 2018/8 aprile 2018.;14-06-2018;1505;0;164;1;Spese correnti;3;Acquisto di beni e servizi;2;Acquisto di servizi;5;Utenze e canoni;1;Telefonia fissa;14-06-2018;
651;1;0;"314,50";"629,40";VODAFONE Omnitel B.V.; ;ACCONTO Fatt.n. AI02836479  del 14/02/2018 Spese telefoniche - Periodo: 15 dicembre 2017/8 febbraio 2018.;14-06-2018;2084;0;165;1;Spese correnti;3;Acquisto di beni e servizi;2;Acquisto di servizi;5;Utenze e canoni;1;Telefonia fissa;14-06-2018;
651;2;0;"314,90";"629,40";VODAFONE Omnitel B.V.; ;ACCONTO Fatt.n. AI06721154  del 13/04/2018 Spese telefoniche 9 febbraio 2018/8 aprile 2018.;14-06-2018;2084;0;165;1;Spese correnti;3;Acquisto di beni e servizi;2;Acquisto di servizi;5;Utenze e canoni;1;Telefonia fissa;14-06-2018;
652;1;0;"314,50";"629,40";VODAFONE Omnitel B.V.; ;SALDO Fatt.n. AI02836479  del 14/02/2018 Spese telefoniche - Periodo: 15 dicembre 2017/8 febbraio 2018.;14-06-2018;1479;0;166;1;Spese correnti;3;Acquisto di beni e servizi;2;Acquisto di servizi;5;Utenze e canoni;1;Telefonia fissa;14-06-2018;
652;2;0;"314,90";"629,40";VODAFONE Omnitel B.V.; ;SALDO Fatt.n. AI06721154  del 13/04/2018 Spese telefoniche 9 febbraio 2018/8 aprile 2018.;14-06-2018;1479;0;166;1;Spese correnti;3;Acquisto di beni e servizi;2;Acquisto di servizi;5;Utenze e canoni;1;Telefonia fissa;14-06-2018;
654;1;0;"58.712,79";"58.712,79";ECO.LAN. S.p.A.; ;SALDO Fatt.n. 100243  del 31/03/2018 Servizio Igiene urbana - Marzo 2018.;18-06-2018;1745;0;47;1;Spese correnti;3;Acquisto di beni e servizi;2;Acquisto di servizi;15;Contratti di servizio pubblico;4;Contratti di servizio per la raccolta rifiuti;18-06-2018;
655;1;0;"39.331,26";"39.331,26";OTTIMA S.r.l.;606897656D;SALDO Fatt.n. FATTPA 44_18  del 30/04/2018 Gestione impianti pubblica illuminazione - Marzo/Aprile 2018;18-06-2018;1939;0;176;1;Spese correnti;3;Acquisto di beni e servizi;2;Acquisto di servizi;15;Contratti di servizio pubblico;15;Contratti di servizio per l'illuminazione pubblica;18-06-2018;
656;1;0;"6.023,95";"6.023,95";DIPENDENTI COMUNALI; ;STIPENDI MESE DI: GIUGNO 18;18-06-2018;1001;0;0;1;Spese correnti;3;Acquisto di beni e servizi;2;Acquisto di servizi;1;Organi e incarichi istituzionali dell'amministrazione;1;Organi istituzionali dell'amministrazione - Indennit�;18-06-2018;
709;1;0;"658,32";"658,32";AGENZIA DELLE ENTRATE - IVA; ;PAGAMENTO F24 TRAMITE ENTRATEL-PAGAMENTO F24 TRAMITE ENTRATEL - C.F.00094240694 - DISPOSIZIONE N.2025733762) (P.     105 -R.     750);21-06-2018;2154;0;170;1;Spese correnti;10;Altre spese correnti;3;Versamenti IVA a debito;1;Versamenti IVA a debito per le gestioni commerciali;1;Versamenti IVA a debito per le gestioni commerciali;21-06-2018;
712;1;0;"750,00";"750,00";IT CREATIVE di D'ANGELO FRANCESCO;Z221E2C663;SALDO Fatt.n. 12/A  del 30/04/2018 GESTIONE DEI SERVIZI RELATIVI ALLA TRASPARENZA DELL'AZIONE AMMINISTRATIVA DELL'ENTE - BIMESTRE MARZO/APRILE 2018;22-06-2018;1062;0;17;1;Spese correnti;3;Acquisto di beni e servizi;2;Acquisto di servizi;19;Servizi informatici e di telecomunicazioni;1;Gestione e manutenzione applicazioni;22-06-2018;
713;1;0;"87,01";"87,01";ANXA ENERGY (PORTOBELLO);ZE32241565;ACCONTO Fatt.n. B/67  del 30/04/2018 Fornitrua buoni carburante - Aprile 2018;22-06-2018;1270;0;27;1;Spese correnti;3;Acquisto di beni e servizi;1;Acquisto di beni;2;Altri beni di consumo;2;"Carburanti, combustibili e lubrificanti";22-06-2018;
714;1;0;"47,01";"47,01";ANXA ENERGY (PORTOBELLO);ZE32241565;ACCONTO Fatt.n. B/67  del 30/04/2018 Fornitrua buoni carburante - Aprile 2018;22-06-2018;1009;0;26;1;Spese correnti;3;Acquisto di beni e servizi;1;Acquisto di beni;2;Altri beni di consumo;2;"Carburanti, combustibili e lubrificanti";22-06-2018;
715;1;0;"318,40";"318,40";ANXA ENERGY (PORTOBELLO);ZE32241565;SALDO Fatt.n. B/67  del 30/04/2018 Fornitrua buoni carburante - Aprile 2018;22-06-2018;1926;0;30;1;Spese correnti;3;Acquisto di beni e servizi;1;Acquisto di beni;2;Altri beni di consumo;2;"Carburanti, combustibili e lubrificanti";22-06-2018;
716;1;0;"400,00";"950,00";A.F.I.A. Associazione Famiglie Ipoacusici Abruzzesi;Z352108C30;SALDO Fatt.n. 163  del 03/05/2018 Servizio assistenza educativa didattica domiciliare - Aprile 2018;22-06-2018;1654;0;343;1;Spese correnti;3;Acquisto di beni e servizi;2;Acquisto di servizi;11;Prestazioni professionali e specialistiche;2;"Assistenza psicologica, sociale e religiosa";22-06-2018;
716;2;0;"550,00";"950,00";A.F.I.A. Associazione Famiglie Ipoacusici Abruzzesi;Z352108C30;SALDO Fatt.n. 134  del 06/04/2018 Servizio di assistenza educativa didattica domiciliare - Marzo 2018;22-06-2018;1654;0;343;1;Spese correnti;3;Acquisto di beni e servizi;2;Acquisto di servizi;11;Prestazioni professionali e specialistiche;2;"Assistenza psicologica, sociale e religiosa";22-06-2018;
717;1;0;"951,30";"951,30";MEDIAPRINT S.r.l.;ZE7232DB29;SALDO Fatt.n. FATTPA 38_18  del 23/04/2018 Servizio stamapa e imbustamento Tari 2018;22-06-2018;1192;0;84;1;Spese correnti;3;Acquisto di beni e servizi;2;Acquisto di servizi;16;Servizi amministrativi;999;Altre spese per servizi amministrativi;22-06-2018;
718;1;0;"1.242,00";"1.242,00";LEGA ITALIANA DEI DIRITTI DELL'AMINALE;ZD221F1539;SALDO Fatt.n. 15/2018  del 30/04/2018 Ricovero e mantenimento dei cani - Mese di aprile 2018;22-06-2018;1622;0;36;1;Spese correnti;3;Acquisto di beni e servizi;2;Acquisto di servizi;15;Contratti di servizio pubblico;11;Contratti di servizio per la lotta al randagismo;22-06-2018;
719;1;0;"198,00";"198,00";GRUPPO VOLONTARI PROTEZIONE CIVILE VALTRIGNO;Z91236F693;Liquidazione prestazione servizio di supporto polizia locale;22-06-2018;1115;0;100;1;Spese correnti;3;Acquisto di beni e servizi;2;Acquisto di servizi;99;Altri servizi;999;Altri servizi diversi n.a.c.;22-06-2018;
720;1;0;"2.500,00";"2.500,00";CASALANGUIDA Carlo; ;LIQUIDAZIONE ATTO DI TRANSAZIONE E RIDETERMINAZIONE IMPEGNO ASSUNTO CON DETERMINAZIONE DIRIGENZIALE R.G. N. 259 DEL 27/12/2017;22-06-2018;1488;0;78;1;Spese correnti;3;Acquisto di beni e servizi;2;Acquisto di servizi;11;Prestazioni professionali e specialistiche;999;Altre prestazioni professionali e specialistiche n.a.c.;22-06-2018;
721;1;0;"2.013,00";"2.013,00";SGUVA RENTING SPA;Z861E8FA3F;SALDO Fatt.n. 6106  del 19/03/2018 CANONE DI NOLEGGIO N. 4;22-06-2018;1573;0;41;1;Spese correnti;3;Acquisto di beni e servizi;2;Acquisto di servizi;15;Contratti di servizio pubblico;999;Altre spese per contratti di servizio pubblico;22-06-2018;
722;1;0;"284,16";"284,16";IEZZI Gabriele;ZB7213966C;SALDO Fatt.n. 2/E  del 20/04/2018 Prestazione da meccanico.;22-06-2018;1927;0;300;1;Spese correnti;3;Acquisto di beni e servizi;2;Acquisto di servizi;9;Manutenzione ordinaria e riparazioni;2;Manutenzione ordinaria e riparazioni di mezzi di trasporto ad uso militare;22-06-2018;
723;1;0;"0,01";"1.160,10";SUPERDISCOUNT TODIS;ZB122C0E00;SALDO Fatt.n. 000001-2018-25  del 21/04/2018 Fornitura materiali di pulizia per Istituto comprensivo.;22-06-2018;1367;0;55;1;Spese correnti;3;Acquisto di beni e servizi;1;Acquisto di beni;2;Altri beni di consumo;999;Altri beni e materiali di consumo n.a.c.;22-06-2018;
723;2;0;"1.160,09";"1.160,10";SUPERDISCOUNT TODIS;ZB122C0E00;ACCONTO Fatt.n. 000001-2018-25  del 21/04/2018 Fornitura materiali di pulizia per Istituto comprensivo.;22-06-2018;1367;0;55;1;Spese correnti;3;Acquisto di beni e servizi;1;Acquisto di beni;2;Altri beni di consumo;999;Altri beni e materiali di consumo n.a.c.;22-06-2018;
724;1;0;"13.527,80";"13.527,80";PRIMAVERA PREFABBRICATI SRL;Z2320FF058;SALDO Fatt.n. 3/PA  del 07/05/2018 Lavori fornitura e posa in opera loculi cimiteriali;22-06-2018;3052;0;332;2;Spese in conto capitale;2;Investimenti fissi lordi e acquisto di terreni;1;Beni materiali;9;Beni immobili;15;Cimiteri;22-06-2018;
725;1;0;"597,80";"597,80";EUROSERVIZI S.r.l.;Z191EEB415;SALDO Fatt.n. 60  del 30/04/2018 Servizio di pulizie uffici comunali - Aprile 2018;22-06-2018;1483;0;38;1;Spese correnti;3;Acquisto di beni e servizi;2;Acquisto di servizi;13;Servizi ausiliari per il funzionamento dell'ente;2;Servizi di pulizia e lavanderia;22-06-2018;
726;1;0;"2.261,36";"2.261,36";CROCE AZZURRA LANCIANO;Z961FD58C5;SALDO Fatt.n. 29/18/PA  del 30/04/2018 Servizio Trasporto Disabili Aprile 2018;22-06-2018;1362;0;271;1;Spese correnti;3;Acquisto di beni e servizi;2;Acquisto di servizi;11;Prestazioni professionali e specialistiche;2;"Assistenza psicologica, sociale e religiosa";22-06-2018;
727;1;0;"2.481,42";"2.481,42";CROCE AZZURRA LANCIANO;Z961FD58C5;SALDO Fatt.n. 21/18/PA  del 31/03/2018 Servizio Trasporto Disabili Marzo 2018;22-06-2018;1362;0;271;1;Spese correnti;3;Acquisto di beni e servizi;2;Acquisto di servizi;11;Prestazioni professionali e specialistiche;2;"Assistenza psicologica, sociale e religiosa";22-06-2018;
728;1;0;"286,03";"590,63";KYOCERA DOCUMENT SOLUTIONS ITALIA S.P.A:;Z5410BC1A4;SALDO Fatt.n. 1010476668  del 17/04/2018 Fotocopiatrici 23 - Lotto 1 - CIG 5462214994 - Durata del contratto 60 mesi;22-06-2018;1053;0;134;1;Spese correnti;3;Acquisto di beni e servizi;2;Acquisto di servizi;19;Servizi informatici e di telecomunicazioni;1;Gestione e manutenzione applicazioni;22-06-2018;
728;2;0;"304,60";"590,63";KYOCERA DOCUMENT SOLUTIONS ITALIA S.P.A:;ZB00FAAFFA;SALDO Fatt.n. 1010476667  del 17/04/2018 Fotocopiatrici 23 - Lotto 1 - CIG 5462214994 - Durata del contratto 48 mesi;22-06-2018;1053;0;134;1;Spese correnti;3;Acquisto di beni e servizi;2;Acquisto di servizi;19;Servizi informatici e di telecomunicazioni;1;Gestione e manutenzione applicazioni;22-06-2018;
729;1;0;"457,50";"457,50";A.E.D. SISTEM S.n.c.;ZEF22A0E3D;SALDO Fatt.n. 10  del 04/04/2018 NOLEGGIO 3 MULTIFUNZIONI MONOCROMATICHE;22-06-2018;1053;0;52;1;Spese correnti;3;Acquisto di beni e servizi;2;Acquisto di servizi;19;Servizi informatici e di telecomunicazioni;1;Gestione e manutenzione applicazioni;22-06-2018;
730;1;0;"643,88";"643,88";FARMAGRICOLA SANVITESE S.a.s. di DI FOGLIO Marcello;ZC22286F23;"SALDO Fatt.n. 2/E  del 20/04/2018 Fornitura terriccio, argilla e filo di ferro.";22-06-2018;1811;0;42;1;Spese correnti;3;Acquisto di beni e servizi;1;Acquisto di beni;2;Altri beni di consumo;999;Altri beni e materiali di consumo n.a.c.;22-06-2018;
731;1;0;"3.617,28";"3.617,28";BUCCO Alberto;ZDE22719A3;SALDO Fatt.n. E1  del 30/04/2018 Prestazioni con mezzi meccanici - Pulitura neve;22-06-2018;1924;0;35;1;Spese correnti;3;Acquisto di beni e servizi;2;Acquisto di servizi;9;Manutenzione ordinaria e riparazioni;8;Manutenzione ordinaria e riparazioni di beni immobili;22-06-2018;
732;1;0;"9,95";"9,95";ECONOMO COMUNALE - PETACCIA Silvana; ;Rimborso bollette;25-06-2018;1120;0;20;1;Spese correnti;3;Acquisto di beni e servizi;1;Acquisto di beni;2;Altri beni di consumo;6;Materiale informatico;25-06-2018;
733;1;0;"98,00";"98,00";ECONOMO COMUNALE - PETACCIA Silvana; ;Rimborso bollette;25-06-2018;1121;0;167;1;Spese correnti;3;Acquisto di beni e servizi;1;Acquisto di beni;2;Altri beni di consumo;1;"Carta, cancelleria e stampati";25-06-2018;
734;1;0;"63,05";"63,05";ECONOMO COMUNALE - PETACCIA Silvana; ;Rimborso bollette;25-06-2018;1122;0;11;1;Spese correnti;3;Acquisto di beni e servizi;1;Acquisto di beni;2;Altri beni di consumo;1;"Carta, cancelleria e stampati";25-06-2018;
735;1;0;"127,10";"127,10";ECONOMO COMUNALE - PETACCIA Silvana; ;Rimborso bollette;25-06-2018;1125;0;58;1;Spese correnti;3;Acquisto di beni e servizi;1;Acquisto di beni;2;Altri beni di consumo;999;Altri beni e materiali di consumo n.a.c.;25-06-2018;
737;1;0;"278,00";"3.043,06";CASSA DEPOSITI E PRESTITI; ;Rata Interessi  1^Sem. 30/06/18 Costr. Caserma Carabinieri;26-06-2018;1165;0;99999;1;Spese correnti;7;Interessi passivi;5;Interessi su Mutui e altri finanziamenti a medio lungo termine;4;Interessi passivi su finanziamenti a medio lungo termine a Imprese;3;Interessi passivi a Cassa Depositi e Prestiti SPA su mutui e altri finanziamenti a medio lungo termine;26-06-2018;
737;2;0;"553,95";"3.043,06";CASSA DEPOSITI E PRESTITI; ;Rata Interessi  1^Sem. 30/06/18 Sistemazione area mattatoio;26-06-2018;1165;0;99999;1;Spese correnti;7;Interessi passivi;5;Interessi su Mutui e altri finanziamenti a medio lungo termine;4;Interessi passivi su finanziamenti a medio lungo termine a Imprese;3;Interessi passivi a Cassa Depositi e Prestiti SPA su mutui e altri finanziamenti a medio lungo termine;26-06-2018;
737;3;0;"614,25";"3.043,06";CASSA DEPOSITI E PRESTITI; ;Rata Interessi  1^Sem. 30/06/18 ACQUISTO MOBILI UFFICI;26-06-2018;1165;0;99999;1;Spese correnti;7;Interessi passivi;5;Interessi su Mutui e altri finanziamenti a medio lungo termine;4;Interessi passivi su finanziamenti a medio lungo termine a Imprese;3;Interessi passivi a Cassa Depositi e Prestiti SPA su mutui e altri finanziamenti a medio lungo termine;26-06-2018;
737;4;0;"1.596,86";"3.043,06";CASSA DEPOSITI E PRESTITI; ;Rata Interessi  1^Sem. 30/06/18 COSTRUZIONE CASERMA CARABINIERI;26-06-2018;1165;0;99999;1;Spese correnti;7;Interessi passivi;5;Interessi su Mutui e altri finanziamenti a medio lungo termine;4;Interessi passivi su finanziamenti a medio lungo termine a Imprese;3;Interessi passivi a Cassa Depositi e Prestiti SPA su mutui e altri finanziamenti a medio lungo termine;26-06-2018;
738;1;0;"355,69";"8.679,09";CASSA DEPOSITI E PRESTITI; ;Rata Interessi  1^Sem. 30/06/18 Costruzione scuola elementare;26-06-2018;1373;0;99999;1;Spese correnti;7;Interessi passivi;5;Interessi su Mutui e altri finanziamenti a medio lungo termine;4;Interessi passivi su finanziamenti a medio lungo termine a Imprese;3;Interessi passivi a Cassa Depositi e Prestiti SPA su mutui e altri finanziamenti a medio lungo termine;26-06-2018;
738;2;0;"653,21";"8.679,09";CASSA DEPOSITI E PRESTITI; ;Rata Interessi  1^Sem. 30/06/18 ARREDO SCUOLA ELEMENTARE;26-06-2018;1373;0;99999;1;Spese correnti;7;Interessi passivi;5;Interessi su Mutui e altri finanziamenti a medio lungo termine;4;Interessi passivi su finanziamenti a medio lungo termine a Imprese;3;Interessi passivi a Cassa Depositi e Prestiti SPA su mutui e altri finanziamenti a medio lungo termine;26-06-2018;
738;3;0;"835,13";"8.679,09";CASSA DEPOSITI E PRESTITI; ;Rata Interessi  1^Sem. 30/06/18 Sistemazione scuola elementare;26-06-2018;1373;0;99999;1;Spese correnti;7;Interessi passivi;5;Interessi su Mutui e altri finanziamenti a medio lungo termine;4;Interessi passivi su finanziamenti a medio lungo termine a Imprese;3;Interessi passivi a Cassa Depositi e Prestiti SPA su mutui e altri finanziamenti a medio lungo termine;26-06-2018;
738;4;0;"1.565,67";"8.679,09";CASSA DEPOSITI E PRESTITI; ;Rata Interessi  1^Sem. 30/06/18 Manutenzione scuola elementare;26-06-2018;1373;0;99999;1;Spese correnti;7;Interessi passivi;5;Interessi su Mutui e altri finanziamenti a medio lungo termine;4;Interessi passivi su finanziamenti a medio lungo termine a Imprese;3;Interessi passivi a Cassa Depositi e Prestiti SPA su mutui e altri finanziamenti a medio lungo termine;26-06-2018;
738;5;0;"1.705,21";"8.679,09";CASSA DEPOSITI E PRESTITI; ;Rata Interessi  1^Sem. 30/06/18 MANUT. SCUOLA ELEM. SANT'APOL.;26-06-2018;1373;0;99999;1;Spese correnti;7;Interessi passivi;5;Interessi su Mutui e altri finanziamenti a medio lungo termine;4;Interessi passivi su finanziamenti a medio lungo termine a Imprese;3;Interessi passivi a Cassa Depositi e Prestiti SPA su mutui e altri finanziamenti a medio lungo termine;26-06-2018;
738;6;0;"3.564,18";"8.679,09";CASSA DEPOSITI E PRESTITI; ;Rata Interessi  1^Sem. 30/06/18 COSTRUZIONE SCUOLA ELEMENTARE;26-06-2018;1373;0;99999;1;Spese correnti;7;Interessi passivi;5;Interessi su Mutui e altri finanziamenti a medio lungo termine;4;Interessi passivi su finanziamenti a medio lungo termine a Imprese;3;Interessi passivi a Cassa Depositi e Prestiti SPA su mutui e altri finanziamenti a medio lungo termine;26-06-2018;
739;1;0;"779,32";"4.176,06";CASSA DEPOSITI E PRESTITI; ;Rata Interessi  1^Sem. 30/06/18 MANUTENZIONE PALESTRA COMUNALE;26-06-2018;1396;0;99999;1;Spese correnti;7;Interessi passivi;5;Interessi su Mutui e altri finanziamenti a medio lungo termine;4;Interessi passivi su finanziamenti a medio lungo termine a Imprese;3;Interessi passivi a Cassa Depositi e Prestiti SPA su mutui e altri finanziamenti a medio lungo termine;26-06-2018;
739;2;0;"1.009,75";"4.176,06";CASSA DEPOSITI E PRESTITI; ;Rata Interessi  1^Sem. 30/06/18 Lavori edificio scuola media;26-06-2018;1396;0;99999;1;Spese correnti;7;Interessi passivi;5;Interessi su Mutui e altri finanziamenti a medio lungo termine;4;Interessi passivi su finanziamenti a medio lungo termine a Imprese;3;Interessi passivi a Cassa Depositi e Prestiti SPA su mutui e altri finanziamenti a medio lungo termine;26-06-2018;
739;3;0;"1.020,70";"4.176,06";CASSA DEPOSITI E PRESTITI; ;Rata Interessi  1^Sem. 30/06/18 IMPIANTO FOTOVOLTAICO SCUOLA MEDIA;26-06-2018;1396;0;99999;1;Spese correnti;7;Interessi passivi;5;Interessi su Mutui e altri finanziamenti a medio lungo termine;4;Interessi passivi su finanziamenti a medio lungo termine a Imprese;3;Interessi passivi a Cassa Depositi e Prestiti SPA su mutui e altri finanziamenti a medio lungo termine;26-06-2018;
739;4;0;"1.366,29";"4.176,06";CASSA DEPOSITI E PRESTITI; ;Rata Interessi  1^Sem. 30/06/18 MANUTENZIONE STRAORDINARIA SCUOLA MEDIA- ADEGUAMENTO NORME E MESSA IN SICUREZZA;26-06-2018;1396;0;99999;1;Spese correnti;7;Interessi passivi;5;Interessi su Mutui e altri finanziamenti a medio lungo termine;4;Interessi passivi su finanziamenti a medio lungo termine a Imprese;3;Interessi passivi a Cassa Depositi e Prestiti SPA su mutui e altri finanziamenti a medio lungo termine;26-06-2018;
740;1;0;"996,36";"996,36";CASSA DEPOSITI E PRESTITI; ;Rata Interessi  1^Sem. 30/06/18 PERCORSO MUESEAE DE CASTELLO;26-06-2018;1509;0;99999;1;Spese correnti;7;Interessi passivi;5;Interessi su Mutui e altri finanziamenti a medio lungo termine;4;Interessi passivi su finanziamenti a medio lungo termine a Imprese;3;Interessi passivi a Cassa Depositi e Prestiti SPA su mutui e altri finanziamenti a medio lungo termine;26-06-2018;
741;1;0;"1.087,32";"1.087,32";CASSA DEPOSITI E PRESTITI; ;Rata Interessi  1^Sem. 30/06/18 Ampliamento cimitero Capoluogo;26-06-2018;1664;0;99999;1;Spese correnti;7;Interessi passivi;5;Interessi su Mutui e altri finanziamenti a medio lungo termine;4;Interessi passivi su finanziamenti a medio lungo termine a Imprese;3;Interessi passivi a Cassa Depositi e Prestiti SPA su mutui e altri finanziamenti a medio lungo termine;26-06-2018;
742;1;0;"140,95";"4.501,36";CASSA DEPOSITI E PRESTITI; ;Rata Interessi  1^Sem. 30/06/18 COSTRUZIONE RETE IDRICA;26-06-2018;1694;0;99999;1;Spese correnti;7;Interessi passivi;5;Interessi su Mutui e altri finanziamenti a medio lungo termine;4;Interessi passivi su finanziamenti a medio lungo termine a Imprese;3;Interessi passivi a Cassa Depositi e Prestiti SPA su mutui e altri finanziamenti a medio lungo termine;26-06-2018;
742;2;0;"211,15";"4.501,36";CASSA DEPOSITI E PRESTITI; ;Rata Interessi  1^Sem. 30/06/18 Lavori rete idrica;26-06-2018;1694;0;99999;1;Spese correnti;7;Interessi passivi;5;Interessi su Mutui e altri finanziamenti a medio lungo termine;4;Interessi passivi su finanziamenti a medio lungo termine a Imprese;3;Interessi passivi a Cassa Depositi e Prestiti SPA su mutui e altri finanziamenti a medio lungo termine;26-06-2018;
742;3;0;"755,48";"4.501,36";CASSA DEPOSITI E PRESTITI; ;Rata Interessi  1^Sem. 30/06/18 COSTRUZIONE RETE IDRICA;26-06-2018;1694;0;99999;1;Spese correnti;7;Interessi passivi;5;Interessi su Mutui e altri finanziamenti a medio lungo termine;4;Interessi passivi su finanziamenti a medio lungo termine a Imprese;3;Interessi passivi a Cassa Depositi e Prestiti SPA su mutui e altri finanziamenti a medio lungo termine;26-06-2018;
742;4;0;"937,22";"4.501,36";CASSA DEPOSITI E PRESTITI; ;Rata Interessi  1^Sem. 30/06/18 COSTRUZIONE RETE IDRICA;26-06-2018;1694;0;99999;1;Spese correnti;7;Interessi passivi;5;Interessi su Mutui e altri finanziamenti a medio lungo termine;4;Interessi passivi su finanziamenti a medio lungo termine a Imprese;3;Interessi passivi a Cassa Depositi e Prestiti SPA su mutui e altri finanziamenti a medio lungo termine;26-06-2018;
742;5;0;"1.182,89";"4.501,36";CASSA DEPOSITI E PRESTITI; ;"Rata Interessi  1^Sem. 30/06/18 Rifacimento fogne, acqued.ecc.";26-06-2018;1694;0;99999;1;Spese correnti;7;Interessi passivi;5;Interessi su Mutui e altri finanziamenti a medio lungo termine;4;Interessi passivi su finanziamenti a medio lungo termine a Imprese;3;Interessi passivi a Cassa Depositi e Prestiti SPA su mutui e altri finanziamenti a medio lungo termine;26-06-2018;
742;6;0;"1.271,36";"4.501,36";CASSA DEPOSITI E PRESTITI; ;Rata Interessi  1^Sem. 30/06/18 LAVORI RETE IDRICA;26-06-2018;1694;0;99999;1;Spese correnti;7;Interessi passivi;5;Interessi su Mutui e altri finanziamenti a medio lungo termine;4;Interessi passivi su finanziamenti a medio lungo termine a Imprese;3;Interessi passivi a Cassa Depositi e Prestiti SPA su mutui e altri finanziamenti a medio lungo termine;26-06-2018;
742;7;0;"2,31";"4.501,36";MINISTERO DELL'ECONOMIA E DELLE FINANZE; ;"Rata Interessi  1^Sem. 30/06/18 Rifacimento fogne, acqued.ecc.";26-06-2018;1694;0;99999;1;Spese correnti;7;Interessi passivi;5;Interessi su Mutui e altri finanziamenti a medio lungo termine;4;Interessi passivi su finanziamenti a medio lungo termine a Imprese;3;Interessi passivi a Cassa Depositi e Prestiti SPA su mutui e altri finanziamenti a medio lungo termine;26-06-2018;
743;1;0;"124,64";"8.992,50";CASSA DEPOSITI E PRESTITI; ;Rata Interessi  1^Sem. 30/06/18 COSTRUZIONE RETE FOGNANTE;26-06-2018;1724;0;99999;1;Spese correnti;7;Interessi passivi;5;Interessi su Mutui e altri finanziamenti a medio lungo termine;4;Interessi passivi su finanziamenti a medio lungo termine a Imprese;3;Interessi passivi a Cassa Depositi e Prestiti SPA su mutui e altri finanziamenti a medio lungo termine;26-06-2018;
743;2;0;"144,46";"8.992,50";CASSA DEPOSITI E PRESTITI; ;Rata Interessi  1^Sem. 30/06/18 COSTRUZIIONE RETE FOGNARIA CENTRO STORICO;26-06-2018;1724;0;99999;1;Spese correnti;7;Interessi passivi;5;Interessi su Mutui e altri finanziamenti a medio lungo termine;4;Interessi passivi su finanziamenti a medio lungo termine a Imprese;3;Interessi passivi a Cassa Depositi e Prestiti SPA su mutui e altri finanziamenti a medio lungo termine;26-06-2018;
743;3;0;"368,63";"8.992,50";CASSA DEPOSITI E PRESTITI; ;Rata Interessi  1^Sem. 30/06/18 Costruzione rete fognaria;26-06-2018;1724;0;99999;1;Spese correnti;7;Interessi passivi;5;Interessi su Mutui e altri finanziamenti a medio lungo termine;4;Interessi passivi su finanziamenti a medio lungo termine a Imprese;3;Interessi passivi a Cassa Depositi e Prestiti SPA su mutui e altri finanziamenti a medio lungo termine;26-06-2018;
743;4;0;"568,89";"8.992,50";CASSA DEPOSITI E PRESTITI; ;Rata Interessi  1^Sem. 30/06/18 Rete fognaria;26-06-2018;1724;0;99999;1;Spese correnti;7;Interessi passivi;5;Interessi su Mutui e altri finanziamenti a medio lungo termine;4;Interessi passivi su finanziamenti a medio lungo termine a Imprese;3;Interessi passivi a Cassa Depositi e Prestiti SPA su mutui e altri finanziamenti a medio lungo termine;26-06-2018;
743;5;0;"1.242,04";"8.992,50";CASSA DEPOSITI E PRESTITI; ;Rata Interessi  1^Sem. 30/06/18 COSTRUZIONE RETE FOGNARIA CENTRO STORICO;26-06-2018;1724;0;99999;1;Spese correnti;7;Interessi passivi;5;Interessi su Mutui e altri finanziamenti a medio lungo termine;4;Interessi passivi su finanziamenti a medio lungo termine a Imprese;3;Interessi passivi a Cassa Depositi e Prestiti SPA su mutui e altri finanziamenti a medio lungo termine;26-06-2018;
743;6;0;"2.922,43";"8.992,50";CASSA DEPOSITI E PRESTITI; ;Rata Interessi  1^Sem. 30/06/18 RETE FOGNANTE;26-06-2018;1724;0;99999;1;Spese correnti;7;Interessi passivi;5;Interessi su Mutui e altri finanziamenti a medio lungo termine;4;Interessi passivi su finanziamenti a medio lungo termine a Imprese;3;Interessi passivi a Cassa Depositi e Prestiti SPA su mutui e altri finanziamenti a medio lungo termine;26-06-2018;
743;7;0;"3.621,41";"8.992,50";CASSA DEPOSITI E PRESTITI; ;Rata Interessi  1^Sem. 30/06/18 COSTRUZIONE FOGNATURA;26-06-2018;1724;0;99999;1;Spese correnti;7;Interessi passivi;5;Interessi su Mutui e altri finanziamenti a medio lungo termine;4;Interessi passivi su finanziamenti a medio lungo termine a Imprese;3;Interessi passivi a Cassa Depositi e Prestiti SPA su mutui e altri finanziamenti a medio lungo termine;26-06-2018;
744;1;0;"332,37";"1.830,34";CASSA DEPOSITI E PRESTITI; ;Rata Interessi  1^Sem. 30/06/18 Realizzazione isola ecologica;26-06-2018;1744;0;99999;1;Spese correnti;7;Interessi passivi;5;Interessi su Mutui e altri finanziamenti a medio lungo termine;4;Interessi passivi su finanziamenti a medio lungo termine a Imprese;3;Interessi passivi a Cassa Depositi e Prestiti SPA su mutui e altri finanziamenti a medio lungo termine;26-06-2018;
744;2;0;"1.497,97";"1.830,34";CASSA DEPOSITI E PRESTITI; ;Rata Interessi  1^Sem. 30/06/18 ACQ. AUTOMEZZI N.U.;26-06-2018;1744;0;99999;1;Spese correnti;7;Interessi passivi;5;Interessi su Mutui e altri finanziamenti a medio lungo termine;4;Interessi passivi su finanziamenti a medio lungo termine a Imprese;3;Interessi passivi a Cassa Depositi e Prestiti SPA su mutui e altri finanziamenti a medio lungo termine;26-06-2018;
745;1;0;"348,43";"348,43";CASSA DEPOSITI E PRESTITI; ;Rata Interessi  1^Sem. 30/06/18 Costruzione gabinetti;26-06-2018;1759;0;99999;1;Spese correnti;7;Interessi passivi;5;Interessi su Mutui e altri finanziamenti a medio lungo termine;4;Interessi passivi su finanziamenti a medio lungo termine a Imprese;3;Interessi passivi a Cassa Depositi e Prestiti SPA su mutui e altri finanziamenti a medio lungo termine;26-06-2018;
746;1;0;"2.268,30";"4.731,94";CASSA DEPOSITI E PRESTITI; ;Rata Interessi  1^Sem. 30/06/18 COSTRUZIONE CENTRO SOCIALE;26-06-2018;1787;0;99999;1;Spese correnti;7;Interessi passivi;5;Interessi su Mutui e altri finanziamenti a medio lungo termine;4;Interessi passivi su finanziamenti a medio lungo termine a Imprese;3;Interessi passivi a Cassa Depositi e Prestiti SPA su mutui e altri finanziamenti a medio lungo termine;26-06-2018;
746;2;0;"2.463,64";"4.731,94";CASSA DEPOSITI E PRESTITI; ;Rata Interessi  1^Sem. 30/06/18 RECUPERO EX SCUOLA MANCINI;26-06-2018;1787;0;99999;1;Spese correnti;7;Interessi passivi;5;Interessi su Mutui e altri finanziamenti a medio lungo termine;4;Interessi passivi su finanziamenti a medio lungo termine a Imprese;3;Interessi passivi a Cassa Depositi e Prestiti SPA su mutui e altri finanziamenti a medio lungo termine;26-06-2018;
747;1;0;"569,37";"3.117,01";CASSA DEPOSITI E PRESTITI; ;Rata Interessi  1^Sem. 30/06/18 Parco giochi;26-06-2018;1810;0;99999;1;Spese correnti;7;Interessi passivi;5;Interessi su Mutui e altri finanziamenti a medio lungo termine;4;Interessi passivi su finanziamenti a medio lungo termine a Imprese;3;Interessi passivi a Cassa Depositi e Prestiti SPA su mutui e altri finanziamenti a medio lungo termine;26-06-2018;
747;2;0;"691,37";"3.117,01";CASSA DEPOSITI E PRESTITI; ;Rata Interessi  1^Sem. 30/06/18 Sistemazione area a verde;26-06-2018;1810;0;99999;1;Spese correnti;7;Interessi passivi;5;Interessi su Mutui e altri finanziamenti a medio lungo termine;4;Interessi passivi su finanziamenti a medio lungo termine a Imprese;3;Interessi passivi a Cassa Depositi e Prestiti SPA su mutui e altri finanziamenti a medio lungo termine;26-06-2018;
747;3;0;"752,88";"3.117,01";CASSA DEPOSITI E PRESTITI; ;Rata Interessi  1^Sem. 30/06/18 Lavori sistem. area a verde;26-06-2018;1810;0;99999;1;Spese correnti;7;Interessi passivi;5;Interessi su Mutui e altri finanziamenti a medio lungo termine;4;Interessi passivi su finanziamenti a medio lungo termine a Imprese;3;Interessi passivi a Cassa Depositi e Prestiti SPA su mutui e altri finanziamenti a medio lungo termine;26-06-2018;
747;4;0;"1.103,39";"3.117,01";CASSA DEPOSITI E PRESTITI; ;Rata Interessi  1^Sem. 30/06/18 AREA A VERDE PUBBLICO;26-06-2018;1810;0;99999;1;Spese correnti;7;Interessi passivi;5;Interessi su Mutui e altri finanziamenti a medio lungo termine;4;Interessi passivi su finanziamenti a medio lungo termine a Imprese;3;Interessi passivi a Cassa Depositi e Prestiti SPA su mutui e altri finanziamenti a medio lungo termine;26-06-2018;
748;1;0;"167,87";"9.350,35";CASSA DEPOSITI E PRESTITI; ;Rata Interessi  1^Sem. 30/06/18 Costruzione impianti sportivi;26-06-2018;1834;0;99999;1;Spese correnti;7;Interessi passivi;5;Interessi su Mutui e altri finanziamenti a medio lungo termine;4;Interessi passivi su finanziamenti a medio lungo termine a Imprese;3;Interessi passivi a Cassa Depositi e Prestiti SPA su mutui e altri finanziamenti a medio lungo termine;26-06-2018;
748;2;0;"214,59";"9.350,35";CASSA DEPOSITI E PRESTITI; ;Rata Interessi  1^Sem. 30/06/18 Costruzione impianti sportivi;26-06-2018;1834;0;99999;1;Spese correnti;7;Interessi passivi;5;Interessi su Mutui e altri finanziamenti a medio lungo termine;4;Interessi passivi su finanziamenti a medio lungo termine a Imprese;3;Interessi passivi a Cassa Depositi e Prestiti SPA su mutui e altri finanziamenti a medio lungo termine;26-06-2018;
748;3;0;"372,60";"9.350,35";CASSA DEPOSITI E PRESTITI; ;Rata Interessi  1^Sem. 30/06/18 ADEGUAMENTO PALESTRA COMUNALE;26-06-2018;1834;0;99999;1;Spese correnti;7;Interessi passivi;5;Interessi su Mutui e altri finanziamenti a medio lungo termine;4;Interessi passivi su finanziamenti a medio lungo termine a Imprese;3;Interessi passivi a Cassa Depositi e Prestiti SPA su mutui e altri finanziamenti a medio lungo termine;26-06-2018;
748;4;0;"553,95";"9.350,35";CASSA DEPOSITI E PRESTITI; ;Rata Interessi  1^Sem. 30/06/18 Realizzazione campo sportivo;26-06-2018;1834;0;99999;1;Spese correnti;7;Interessi passivi;5;Interessi su Mutui e altri finanziamenti a medio lungo termine;4;Interessi passivi su finanziamenti a medio lungo termine a Imprese;3;Interessi passivi a Cassa Depositi e Prestiti SPA su mutui e altri finanziamenti a medio lungo termine;26-06-2018;
748;5;0;"836,25";"9.350,35";CASSA DEPOSITI E PRESTITI; ;Rata Interessi  1^Sem. 30/06/18 COSTRUZIONE IMPIANTI SPORTIVI;26-06-2018;1834;0;99999;1;Spese correnti;7;Interessi passivi;5;Interessi su Mutui e altri finanziamenti a medio lungo termine;4;Interessi passivi su finanziamenti a medio lungo termine a Imprese;3;Interessi passivi a Cassa Depositi e Prestiti SPA su mutui e altri finanziamenti a medio lungo termine;26-06-2018;
748;6;0;"1.090,43";"9.350,35";CASSA DEPOSITI E PRESTITI; ;Rata Interessi  1^Sem. 30/06/18 SISTEMAZIONE PALESTRA;26-06-2018;1834;0;99999;1;Spese correnti;7;Interessi passivi;5;Interessi su Mutui e altri finanziamenti a medio lungo termine;4;Interessi passivi su finanziamenti a medio lungo termine a Imprese;3;Interessi passivi a Cassa Depositi e Prestiti SPA su mutui e altri finanziamenti a medio lungo termine;26-06-2018;
748;7;0;"1.138,83";"9.350,35";CASSA DEPOSITI E PRESTITI; ;Rata Interessi  1^Sem. 30/06/18 PALESTRA COMUNALE;26-06-2018;1834;0;99999;1;Spese correnti;7;Interessi passivi;5;Interessi su Mutui e altri finanziamenti a medio lungo termine;4;Interessi passivi su finanziamenti a medio lungo termine a Imprese;3;Interessi passivi a Cassa Depositi e Prestiti SPA su mutui e altri finanziamenti a medio lungo termine;26-06-2018;
748;8;0;"1.738,73";"9.350,35";CASSA DEPOSITI E PRESTITI; ;Rata Interessi  1^Sem. 30/06/18 COSTRUZIONE IMPIANTI SPORTIVI;26-06-2018;1834;0;99999;1;Spese correnti;7;Interessi passivi;5;Interessi su Mutui e altri finanziamenti a medio lungo termine;4;Interessi passivi su finanziamenti a medio lungo termine a Imprese;3;Interessi passivi a Cassa Depositi e Prestiti SPA su mutui e altri finanziamenti a medio lungo termine;26-06-2018;
748;9;0;"3.237,10";"9.350,35";CASSA DEPOSITI E PRESTITI; ;Rata Interessi  1^Sem. 30/06/18 COSTRUZIONE IMPIANTI SPORTIVI;26-06-2018;1834;0;99999;1;Spese correnti;7;Interessi passivi;5;Interessi su Mutui e altri finanziamenti a medio lungo termine;4;Interessi passivi su finanziamenti a medio lungo termine a Imprese;3;Interessi passivi a Cassa Depositi e Prestiti SPA su mutui e altri finanziamenti a medio lungo termine;26-06-2018;
749;1;0;"141,93";"70.554,22";CASSA DEPOSITI E PRESTITI; ;Rata Interessi  1^Sem. 30/06/18 COSTRUZIONE STRADE;26-06-2018;1941;0;99999;1;Spese correnti;7;Interessi passivi;5;Interessi su Mutui e altri finanziamenti a medio lungo termine;4;Interessi passivi su finanziamenti a medio lungo termine a Imprese;3;Interessi passivi a Cassa Depositi e Prestiti SPA su mutui e altri finanziamenti a medio lungo termine;26-06-2018;
749;2;0;"216,41";"70.554,22";CASSA DEPOSITI E PRESTITI; ;Rata Interessi  1^Sem. 30/06/18 Costruzione strade;26-06-2018;1941;0;99999;1;Spese correnti;7;Interessi passivi;5;Interessi su Mutui e altri finanziamenti a medio lungo termine;4;Interessi passivi su finanziamenti a medio lungo termine a Imprese;3;Interessi passivi a Cassa Depositi e Prestiti SPA su mutui e altri finanziamenti a medio lungo termine;26-06-2018;
749;3;0;"306,21";"70.554,22";CASSA DEPOSITI E PRESTITI; ;Rata Interessi  1^Sem. 30/06/18 Opere stradali varie;26-06-2018;1941;0;99999;1;Spese correnti;7;Interessi passivi;5;Interessi su Mutui e altri finanziamenti a medio lungo termine;4;Interessi passivi su finanziamenti a medio lungo termine a Imprese;3;Interessi passivi a Cassa Depositi e Prestiti SPA su mutui e altri finanziamenti a medio lungo termine;26-06-2018;
749;4;0;"306,79";"70.554,22";CASSA DEPOSITI E PRESTITI; ;Rata Interessi  1^Sem. 30/06/18 Costruzione strade comunali;26-06-2018;1941;0;99999;1;Spese correnti;7;Interessi passivi;5;Interessi su Mutui e altri finanziamenti a medio lungo termine;4;Interessi passivi su finanziamenti a medio lungo termine a Imprese;3;Interessi passivi a Cassa Depositi e Prestiti SPA su mutui e altri finanziamenti a medio lungo termine;26-06-2018;
749;5;0;"338,91";"70.554,22";CASSA DEPOSITI E PRESTITI; ;Rata Interessi  1^Sem. 30/06/18 Rifacimento strade;26-06-2018;1941;0;99999;1;Spese correnti;7;Interessi passivi;5;Interessi su Mutui e altri finanziamenti a medio lungo termine;4;Interessi passivi su finanziamenti a medio lungo termine a Imprese;3;Interessi passivi a Cassa Depositi e Prestiti SPA su mutui e altri finanziamenti a medio lungo termine;26-06-2018;
749;6;0;"369,41";"70.554,22";CASSA DEPOSITI E PRESTITI; ;Rata Interessi  1^Sem. 30/06/18 Costruzione strade;26-06-2018;1941;0;99999;1;Spese correnti;7;Interessi passivi;5;Interessi su Mutui e altri finanziamenti a medio lungo termine;4;Interessi passivi su finanziamenti a medio lungo termine a Imprese;3;Interessi passivi a Cassa Depositi e Prestiti SPA su mutui e altri finanziamenti a medio lungo termine;26-06-2018;
749;7;0;"402,58";"70.554,22";CASSA DEPOSITI E PRESTITI; ;Rata Interessi  1^Sem. 30/06/18 COSTRUZIONE STRADE;26-06-2018;1941;0;99999;1;Spese correnti;7;Interessi passivi;5;Interessi su Mutui e altri finanziamenti a medio lungo termine;4;Interessi passivi su finanziamenti a medio lungo termine a Imprese;3;Interessi passivi a Cassa Depositi e Prestiti SPA su mutui e altri finanziamenti a medio lungo termine;26-06-2018;
749;8;0;"443,16";"70.554,22";CASSA DEPOSITI E PRESTITI; ;Rata Interessi  1^Sem. 30/06/18 Realizzzione fontana;26-06-2018;1941;0;99999;1;Spese correnti;7;Interessi passivi;5;Interessi su Mutui e altri finanziamenti a medio lungo termine;4;Interessi passivi su finanziamenti a medio lungo termine a Imprese;3;Interessi passivi a Cassa Depositi e Prestiti SPA su mutui e altri finanziamenti a medio lungo termine;26-06-2018;
749;9;0;"474,89";"70.554,22";CASSA DEPOSITI E PRESTITI; ;Rata Interessi  1^Sem. 30/06/18 Rifacimento piazzale.;26-06-2018;1941;0;99999;1;Spese correnti;7;Interessi passivi;5;Interessi su Mutui e altri finanziamenti a medio lungo termine;4;Interessi passivi su finanziamenti a medio lungo termine a Imprese;3;Interessi passivi a Cassa Depositi e Prestiti SPA su mutui e altri finanziamenti a medio lungo termine;26-06-2018;
749;10;0;"496,03";"70.554,22";CASSA DEPOSITI E PRESTITI; ;Rata Interessi  1^Sem. 30/06/18 Rifacimento asfalto strade;26-06-2018;1941;0;99999;1;Spese correnti;7;Interessi passivi;5;Interessi su Mutui e altri finanziamenti a medio lungo termine;4;Interessi passivi su finanziamenti a medio lungo termine a Imprese;3;Interessi passivi a Cassa Depositi e Prestiti SPA su mutui e altri finanziamenti a medio lungo termine;26-06-2018;
749;11;0;"582,66";"70.554,22";CASSA DEPOSITI E PRESTITI; ;Rata Interessi  1^Sem. 30/06/18 Strade comunali;26-06-2018;1941;0;99999;1;Spese correnti;7;Interessi passivi;5;Interessi su Mutui e altri finanziamenti a medio lungo termine;4;Interessi passivi su finanziamenti a medio lungo termine a Imprese;3;Interessi passivi a Cassa Depositi e Prestiti SPA su mutui e altri finanziamenti a medio lungo termine;26-06-2018;
749;12;0;"601,94";"70.554,22";CASSA DEPOSITI E PRESTITI; ;Rata Interessi  1^Sem. 30/06/18 Manutenzione straordin. strade;26-06-2018;1941;0;99999;1;Spese correnti;7;Interessi passivi;5;Interessi su Mutui e altri finanziamenti a medio lungo termine;4;Interessi passivi su finanziamenti a medio lungo termine a Imprese;3;Interessi passivi a Cassa Depositi e Prestiti SPA su mutui e altri finanziamenti a medio lungo termine;26-06-2018;
749;13;0;"673,02";"70.554,22";CASSA DEPOSITI E PRESTITI; ;Rata Interessi  1^Sem. 30/06/18 Sistemazione strade;26-06-2018;1941;0;99999;1;Spese correnti;7;Interessi passivi;5;Interessi su Mutui e altri finanziamenti a medio lungo termine;4;Interessi passivi su finanziamenti a medio lungo termine a Imprese;3;Interessi passivi a Cassa Depositi e Prestiti SPA su mutui e altri finanziamenti a medio lungo termine;26-06-2018;
